{"text_format":"3","workbook":"xlsx","n_sheets":1,"sheets":["岗位一览表"],"not_rendered":{"defined_names":8},"read":"whole","date_system":"1900"}

{"sheet":"岗位一览表","index":0,"n_rows":749,"n_cols":22,"rows_kept":749,"merged":[[1,0,1,21],[2,0,3,0],[2,1,3,1],[2,2,3,2],[2,3,2,5],[2,6,2,8],[2,9,2,10],[2,11,3,11],[2,12,3,12],[2,13,3,13],[2,14,3,14],[2,15,2,17],[2,18,3,18],[2,19,3,19],[2,20,3,20],[2,21,3,21]]}
["附件1："]
["2024年安顺市面向社会公开招聘事业单位工作人员岗位一览表"]
["序号","层级","主管部门","招聘单位",null,null,"招聘岗位",null,null,"考试类别",null,"单位代码及岗位代码","计划招聘数","学历要求","学位要求","专业要求",null,null,"定向招聘类别","其他\n条件","单位咨询\n电话","备注"]
[{"$nulls":3},"单位代码","单位名称","单位性质","岗位代码","岗位名称","岗位简介","一级分类","二级分类",{"$nulls":4},"大专","本科","研究生"]
[1,"市级","安顺市人民政府办公室",9001,"安顺市金融服务中心","全额事业","01","管理人员","从事金融服务相关工作","综合管理类（A类）","——",{"$f":"D5&G5","v":"900101"},1,"本科及以上","学士及以上",null,"一级学科：金融学类、法学类","一级学科：法学\n二级学科：金融学",null,null,"0851-33282064"]
[2,"市级","安顺市人民政府办公室",9001,"安顺市金融服务中心","全额事业","02","专业技术人员","从事投融资管理服务工作","综合管理类（A类）","——","900102",1,"本科及以上",null,null,"学科门类：经济学、法学","学科门类：经济学\n一级学科：法学",null,"1.具备中级及以上审计师或中级及以上会计师资格；\n2.限男性报考。","0851-33282064"]
[3,"市级","安顺市人民政府办公室",9001,"安顺市金融服务中心","全额事业","03","专业技术人员","从事投融资管理服务工作","综合管理类（A类）","——","900103",1,"本科及以上",null,null,"学科门类：经济学、法学","学科门类：经济学\n一级学科：法学",null,"1.具备中级及以上审计师或中级及以上会计师资格；\n2.限女性报考。","0851-33282064"]
[4,"市级","安顺市人民政府办公室",9002,"安顺市人民政府电子政务网络运行维护与应用中心","全额事业","01","专业技术人员","从事网络运行维护与应用管理工作","综合管理类（A类）","——","900201",1,"本科及以上","学士及以上",null,"一级学科：计算机类","一级学科：计算机科学与技术\n二级学科：通信与信息系统",null,null,"0851-33282064"]
[5,"市级","中共安顺市委老干部局",9003,"安顺市离退休干部活动中心","全额事业","01","管理人员","从事市直机关离退休干部活动安排和组织工作","综合管理类（A类）","——","900301",1,"本科及以上","学士及以上",{"$nulls":5},"0851-33281161"]
[6,"市级","中共安顺市委宣传部",9004,"安顺市广播电视台","全额事业","01","专业技术人员","从事广播电视技术系统运行、维护及技术保障工作，同时参与广播电视技术系统的方案设计、技术改造、安装调试","自然科学专技类（C类）","——","900401",1,"本科及以上",null,null,"二级学科：计算机科学与技术、网络工程、软件工程、仿真科学与技术、计算机软件","一级学科：计算机科学与技术\n二级学科：软件工程",null,"具备工程系列初级及以上专业技术职务任职资格证书","0851-38102269"]
[7,"市级","安顺市市场监督管理局",9005,"安顺市食品药品检验所","全额事业","01","专业技术人员","从事药品检验工作","自然科学专技类（C类）","——","900501",1,"本科及以上","学士及以上",null,"二级学科：药学、中药学、卫生检验与检疫","二级学科：药物化学、药物分析学、中药学、微生物与生化药学",null,null,"0851-33281859"]
[8,"市级","安顺市交通运输局",9006,"安顺市水路交通事业发展中心","全额事业","01","管理人员","从事辖区重要港口（码头）、航道及其交通基础设施的建设、维护和管理等工作","综合管理类（A类）","——","900601",1,"本科及以上","学士及以上",null,"一级学科：交通运输类",{"$nulls":3},"0851-33330918"]
[9,"市级","安顺市住房和城乡建设局",9007,"安顺市园林局","全额事业","01","管理人员","从事行政管理、办公室工作","综合管理类（A类）","——","900701",1,"本科及以上","学士及以上",null,"一级学科：中国语言文学类、公共管理类、管理科学与工程类，法学","一级学科：中国语言文学、公共管理、管理科学与工程、法学",null,null,"0851-33292697"]
[10,"市级","安顺市退役军人事务局",9008,"安顺市王若飞烈士陵园管理处","全额事业","01","专业技术人员","从事财务相关工作","综合管理类（A类）","——","900801",1,"本科及以上",null,null,"二级学科：会计学、财务管理、财务会计",null,"定向安顺市已由政府安排工作的退役士兵（退出消防员）或符合条件的六类随军家属",null,"0851-33227313"]
[11,"市级","安顺市退役军人事务局",9009,"安顺市康复中心医院","差额事业","01","管理人员","从事医院管理相关工作","综合管理类（A类）","——","900901",1,"本科及以上","学士及以上",null,"一级学科：计算机类",{"$nulls":3},"0851-33227313"]
[12,"市级","安顺市退役军人事务局",9009,"安顺市康复中心医院","差额事业","02","专业技术人员","从事财务相关工作","综合管理类（A类）","——","900902",1,"本科及以上",null,null,"二级学科：会计学、财务管理、财务会计",{"$nulls":3},"0851-33227313"]
[13,"市级","安顺市自然资源局",9010,"安顺市国土资源勘测规划院","全额事业","01","专业技术人员","从事自然资源调查监测相关工作","自然科学专技类（C类）","——","901001",1,"本科及以上","学士及以上",null,"一级学科：地理科学类、建筑类、土木类、测绘类、地质类、矿业类\n二级学科：土地资源管理",{"$nulls":3},"0851-33347938"]
[14,"市级","安顺市农业农村局",9011,"安顺市农业科学院","差额事业","01","专业技术人员","从事农作物改良、品种选育、农业技术研究和推广等工作","自然科学专技类（C类）","——","901101",1,"本科及以上","学士及以上",null,"二级学科：农学、植物保护、种子科学与工程","一级学科：农业资源利用、植物保护、作物学",null,null,"0851-38645877"]
[15,"市级","安顺市农业农村局",9011,"安顺市农业科学院","差额事业","02","专业技术人员","从事农作物改良、品种选育、农业技术研究和推广等工作","自然科学专技类（C类）","——","901102",1,"本科及以上","学士及以上",null,"二级学科：农学、植物保护、种子科学与工程","一级学科：农业资源利用、植物保护、作物学","定向2024年度毕业生",null,"0851-38645877"]
[16,"市级","安顺市应急管理局",9012,"安顺市安全生产应急救援指挥中心","全额事业","01","管理人员","从事设备维护、系统优化、网络监督管理等工作","综合管理类（A类）","——","901201",1,"研究生及以上","硕士及以上",null,null,"一级学科：计算机科学与技术",null,null,"0851-33853883"]
[17,"市级","安顺市文体广电旅游局",9013,"安顺市体育训练中心","全额事业","01","专业技术人员","主要从事运动员日常训练及参赛等工作","综合管理类（A类）","——","901301",1,"本科及以上","学士及以上",null,"二级学科：运动训练、体能训练","二级学科：运动人体科学、体育教育训练学",null,null,"0851-33281682"]
[18,"市级","安顺市民政局",9014,"安顺市救助管理站","全额事业","01","管理人员","从事社会救助管理工作","综合管理类（A类）","——","901401",1,"本科及以上",null,null,"一级学科：社会学类",{"$nulls":3},"0851-33757788"]
[19,"市级","安顺市人力资源和社会保障局",9015,"安顺市人才交流中心","全额事业","01","管理人员","从事人才服务及办公室日常工作","综合管理类（A类）","——","901501",1,"本科及以上","学士及以上",null,"一级学科：计算机类","一级学科：计算机科学与技术","定向2024年度毕业生",null,"0851-33282632"]
[20,"市级","安顺市生态环境局",9016,"安顺市西秀区环境监测站","全额事业","01","专业技术人员","从事环境监测工作","综合管理类（A类）","——","901601",1,"本科及以上","学士及以上",null,"一级学科：环境科学与工程类、自然保护与环境生态类；\n二级学科：汉语言文学、秘书学、化学、应用化学、法学","一级学科：环境科学与工程、化学工程与技术、化学、法学；\n二级学科：汉语言文学",null,null,"0851-33727868"]
[21,"市级","安顺市生态环境局",9017,"安顺市镇宁自治县环境监测站","全额事业","01","专业技术人员","从事环境监测工作","综合管理类（A类）","——","901701",1,"本科及以上","学士及以上",null,"一级学科：环境科学与工程类、自然保护与环境生态类；\n二级学科：汉语言文学、秘书学、化学、应用化学、法学","一级学科：环境科学与工程、化学工程与技术、化学、法学；\n二级学科：汉语言文学",null,null,"0851-33727868"]
[22,"市级","安顺市机关事务管理局",9018,"安顺市机关事务管理局","全额事业","01","管理人员","从事综合类工作","综合管理类（A类）","——",{"$f":"D26&G26","v":"901801"},1,"本科及以上","学士及以上",{"$nulls":5},"0851-33285032"]
[23,"市级","安顺市国防动员办公室",9019,"安顺市人防指挥信息保障中心","全额事业","01","管理人员","1.开展全市兵员征集工作，组织应征青年全科目体检、政考，负责预定青年役前管理教育;\n2.协助指导全市役前教育期间思想政治教育工作；3.协助办理退兵，做好拟退人员的教育转化；4.负责征兵政策咨询受理、投诉处理、廉洁征兵监督、督导检查、退役士兵服预备役登记等工作；\n5.协助开展义务兵“三金”督导发放等工作。","综合管理类（A类）","——","901901",1,"本科及以上","学士及以上",null,"一级学科：马克思主义理论类、心理学类","一级学科：马克思主义理论、心理学",null,"中共党员（含预备党员）","冷菲13208531717"]
[24,"市级","安顺市国防动员办公室",9019,"安顺市人防指挥信息保障中心","全额事业","02","管理人员","1.负责协助开展全市直招军士征集工作，主要负责组织直招军士、政审等工作。\n2.档案管理、兵员征召潜力摸底数据统计、分析报告。\n3.全国征兵网维护管理、征兵大数据平台维护管理、兵役登记、五率核心数据采集等。","综合管理类（A类）","——","901902",1,"本科及以上","学士及以上",null,"学科门类：理学、工学","学科门类：理学、工学",null,"安顺市已由政府安排工作的退役士兵（退出消防员）学历放宽到大专","冷菲13208531717"]
[25,"市级","安顺市国防动员办公室",9019,"安顺市人防指挥信息保障中心","全额事业","03","管理人员","负责征兵宣传、政策解读、新闻报道、公众号运维、舆情监测等；","综合管理类（A类）","——","901903",1,"本科及以上","学士及以上",null,"一级学科：新闻传播学类、中国语言文学类","一级学科：新闻传播学\n二级学科：语言学及应用语言学、汉语言文字学",null,"具有1年以上新闻报道工作经历","冷菲13208531717"]
[26,"市级","安顺日报社",9020,"安顺日报社","全额事业","01","专业技术人员","从事新媒体技术工作","综合管理类（A类）","——","902001",1,"本科及以上","学士及以上",null,"一级学科：计算机类","一级学科：计算机科学与技术",null,null,"0851-38119025"]
[27,"市级","安顺日报社",9020,"安顺日报社","全额事业","02","专业技术人员","从事新媒体制作、摄影摄像工作","综合管理类（A类）","——","902002",1,"本科及以上","学士及以上",null,"一级学科：新闻传播学类\n二级学科：广播电视编导、影视摄影与制作","一级学科：新闻传播学\n二级学科：广播电视艺术学、新闻与传播","定向2024年度毕业生",null,"0851-38119025"]
[28,"市级","安顺日报社",9020,"安顺日报社","全额事业","03","专业技术人员","从事新媒体制作、摄影摄像工作","综合管理类（A类）","——","902003",2,"本科及以上","学士及以上",null,"一级学科：新闻传播学类\n二级学科：广播电视编导、影视摄影与制作","一级学科：新闻传播学\n二级学科：广播电视艺术学、新闻与传播",null,null,"0851-38119025"]
[29,"市级","安顺日报社",9020,"安顺日报社","全额事业","04","专业技术人员","从事财务工作","综合管理类（A类）","——","902004",1,"本科及以上","学士及以上",null,"二级学科：会计学、财务管理、财务会计","二级学科：会计学",null,"具有会计从业资格证或初级及以上会计专业技术任职资格证书","0851-38119025"]
[30,"市级","安顺市教育局",9021,"安顺市第一高级中学","全额事业","01","专业技术人员","从事高中物理教学工作","中小学教师类（D类）","中学教师岗位","902101",1,"研究生及以上","硕士及以上",null,null,"一级学科:物理学",null,"1普通话等级二级乙等及以上；\n2.具有高中物理教师资格证。","0851-33223428"]
[31,"市级","安顺市教育局",9021,"安顺市第一高级中学","全额事业","02","专业技术人员","从事高中数学教学工作","中小学教师类（D类）","中学教师岗位","902102",1,"研究生及以上","硕士及以上",null,null,"二级学科:基础数学、计算数学、概率论与数理统计、应用数学",null,"1.普通话等级二级乙等及以上;\n2.具有高中数学教师资格证。","0851-33223428"]
[32,"市级","安顺市教育局",9022,"安顺市民族中学","全额事业","01","专业技术人员","从事高中数学教学工作","中小学教师类（D类）","中学教师岗位","902201",1,"本科及以上","学士及以上",null,"二级学科：数学与应用数学","一级学科：数学\n二级学科：学科教学（数学）",null,"1.普通话等级二级乙等及以上；\n2.具有高中数学教师资格证。","0851-33223428"]
[33,"市级","安顺市教育局",9022,"安顺市民族中学","全额事业","02","专业技术人员","从事高中语文教学工作","中小学教师类（D类）","中学教师岗位","902202",1,"本科及以上","学士及以上",null,"二级学科：汉语言文学、汉语言","一级学科：中国语言文学；\n二级学科：学科教学（语文）",null,"1.普通话等级二级甲等及以上；\n2.具有高中语文教师资格证书。","0851-33223428"]
[34,"市级","安顺市教育局",9023,"安顺市民族中等职业学校","全额事业","01","专业技术人员","从事新能源汽车相关知识的教学工作","中小学教师类（D类）","中学教师岗位","902301",1,"本科及以上","学士及以上",null,"二级学科：新能源汽车工程、智能车辆工程、汽车服务工程","一级学科：机械工程",null,"具有国家职业技能等级证书汽车维修高级工及以上\n","0851-33223428"]
[35,"市级","安顺市教育局",9023,"安顺市民族中等职业学校","全额事业","02","专业技术人员","从事大数据网络营销相关知识的教学工作","中小学教师类（D类）","中学教师岗位","902302",1,"本科及以上","学士及以上",null,"二级学科：市场营销","一级学科：工商管理\n二级学科：企业管理",null,"1.具有国家职业技能等级证书营销师三级及以上；\n2.有2年以上企业工作经历；\n3.普通话等级二级甲等及以上","0851-33223428"]
[36,"市级","安顺市教育局",9024,"安顺市实验中学","全额事业","01","专业技术人员","从事中学语文教学工作","中小学教师类（D类）","中学教师岗位","902401",1,"研究生及以上","硕士及以上",null,null,"一级学科：中国语言文学","定向2024年度毕业生","1.普通话等级二级甲等及以上；\n2.具有高中语文教师资格证","0851-33223428"]
[37,"市级","安顺市教育局",9024,"安顺市实验中学","全额事业","02","专业技术人员","从事中学日语教学工作","中小学教师类（D类）","中学教师岗位","902402",1,"研究生及以上","硕士及以上",null,null,"二级学科：日语语言文学",null,"1.普通话等级二级甲等及以上；\n2.具有高中日语教师资格证","0851-33223428"]
[38,"市级","安顺市教育局",9024,"安顺市实验中学","全额事业","03","专业技术人员","从事中学历史教学工作","中小学教师类（D类）","中学教师岗位","902403",1,"研究生及以上","硕士及以上",null,null,"一级学科：历史学",null,"1.普通话等级二级乙等及以上；\n2.具有高中历史教师资格证","0851-33223428"]
[39,"市级","安顺市教育局",9024,"安顺市实验中学","全额事业","04","专业技术人员","从事中学信息技术教学工作","中小学教师类（D类）","中学教师岗位",{"$f":"D43&G43","v":"902404"},1,"本科及以上","学士及以上",null,"二级学科：计算机科学与技术，智能科学与技术，电子与计算机工程","一级学科：计算机科学与技术","定向2024年度毕业生","1.普通话等级二级乙等及以上；\n2.具有高中信息技术教师资格证","0851-33223428"]
[40,"市级","安顺市教育局",9024,"安顺市实验中学","全额事业","05","专业技术人员","从事学校会计工作","综合管理类（A类）","——","902405",1,"本科及以上","学士及以上",null,"二级学科：会计学、财务管理","二级学科：会计学",null,"具有初级及以上会计专业技术任职资格证书","0851-33223428"]
[41,"市级","安顺市教育局",9025,"安顺市实验学校","全额事业","01","专业技术人员","从事初中地理教学工作","中小学教师类（D类）","中学教师岗位","902501",1,"本科及以上","学士及以上",null,"二级学科：地理科学、自然地理与资源环境、地理信息科学","一级学科：地理学",null,"1.普通话等级二级乙等及以上;\n2.具有初中或高中地理教师资格证书","0851-33223428"]
[42,"市级","安顺市教育局",9025,"安顺市实验学校","全额事业","02","专业技术人员","从事初中英语教学工作","中小学教师类（D类）","中学教师岗位","902502",1,"本科及以上","学士及以上",null,"二级学科：英语","二级学科：英语语言文学",null,"1.普通话等级二级乙等及以上；\n2.具有初中或高中英语教师资格证书","0851-33223428"]
[43,"市级","安顺市教育局",9025,"安顺市实验学校","全额事业","03","专业技术人员","从事小学语文教学工作","中小学教师类（D类）","小学教师岗位","902503",2,"本科及以上","学士及以上",null,"二级学科：汉语言文学、汉语言、汉语国际教育、小学教育","一级学科：中国语言文学",null,"1.普通话等级二级甲等及以上；\n2.具有小学或初中或高中语文教师资格证书","0851-33223428"]
[44,"市级","安顺市教育局",9025,"安顺市实验学校","全额事业","04","专业技术人员","从事小学数学教学工作","中小学教师类（D类）","小学教师岗位","902504",3,"本科及以上","学士及以上",null,"二级学科：数学与应用数学、信息与计算科学、数理基础科学、数据计算及应用、小学教育","一级学科：数学",null,"1.普通话等级二级乙等及以上；\n2.具有小学或初中或高中数学教师资格证书","0851-33223428"]
[45,"市级","安顺市教育局",9025,"安顺市实验学校","全额事业","05","专业技术人员","从事小学数学教学工作","中小学教师类（D类）","小学教师岗位","902505",1,"本科及以上","学士及以上",null,"二级学科：数学与应用数学、信息与计算科学、数理基础科学、数据计算及应用、小学教育","一级学科：数学","定向2024年度毕业生","1.普通话等级二级乙等及以上；\n2.具有小学或初中或高中数学教师资格证书","0851-33223428"]
[46,"市级","安顺市教育局",9025,"安顺市实验学校","全额事业","06","专业技术人员","从事小学体育教学工作","中小学教师类（D类）","小学教师岗位","902506",2,"本科及以上","学士及以上",null,"二级学科：体育教育、运动训练、武术与民族传统体育、运动人体科学","一级学科：体育学",null,"1.普通话等级二级乙等及以上；\n2.具有小学或初中或高中体育教师资格证书","0851-33223428"]
[47,"市级","安顺市教育局",9025,"安顺市实验学校","全额事业","07","专业技术人员","从事小学体育教学工作","中小学教师类（D类）","小学教师岗位",{"$f":"D51&G51","v":"902507"},1,"本科及以上","学士及以上",null,"二级学科：体育教育、运动训练、武术与民族传统体育、运动人体科学","一级学科：体育学","定向2024年度毕业生","1.普通话等级二级乙等及以上；\n2.具有小学或初中或高中体育教师资格证书","0851-33223428"]
[48,"市级","安顺市教育局",9025,"安顺市实验学校","全额事业","08","专业技术人员","从事小学音乐教学工作","中小学教师类（D类）","小学教师岗位","902508",1,"本科及以上","学士及以上",null,"二级学科：音乐表演、音乐学、舞蹈表演、舞蹈学、舞蹈编导","一级学科：音乐与舞蹈学",null,"1.普通话等级二级乙等及以上；\n2.具有小学或初中或高中音乐教师资格证书","0851-33223428"]
[49,"市级","安顺市教育局",9025,"安顺市实验学校","全额事业","09","专业技术人员","从事小学美术教学工作","中小学教师类（D类）","小学教师岗位","902509",1,"本科及以上","学士及以上",null,"二级学科：美术学、绘画、中国画","一级学科：美术学","定向2024年度毕业生","1.普通话等级二级乙等及以上；\n2.具有小学或初中或高中美术教师资格证书。","0851-33223428"]
[50,"市级","安顺市教育局",9025,"安顺市实验学校","全额事业","10","专业技术人员","从事学校档案管理工作","综合管理类（A类）","——","902510",1,"本科及以上","学士及以上",null,"一级学科：图书情报与档案管理类","一级学科：图书馆、情报与档案管理",null,null,"0851-33223428"]
[51,"市级","安顺市教育局",9026,"安顺市第一幼儿园","全额事业","01","管理人员","从事办公室文秘等相关专业","综合管理类（A类）","——","902601",1,"本科及以上","学士及以上",null,"二级学科：汉语言文学、汉语言、应用语言学","二级学科:汉语言文字学、语言学及应用语言学",null,null,"0851-33223428"]
[52,"市级","安顺市教育局",9027,"安顺市第二幼儿园","全额事业","01","专业技术人员","从事幼儿园教育教学工作","中小学教师类（D类）","小学教师岗位","902701",2,"本科及以上","学士及以上",null,"二级学科：学前教育","二级学科：学前教育、学前教育学",null,"1.普通话等级二级甲等及以上；\n2.具有幼儿园教师资格证书。","0851-33223428"]
[53,"市级","安顺市教育局",9027,"安顺市第二幼儿园","全额事业","02","专业技术人员","从事幼儿园教育教学工作","中小学教师类（D类）","小学教师岗位","902702",1,"本科及以上","学士及以上",null,"二级学科：学前教育","二级学科：学前教育、学前教育学","定向2024年度毕业生","1.普通话等级二级甲等及以上；\n2.具有幼儿园教师资格证书。","0851-33223428"]
[54,"市级","安顺市卫生健康局",9028,"安顺市妇幼保健院","差额事业","01","专业技术人员","从事医院普通外科、医疗整形、医疗美容等相关诊疗工作","医疗卫生类（E类）","西医临床岗位","902801",1,"研究生及以上","硕士及以上",null,null,"二级学科：外科学",null,"取得住院医师规范化培训合格证，规培方向为外科（整形外科方向）","0851-33220090"]
[55,"市级","安顺市卫生健康局",9029,"安顺市中医院","差额事业","01","专业技术人员","从事临床医师工作，中医针灸岗位","医疗卫生类（E类）","中医临床岗位","902901",1,"研究生及以上","硕士及以上",null,null,"二级学科：针灸推拿学",null,"取得执业医师资格证及通过住院医师规范化培训合格","0851-38810590"]
[56,"市级","安顺市卫生健康局",9030,"安顺市疾病预防控制中心","全额事业","01","专业技术人员","从事矿业类职业卫生工作","综合管理类（A类）","——","903001",1,"本科及以上","学士及以上",null,"二级学科：采矿工程、矿物加工工程、智能采矿工程","二级学科：采矿工程、矿物加工工程",null,null,"0851-33224789"]
[57,"市级","安顺市卫生健康局",9030,"安顺市疾病预防控制中心","全额事业","02","专业技术人员","从事公共卫生相关工作，如文稿撰写、重要材料审核、机要保密、疾病预防控制信息汇总等相关工作","综合管理类（A类）","——","903002",1,"本科及以上","学士及以上",null,"二级学科：汉语言文学、应用语言学、秘书学、公共事业管理、行政管理","二级学科：中国现当代文学、汉语言文字学、社会医学与卫生事业管理、行政管理、新闻学",null,null,"0851-33224789"]
[58,"市级","安顺市卫生健康局",9031,"安顺市中心血站","全额事业","01","专业技术人员","从事无偿献血者体格检查、体检监护等工作。","医疗卫生类（E类）","西医临床岗位","903101",1,"本科及以上","学士及以上",null,"二级学科：临床医学","二级学科：内科学",null,"取得医师执业资格","0851-33467773"]
[59,"市级","安顺市卫生健康局",9031,"安顺市中心血站","全额事业","02","专业技术人员","从事无偿献血者血液检测工作。","医疗卫生类（E类）","医学技术岗位","903102",1,"本科及以上","学士及以上",null,"二级学科：医学检验、医学检验技术专业\n","二级学科：临床检验诊断学",null,"取得检验师及以上职业资格","0851-33467773"]
[60,"市级","安顺市卫生健康局",9032,"安顺市紧急救援中心","全额事业","01","专业技术人员","从事急救技能培训相关工作","医疗卫生类（E类）","医学技术岗位","903201",1,"本科及以上","学士及以上",null,"一级学科：基础医学类","学科门类：医学",null,null,"0851—\n33411200"]
[61,"市级","安顺市卫生健康局",9033,"安顺市人民医院","差额事业","01","专业技术人员","从事骨科（显微外科）临床诊疗工作","医疗卫生类（E类）","西医临床岗位","903301",2,"本科及以上","学士及以上",null,"二级学科：临床医学","二级学科：外科学","定向2024年度毕业生","本科学历需通过骨科专业基地住院医师规范化培训并取得合格证","0851-33325522"]
[62,"市级","安顺市卫生健康局",9033,"安顺市人民医院","差额事业","02","专业技术人员","从事胃肠外科临床诊疗工作","医疗卫生类（E类）","西医临床岗位","903302",1,"研究生及以上","硕士及以上",null,null,"二级学科：外科学",null,null,"0851-33325522"]
[63,"市级","安顺市卫生健康局",9033,"安顺市人民医院","差额事业","03","专业技术人员","从事泌尿外科临床诊疗工作","医疗卫生类（E类）","西医临床岗位","903303",1,"本科及以上","学士及以上",null,"二级学科：临床医学","二级学科：外科学","定向2024年度毕业生","本科学历需通过泌尿外科专业基地住院医师规范化培训并取得合格证","0851-33325522"]
[64,"市级","安顺市卫生健康局",9033,"安顺市人民医院","差额事业","04","专业技术人员","从事儿科临床诊疗工作","医疗卫生类（E类）","西医临床岗位","903304",3,"本科及以上","学士及以上",null,"二级学科：临床医学","二级学科：儿科学","定向2024年度毕业生","本科学历需通过儿科专业基地住院医师规范化培训并取得合格证","0851-33325522"]
[65,"市级","安顺市卫生健康局",9033,"安顺市人民医院","差额事业","05","专业技术人员","从事产科临床诊疗工作","医疗卫生类（E类）","西医临床岗位","903305",1,"本科及以上","学士及以上",null,"二级学科：临床医学","二级学科：妇产科学",null,"本科学历需通过妇产科专业基地住院医师规范化培训并取得合格证","0851-33325522"]
[66,"市级","安顺市卫生健康局",9033,"安顺市人民医院","差额事业","06","专业技术人员","从事临床药学工作","医疗卫生类（E类）","西医临床岗位","903306",1,"研究生及以上","硕士及以上",null,null,"二级学科：临床药学",null,null,"0851-33325522"]
[67,"市级","安顺市卫生健康局",9033,"安顺市人民医院","差额事业","07","专业技术人员","从事肿瘤科临床诊疗工作","医疗卫生类（E类）","西医临床岗位","903307",1,"研究生及以上","硕士及以上",null,null,"二级学科：肿瘤学","定向2024年度毕业生",null,"0851-33325522"]
[68,"市级","安顺市卫生健康局",9033,"安顺市人民医院","差额事业","08","专业技术人员","从事全科医学科临床诊疗工作","医疗卫生类（E类）","西医临床岗位","903308",1,"研究生及以上","硕士及以上",null,null,"二级学科：全科医学、内科学",null,null,"0851-33325522"]
[69,"市级","安顺市卫生健康局",9033,"安顺市人民医院","差额事业","09","专业技术人员","从事麻醉科工作","医疗卫生类（E类）","西医临床岗位",{"$f":"D73&G73","v":"903309"},1,"本科及以上","学士及以上",null,"二级学科：麻醉学","二级学科：麻醉学",null,"本科学历需通过麻醉专业基地住院医师规范化培训并取得合格证","0851-33325522"]
[70,"市级","安顺市卫生健康局",9033,"安顺市人民医院","差额事业","10","专业技术人员","从事超声诊断工作","医疗卫生类（E类）","西医临床岗位","903310",1,"本科及以上","学士及以上",null,"二级学科：临床医学","二级学科：超声医学",null,"本科学历需通过超声专业基地住院医师规范化培训并取得合格证","0851-33325522"]
[71,"市级","安顺市卫生健康局",9033,"安顺市人民医院","差额事业","11","专业技术人员","从事急诊科临床诊疗工作","医疗卫生类（E类）","西医临床岗位","903311",1,"研究生及以上","硕士及以上",null,null,"二级学科：急诊医学","定向2024年度毕业生",null,"0851-33325522"]
[72,"市级","安顺市卫生健康局",9033,"安顺市人民医院","差额事业","12","专业技术人员","从事呼吸与危重症医学科临床诊疗工作","医疗卫生类（E类）","西医临床岗位","903312",1,"研究生及以上","硕士及以上",null,null,"二级学科：内科学",null,null,"0851-33325522"]
[73,"西秀区","安顺市西秀区委宣传部",1001,"安顺市西秀区互联网舆情监测中心","全额事业","01","专业技术人员","负责言论监控、网站信息审查等相关工作","综合管理类（A类）","——","100101",1,"本科及以上","学士及以上",null,"二级学科：数据科学与大数据技术、大数据管理与应用、信息安全、网络与新媒体","一级学科：信息与通信工程、计算机科学与技术、电子信息",null,"中共党员（含预备党员）","0851-33460221"]
[74,"西秀区","安顺市西秀区委宣传部",1002,"安顺市西秀区融媒体中心","全额事业","01","专业技术人员","新媒体记者","综合管理类（A类）","——","100201",1,"本科及以上","学士及以上",null,"二级学科：新闻学、广播电视学、传播学、网络与新媒体、广播电视编导、视觉传达设计、数字媒体技术","一级学科：新闻传播学、新闻与传播",null,"1.限男性；\n2.2年基层工作经历。","0851-33460221"]
[75,"西秀区","安顺市西秀区委宣传部",1002,"安顺市西秀区融媒体中心","全额事业","02","专业技术人员","新媒体记者","综合管理类（A类）","——","100202",1,"本科及以上","学士及以上",null,"二级学科：新闻学、广播电视学、传播学、网络与新媒体、广播电视编导、视觉传达设计、数字媒体技术","一级学科：新闻传播学、新闻与传播",null,"1.限女性；\n2.2年基层工作经历。","0851-33460221"]
[76,"西秀区","安顺市西秀区自然资源局",1003,"安顺市西秀区规划设计所","全额事业","01","专业技术人员","从事规划设计、管理、研究等相关工作。","综合管理类（A类）","——","100301",1,"本科及以上","学士及以上",null,"二级学科：城乡规划、建筑学、测绘工程、土地资源管理","一级学科：建筑学、测绘科学与技术、城乡规划学\n二级学科：土地资源管理、市政工程",null,"限男性","0851-33460221"]
[77,"西秀区","安顺市西秀区自然资源局",1003,"安顺市西秀区规划设计所","全额事业","02","专业技术人员","从事规划设计、管理、研究等相关工作。","综合管理类（A类）","——","100302",1,"本科及以上","学士及以上",null,"二级学科：城乡规划、建筑学、测绘工程、土地资源管理","一级学科：建筑学、测绘科学与技术、城乡规划学\n二级学科：土地资源管理、市政工程",null,"限女性","0851-33460221"]
[78,"西秀区","安顺市西秀区水务局",1004,"安顺市西秀区节水供水排水站","全额事业","01","专业技术人员","负责生活、生产经营和生态环境用水的统筹和保障等相关工作","综合管理类（A类）","——","100401",1,"本科及以上","学士及以上",null,"二级学科：水利水电工程、给排水科学与工程、水文与水资源工程","一级学科：水利工程",null,null,"0851-33460221"]
[79,"西秀区","安顺市西秀区农业农村局",1005,"安顺市西秀区农经站","全额事业","01","专业技术人员","从事农业技术推广及植物保护方面等相关工作","综合管理类（A类）","——","100501",1,"本科及以上","学士及以上",null,"二级学科：植物保护、植物科学与技术、农学、动物医学、动物科学、种子科学与工程、设施农业科学与工程","一级学科：植物保护、畜牧学、兽医学",null,"限男性","0851-33460221"]
[80,"西秀区","安顺市西秀区农业农村局",1005,"安顺市西秀区农经站","全额事业","02","专业技术人员","从事农业技术推广及植物保护方面等相关工作","综合管理类（A类）","——","100502",1,"本科及以上","学士及以上",null,"二级学科：植物保护、植物科学与技术、农学、动物医学、动物科学、种子科学与工程、设施农业科学与工程","一级学科：植物保护、畜牧学、兽医学",null,"限女性","0851-33460221"]
[81,"西秀区","安顺市西秀区工业和信息化局",1006,"安顺市西秀区煤矿安全生产监督管理局","全额事业","01","专业技术人员","从事煤矿井下安全监管工作","综合管理类（A类）","——","100601",1,"本科及以上","学士及以上",null,"二级学科：采矿工程、安全工程、电气工程及其自动化、电气工程与智能控制","二级学科：采矿工程、矿业工程，安全技术及工程、地质工程、安全科学与工程",null,null,"0851-33460221"]
[82,"西秀区","安顺市西秀区应急局",1007,"安顺市西秀区应急值守中心","全额事业","01","管理人员","主要从事安全生产突发事件的处置及综合监督管理工作","综合管理类（A类）","——","100701",1,"本科及以上","学士及以上",null,"二级学科：安全工程、采矿工程、地质工程","一级学科：地质资源与地质工程、矿业工程",null,null,"0851-33460221"]
[83,"西秀区","安顺市西秀区教育和科技局",1008,"安顺市西秀区第一幼儿园","全额事业","01","专业技术人员","从事幼儿园保育教育工作。","中小学教师类（D类）","小学教师岗位","100801",3,"本科及以上","学士及以上",null,"二级学科：学前教育","二级学科：学前教育学、学前教育",null,"具有幼儿园学科教师资格证","0851-33460221"]
[84,"西秀区","安顺市西秀区教育和科技局",1009,"安顺市西秀区第二幼儿园","全额事业","01","专业技术人员","从事幼儿园保育教育工作。","中小学教师类（D类）","小学教师岗位","100901",2,"本科及以上","学士及以上",null,"二级学科：学前教育","二级学科：学前教育学、学前教育",null,"具有幼儿园学科教师资格证","0851-33460221"]
[85,"西秀区","安顺市西秀区教育和科技局",1010,"安顺市西秀区第三幼儿园","全额事业","01","专业技术人员","从事幼儿园保育教育工作。","中小学教师类（D类）","小学教师岗位","101001",4,"本科及以上","学士及以上",null,"二级学科：学前教育","二级学科：学前教育学、学前教育",null,"具有幼儿园学科教师资格证","0851-33460221"]
[86,"西秀区","安顺市西秀区教育和科技局",1011,"安顺市西秀区第四幼儿园","全额事业","01","专业技术人员","从事幼儿园保育教育工作。","中小学教师类（D类）","小学教师岗位","101101",1,"本科及以上","学士及以上",null,"二级学科：学前教育","二级学科：学前教育学、学前教育",null,"具有幼儿园学科教师资格证","0851-33460221"]
[87,"西秀区","安顺市西秀区教育和科技局",1012,"安顺市西秀区第五幼儿园","全额事业","01","专业技术人员","从事幼儿园保育教育工作。","中小学教师类（D类）","小学教师岗位","101201",2,"本科及以上","学士及以上",null,"二级学科：学前教育","二级学科：学前教育学、学前教育",null,"具有幼儿园学科教师资格证","0851-33460221"]
[88,"西秀区","安顺市西秀区教育和科技局",1013,"安顺市第五小学","全额事业","01","专业技术人员","从事小学语文教育教学工作。","中小学教师类（D类）","小学教师岗位","101301",2,"本科及以上","学士及以上",null,"二级学科：汉语言文学、小学教育、汉语言","一级学科：中国语言文学\n二级学科：学科教学（语文）、小学教育",null,"具有小学及以上语文学科教师资格证","0851-33460221"]
[89,"西秀区","安顺市西秀区教育和科技局",1013,"安顺市第五小学","全额事业","02","专业技术人员","从事小学数学教育教学工作。","中小学教师类（D类）","小学教师岗位","101302",2,"本科及以上","学士及以上",null,"二级学科：数学与应用数学、小学教育、数学教育、数学","一级学科：数学\n二级学科：学科教学（数学）、小学教育",null,"具有小学及以上数学学科教师资格证。","0851-33460221"]
[90,"西秀区","安顺市西秀区教育和科技局",1013,"安顺市第五小学","全额事业","03","专业技术人员","从事小学体育教育教学工作。","中小学教师类（D类）","小学教师岗位","101303",1,"本科及以上","学士及以上",null,"二级学科：体育教育、体育与健康教育","一级学科：体育学\n二级学科：学科教学（体育）",null,"具有小学及以上体育学科教师资格证。","0851-33460221"]
[91,"西秀区","安顺市西秀区教育和科技局",1014,"安顺市第六小学","全额事业","01","专业技术人员","从事小学语文教育教学工作。","中小学教师类（D类）","小学教师岗位","101401",1,"本科及以上","学士及以上",null,"二级学科：汉语言文学、小学教育、汉语言","一级学科：中国语言文学\n二级学科：学科教学（语文）、小学教育",null,"具有小学及以上语文学科教师资格证。","0851-33460221"]
[92,"西秀区","安顺市西秀区教育和科技局",1014,"安顺市第六小学","全额事业","02","专业技术人员","从事小学科学教育教学工作。","中小学教师类（D类）","小学教师岗位","101402",1,"本科及以上","学士及以上",null,"二级学科：科学教育","一级学科：物理学、地理学、化学、生物学\n二级学科：学科教学（物理）、学科教学（化学）、学科教学（生物）、学科教学（地理）、科学与技术教育",null,"具有小学及以上科学学科或中学及以上物理、地理、化学、生物、信息技术教育学科教师资格证","0851-33460221"]
[93,"西秀区","安顺市西秀区教育和科技局",1015,"安顺市第七小学","全额事业","01","专业技术人员","从事小学语文教育教学工作。","中小学教师类（D类）","小学教师岗位","101501",2,"本科及以上","学士及以上",null,"二级学科：汉语言文学、小学教育、汉语言","一级学科：中国语言文学\n二级学科：学科教学（语文）、小学教育",null,"具有小学及以上语文学科教师资格证。","0851-33460221"]
[94,"西秀区","安顺市西秀区教育和科技局",1016,"安顺市第九小学","全额事业","01","专业技术人员","从事小学语文教育教学工作。","中小学教师类（D类）","小学教师岗位","101601",1,"本科及以上","学士及以上",null,"二级学科：汉语言文学、小学教育、汉语言","一级学科：中国语言文学\n二级学科：学科教学（语文）、小学教育",null,"具有小学及以上语文学科教师资格证。","0851-33460221"]
[95,"西秀区","安顺市西秀区教育和科技局",1016,"安顺市第九小学","全额事业","02","专业技术人员","从事小学数学教育教学工作。","中小学教师类（D类）","小学教师岗位","101602",1,"本科及以上","学士及以上",null,"二级学科：数学与应用数学、小学教育、数学教育、数学","一级学科：数学\n二级学科：学科教学（数学）、小学教育",null,"具有小学及以上数学学科教师资格证。","0851-33460221"]
[96,"西秀区","安顺市西秀区教育和科技局",1016,"安顺市第九小学","全额事业","03","专业技术人员","从事小学科学教育教学工作。","中小学教师类（D类）","小学教师岗位","101603",1,"本科及以上","学士及以上",null,"二级学科：科学教育","一级学科：物理学、地理学、化学、生物学\n二级学科：学科教学（物理）、学科教学（化学）、学科教学（生物）、学科教学（地理）、科学与技术教育",null,"具有小学及以上科学学科或中学及以上物理、地理、化学、生物、信息技术教育学科教师资格证","0851-33460221"]
[97,"西秀区","安顺市西秀区教育和科技局",1016,"安顺市第九小学","全额事业","04","专业技术人员","从事小学心理健康教育教学工作。","中小学教师类（D类）","小学教师岗位","101604",1,"本科及以上","学士及以上",null,"二级学科：心理学、应用心理学、心理健康教育","一级学科：心理学\n二级学科：应用心理、心理健康教育",null,"具有小学及以上心理健康学科教师资格证。","0851-33460221"]
[98,"西秀区","安顺市西秀区教育和科技局",1016,"安顺市第九小学","全额事业","05","专业技术人员","从事小学信息技术教育教学工作。","中小学教师类（D类）","小学教师岗位","101605",1,"本科及以上","学士及以上",null,"二级学科：计算机科学与技术、信息技术教育","一级学科：计算机科学与技术",null,"具有小学及以上信息技术学科教师资格证。","0851-33460221"]
[99,"西秀区","安顺市西秀区教育和科技局",1017,"安顺市西秀区第十三小学","全额事业","01","专业技术人员","从事小学语文教育教学工作。","中小学教师类（D类）","小学教师岗位","101701",1,"本科及以上","学士及以上",null,"二级学科：汉语言文学、小学教育、汉语言","一级学科：中国语言文学\n二级学科：学科教学（语文）、小学教育",null,"具有小学及以上语文学科教师资格证。","0851-33460221"]
[100,"西秀区","安顺市西秀区教育和科技局",1017,"安顺市西秀区第十三小学","全额事业","02","专业技术人员","从事小学数学教育教学工作。","中小学教师类（D类）","小学教师岗位","101702",1,"本科及以上","学士及以上",null,"二级学科：数学与应用数学、小学教育、数学教育、数学","一级学科：数学\n二级学科：学科教学（数学）、小学教育",null,"具有小学及以上数学学科教师资格证。","0851-33460221"]
[101,"西秀区","安顺市西秀区教育和科技局",1018,"安顺市西秀区第十四小学","全额事业","01","专业技术人员","从事小学数学教育教学工作。","中小学教师类（D类）","小学教师岗位","101801",1,"本科及以上","学士及以上",null,"二级学科：数学与应用数学、小学教育、数学教育、数学","一级学科：数学\n二级学科：学科教学（数学）、小学教育",null,"具有小学及以上数学学科教师资格证。","0851-33460221"]
[102,"西秀区","安顺市西秀区教育和科技局",1019,"安顺市西秀区第十五小学","全额事业","01","专业技术人员","从事小学科学教育教学工作。","中小学教师类（D类）","小学教师岗位","101901",1,"本科及以上","学士及以上",null,"二级学科：科学教育","一级学科：物理学、地理学、化学、生物学\n二级学科：学科教学（物理）、学科教学（化学）、学科教学（生物）、学科教学（地理）、科学与技术教育",null,"具有小学及以上科学学科或中学及以上物理、地理、化学、生物、信息技术教育学科教师资格证","0851-33460221"]
[103,"西秀区","安顺市西秀区教育和科技局",1020,"安顺市凤仪小学","全额事业","01","专业技术人员","从事小学数学教育教学工作。","中小学教师类（D类）","小学教师岗位","102001",1,"本科及以上","学士及以上",null,"二级学科：数学与应用数学、小学教育、数学教育、数学","一级学科：数学\n二级学科：学科教学（数学）、小学教育",null,"具有小学及以上数学学科教师资格证。","0851-33460221"]
[104,"西秀区","安顺市西秀区教育和科技局",1021,"安顺市若飞小学","全额事业","01","专业技术人员","从事小学科学教育教学工作。","中小学教师类（D类）","小学教师岗位","102101",1,"本科及以上","学士及以上",null,"二级学科：科学教育","一级学科：物理学、地理学、化学、生物学\n二级学科：学科教学（物理）、学科教学（化学）、学科教学（生物）、学科教学（地理）、科学与技术教育",null,"具有小学及以上科学学科或中学及以上物理、地理、化学、生物、信息技术教育学科教师资格证","0851-33460221"]
[105,"西秀区","安顺市西秀区教育和科技局",1021,"安顺市若飞小学","全额事业","02","专业技术人员","从事小学心理健康教育教学工作。","中小学教师类（D类）","小学教师岗位","102102",1,"本科及以上","学士及以上",null,"二级学科：心理学、应用心理学、心理健康教育","一级学科：心理学\n二级学科：应用心理、心理健康教育",null,"具有小学及以上心理健康学科教师资格证。","0851-33460221"]
[106,"西秀区","安顺市西秀区教育和科技局",1022,"安顺市西秀区虹湖小学","全额事业","01","专业技术人员","从事小学数学教育教学工作。","中小学教师类（D类）","小学教师岗位","102201",1,"本科及以上","学士及以上",null,"二级学科：数学与应用数学、小学教育、数学教育、数学","一级学科：数学\n二级学科：学科教学（数学）、小学教育",null,"具有小学及以上数学学科教师资格证。","0851-33460221"]
[107,"西秀区","安顺市西秀区教育和科技局",1023,"安顺凤凰学校","全额事业","01","专业技术人员","从事小学语文教育教学工作。","中小学教师类（D类）","小学教师岗位","102301",2,"本科及以上","学士及以上",null,"二级学科：汉语言文学、小学教育、汉语言","一级学科：中国语言文学\n二级学科：学科教学（语文）、小学教育",null,"具有小学及以上语文学科教师资格证。","0851-33460221"]
[108,"西秀区","安顺市西秀区教育和科技局",1023,"安顺凤凰学校","全额事业","02","专业技术人员","从事小学数学教育教学工作。","中小学教师类（D类）","小学教师岗位","102302",1,"本科及以上","学士及以上",null,"二级学科：数学与应用数学、小学教育、数学教育、数学","一级学科：数学\n二级学科：学科教学（数学）、小学教育",null,"具有小学及以上数学学科教师资格证。","0851-33460221"]
[109,"西秀区","安顺市西秀区教育和科技局",1023,"安顺凤凰学校","全额事业","03","专业技术人员","从事小学英语教育教学工作。","中小学教师类（D类）","小学教师岗位","102303",1,"本科及以上","学士及以上",null,"二级学科：英语、小学教育","二级学科：英语语言文学、学科教学（英语）、小学教育",null,"具有小学及以上英语学科教师资格证。","0851-33460221"]
[110,"西秀区","安顺市西秀区教育和科技局",1024,"安顺市第六中学","全额事业","01","专业技术人员","从事初中语文教育教学工作。","中小学教师类（D类）","中学教师岗位","102401",1,"本科及以上","学士及以上",null,"二级学科：汉语言文学、汉语言","一级学科：中国语言文学\n二级学科：学科教学（语文）",null,"具有初中及以上语文学科教师资格证。","0851-33460221"]
[111,"西秀区","安顺市西秀区教育和科技局",1024,"安顺市第六中学","全额事业","02","专业技术人员","从事初中英语教育教学工作。","中小学教师类（D类）","中学教师岗位","102402",1,"本科及以上","学士及以上",null,"二级学科：英语","二级学科：英语语言文学、学科教学（英语）",null,"具有初中及以上英语学科教师资格证。","0851-33460221"]
[112,"西秀区","安顺市西秀区教育和科技局",1025,"安顺市第九中学","全额事业","01","专业技术人员","从事初中英语教育教学工作。","中小学教师类（D类）","中学教师岗位","102501",2,"本科及以上","学士及以上",null,"二级学科：英语","二级学科：英语语言文学、学科教学（英语）",null,"具有初中及以上英语学科教师资格证。","0851-33460221"]
[113,"西秀区","安顺市西秀区教育和科技局",1026,"安顺市西秀区民族中学","全额事业","01","专业技术人员","从事初中语文教育教学工作。","中小学教师类（D类）","中学教师岗位","102601",1,"本科及以上","学士及以上",null,"二级学科：汉语言文学、汉语言","一级学科：中国语言文学\n二级学科：学科教学（语文）",null,"具有初中及以上语文学科教师资格证。","0851-33460221"]
[114,"西秀区","安顺市西秀区教育和科技局",1026,"安顺市西秀区民族中学","全额事业","02","专业技术人员","从事初中物理教育教学工作。","中小学教师类（D类）","中学教师岗位","102602",1,"本科及以上","学士及以上",null,"二级学科：物理学、应用物理学、物理教育","一级学科：物理学\n二级学科：学科教学（物理）",null,"具有初中及以上物理学科教师资格证。","0851-33460221"]
[115,"西秀区","安顺市西秀区教育和科技局",1027,"安顺市西秀区铁路九年制学校","全额事业","01","专业技术人员","从事初中数学教育教学工作。","中小学教师类（D类）","中学教师岗位","102701",1,"本科及以上","学士及以上",null,"二级学科：数学与应用数学、数学教育、数学","一级学科：数学\n二级学科：学科教学（数学）",null,"具有初中及以上数学学科教师资格证。","0851-33460221"]
[116,"西秀区","安顺市西秀区教育和科技局",1027,"安顺市西秀区铁路九年制学校","全额事业","02","专业技术人员","从事初中化学教育教学工作。","中小学教师类（D类）","中学教师岗位","102702",1,"本科及以上","学士及以上",null,"二级学科：化学、应用化学、化学教育","一级学科：化学\n二级学科：学科教学（化学）",null,"具有初中及以上化学学科教师资格证。","0851-33460221"]
[117,"西秀区","安顺市西秀区教育和科技局",1028,"安顺市西秀区安大学校","全额事业","01","专业技术人员","从事小学数学教育教学工作。","中小学教师类（D类）","小学教师岗位","102801",2,"本科及以上","学士及以上",null,"二级学科：数学与应用数学、小学教育、数学教育、数学","一级学科：数学\n二级学科：学科教学（数学）、小学教育",null,"具有小学及以上数学学科教师资格证。","0851-33460221"]
[118,"西秀区","安顺市西秀区教育和科技局",1028,"安顺市西秀区安大学校","全额事业","02","专业技术人员","从事小学语文教育教学工作。","中小学教师类（D类）","小学教师岗位","102802",1,"本科及以上","学士及以上",null,"二级学科：汉语言文学、小学教育、汉语言","一级学科：中国语言文学\n二级学科：学科教学（语文）、小学教育",null,"具有小学及以上语文学科教师资格证。","0851-33460221"]
[119,"西秀区","安顺市西秀区教育和科技局",1029,"安顺市西秀区特殊教育学校","全额事业","01","专业技术人员","从事特殊教育教学工作。","中小学教师类（D类）","小学教师岗位","102901",1,"本科及以上","学士及以上",null,"二级学科：特殊教育","二级学科：特殊教育、特殊教育学",null,"具有特殊教学学科教师资格证。","0851-33460221"]
[120,"西秀区","安顺市西秀区卫生健康局",1030,"安顺市西秀区人民医院","差额事业","01","专业技术人员","从事甲乳胃肠外科诊疗工作","医疗卫生类（E类）","西医临床岗位","103001",1,"本科及以上","学士及以上",null,"二级学科：临床医学","二级学科：外科学",null,"1.外科或胃肠外科或乳腺甲状腺外科专业住院医师规范化培训合格证；\n2.执业医师资格证书。","0851-33460221"]
[121,"西秀区","安顺市西秀区卫生健康局",1030,"安顺市西秀区人民医院","差额事业","02","专业技术人员","从事呼吸内科诊疗工作","医疗卫生类（E类）","西医临床岗位","103002",1,"本科及以上","学士及以上",null,"二级学科：临床医学","二级学科：内科学",null,"1.内科或心血管内科或内分泌科专业住院医师规范化培训合格证；\n2.执业医师资格证书。","0851-33460221"]
[122,"西秀区","安顺市西秀区卫生健康局",1030,"安顺市西秀区人民医院","差额事业","03","专业技术人员","从事口腔正畸诊疗工作","医疗卫生类（E类）","西医临床岗位","103003",1,"本科及以上","学士及以上",null,"二级学科：口腔医学","二级学科：口腔临床医学",null,"1.口腔正畸科专业住院医师规范化培训合格证\n2.执业医师资格证书","0851-33460221"]
[123,"西秀区","安顺市西秀区卫生健康局",1031,"安顺市西秀区妇幼保健计划生育服务中心","全额事业","01","专业技术人员","从事临床内科诊疗工作","医疗卫生类（E类）","西医临床岗位","103101",1,"本科及以上",null,null,"二级学科：临床医学","二级学科：内科学",null,"1.执业医师及以上专业技术资格证书;\n2.医师执业证书（注册范围：内科）","0851-33460221"]
[124,"西秀区","安顺市西秀区卫生健康局",1031,"安顺市西秀区妇幼保健计划生育服务中心","全额事业","02","专业技术人员","从事临床麻醉科诊疗工作","医疗卫生类（E类）","西医临床岗位","103102",1,"大专及以上",null,"二级学科：临床医学","二级学科：麻醉学","二级学科：麻醉学",null,"执业医师及以上专业技术资格证书","0851-33460221"]
[125,"西秀区","安顺市西秀区卫生健康局",1031,"安顺市西秀区妇幼保健计划生育服务中心","全额事业","03","专业技术人员","从事眼科诊疗工作","医疗卫生类（E类）","西医临床岗位","103103",1,"大专及以上",null,"二级学科：临床医学","二级学科：临床医学","二级学科：眼科学",null,"1.执业医师及以上专业技术资格证书;\n2.医师执业证书（注册范围：眼科）","0851-33460221"]
[126,"西秀区","安顺市西秀区卫生健康局",1031,"安顺市西秀区妇幼保健计划生育服务中心","全额事业","04","专业技术人员","从事临床诊疗工作","医疗卫生类（E类）","西医临床岗位","103104",1,"本科及以上","学士及以上",null,"二级学科：临床医学","一级学科：临床医学",null,"1.具有执业医师及以上专业技术资格证书；\n2.该岗位招聘人员需派驻基层服务。取得住院医师规范化培训合格证书后须到西秀区乡镇卫生院服务3年","0851-33460221"]
[127,"西秀区","安顺市西秀区卫生健康局",1032,"安顺市西秀区南街街道社区卫生服务中心","全额事业","01","专业技术人员","从事临床诊疗工作","医疗卫生类（E类）","西医临床岗位","103201",1,"本科及以上","学士及以上",null,"二级学科：临床医学","一级学科：临床医学",null,"1.全科专业住院医师规范化培训合格证；\n2.执业医师资格证书","0851-33460221"]
[128,"西秀区","安顺市西秀区卫生健康局",1033,"安顺市西秀区西街街道社区卫生服务中心","全额事业","01","专业技术人员","从事临床诊疗工作","医疗卫生类（E类）","西医临床岗位","103301",1,"本科及以上",null,null,"二级学科：临床医学","一级学科：临床医学",null,"内科主治医师及以上专业技术资格证书","0851-33460221"]
[129,"西秀区","安顺市西秀区卫生健康局",1034,"安顺市西秀区北街街道社区卫生服务中心","全额事业","01","专业技术人员","从事妇科相关工作","医疗卫生类（E类）","西医临床岗位","103401",1,"本科及以上","学士及以上",null,"二级学科：临床医学","二级学科：妇产科学",null,"1.执业医师及以上专业技术资格证书;\n2.医师执业证书（注册范围：妇产科）","0851-33460221"]
[130,"西秀区","安顺市西秀区卫生健康局",1035,"安顺市西秀区华西街道卫生院","全额事业","01","专业技术人员","从事临床诊疗工作","医疗卫生类（E类）","西医临床岗位","103501",1,"本科及以上",null,null,"二级学科：临床医学","二级学科：内科学",null,"1.执业医师及以上专业技术资格证书;\n2.医师执业证书（注册范围：内科）","0851-33460221"]
[131,"西秀区","安顺市西秀区卫生健康局",1036,"安顺市西秀区蔡官镇卫生院","全额事业","01","专业技术人员","从事口腔临床工作","医疗卫生类（E类）","西医临床岗位","103601",1,"大专及以上",null,"二级学科：口腔医学","二级学科：口腔医学","二级学科：口腔临床医学",null,"1.执业医师及以上专业技术资格证书;\n2.医师执业证书（注册范围：口腔）","0851-33460221"]
[132,"西秀区","安顺市西秀区卫生健康局",1037,"安顺市西秀区大西桥镇卫生院","全额事业","01","专业技术人员","从事口腔临床工作","医疗卫生类（E类）","西医临床岗位","103701",1,"大专及以上",null,"二级学科：口腔医学","二级学科：口腔医学","二级学科：口腔临床医学",null,"1.执业助理医师及以上专业技术资格证书；\n2.医师执业证书（注册范围：口腔）","0851-33460221"]
[133,"西秀区","安顺市西秀区卫生健康局",1038,"安顺市西秀区双堡镇卫生院","全额事业","01","专业技术人员","从事口腔临床工作","医疗卫生类（E类）","西医临床岗位",{"$f":"D137&G137","v":"103801"},1,"大专及以上",null,"二级学科：口腔医学","二级学科：口腔医学","二级学科：口腔临床医学",null,"1.执业助理医师及以上专业技术资格证书；\n2.医师执业证书（注册范围：口腔）","0851-33460221"]
[134,"西秀区","安顺市西秀区卫生健康局",1039,"安顺市西秀区七眼桥镇卫生院","全额事业","01","专业技术人员","从事影像科日常工作","医疗卫生类（E类）","医学技术岗位","103901",1,"本科及以上",null,null,"二级学科：医学影像学","二级学科：影像医学与核医学",null,"1.执业医师及以上专业技术资格证书；\n2.医师执业证书（注册范围：医学影像和放射治疗）","0851-33460221"]
[135,"西秀区","安顺市西秀区卫生健康局",1040,"安顺市西秀区宁谷镇卫生院","全额事业","01","专业技术人员","从事外科临床诊疗工作","医疗卫生类（E类）","西医临床岗位","104001",1,"大专及以上",null,"二级学科：临床医学","二级学科：临床医学","二级学科：外科学",null,"1.执业助理医师及以上专业技术资格证书；\n2.医师执业证书（注册范围：外科）","0851-33460221"]
[136,"西秀区","安顺市西秀区卫生健康局",1041,"安顺市西秀区东屯乡卫生院","全额事业","01","专业技术人员","从事中西医结合相关工作","医疗卫生类（E类）","中医临床岗位","104101",1,"大专及以上",null,"二级学科：中西医结合","二级学科：中西医临床医学","二级学科：中西医结合临床",null,"执业医师及以上专业技术资格证书","0851-33460221"]
[137,"西秀区","安顺市西秀区卫生健康局",1042,"安顺市西秀区岩腊苗族布依族乡卫生院","全额事业","01","专业技术人员","从事中医临床诊疗工作","医疗卫生类（E类）","中医临床岗位","104201",1,"大专及以上",null,"二级学科：中医学","二级学科：中医学","二级学科：中医内科学、中医外科学、针灸推拿学、中医诊断学",null,"执业医师及以上专业技术资格证书","0851-33460221"]
[138,"西秀区","安顺市西秀区卫生健康局",1043,"安顺市西秀区杨武布依族苗族乡卫生院","全额事业","01","专业技术人员","从事妇产科临床相关工作","医疗卫生类（E类）","西医临床岗位","104301",1,"本科及以上",null,null,"二级学科：临床医学","二级学科：妇产科学",null,"1.执业医师及以上专业技术资格证书；\n2.医师执业证书（注册范围：妇产科）","0851-33460221"]
[139,"西秀区","安顺市西秀区卫生健康局",1044,"安顺市西秀区鸡场布依族苗族乡卫生院","全额事业","01","专业技术人员","从事中医临床诊疗工作","医疗卫生类（E类）","中医临床岗位","104401",1,"大专及以上",null,"二级学科：中医学、针灸推拿","二级学科：中医学、针灸推拿学","二级学科：中医诊断学、针灸推拿学",null,"执业助理医师及以上专业技术资格证书","0851-33460221"]
[140,"西秀区","安顺市西秀区黄腊布依族苗族乡人民政府",1045,"安顺市西秀区黄腊布依族苗族乡林业和环境保护工作站","全额事业","01","专业技术人员","从事林业发展、农林经济、环境保护等相关工作","综合管理类（A类）","——","104501",1,"本科及以上","学士及以上",null,"一级学科：植物生产类、林学类、自然保护与环境生态类、环境科学与工程类","一级学科：林学、农业资源与环境、植物保护、水土保持与荒漠化防治学、林业、环境科学与工程",null,null,"0851-33460221"]
[141,"西秀区","安顺市西秀区黄腊布依族苗族乡人民政府",1046,"安顺市西秀区黄腊布依族苗族乡安全生产监督管理站","全额事业","01","管理人员","从事安全生产监督管理等服务工作","综合管理类（A类）","——","104601",1,"本科及以上",{"$nulls":6},"0851-33460221"]
[142,"西秀区","安顺市西秀区黄腊布依族苗族乡人民政府",1047,"安顺市西秀区黄腊布依族苗族乡村镇建设管理站","全额事业","01","管理人员","从事村镇规划建设、综合管理等相关工作","综合管理类（A类）","——","104701",1,"大专及以上",{"$nulls":4},"定向西秀区（不含经济技术开发区）“基层服务项目人员”","本单位最低服务年限5年","0851-33460221"]
[143,"西秀区","安顺市西秀区岩腊苗族布依族乡人民政府",1048,"安顺市西秀区岩腊苗族布依族乡农业服务中心","全额事业","01","专业技术人员","从事农业技术推广、植保等相关工作","综合管理类（A类）","——","104801",1,"本科及以上","学士及以上",null,"学科门类：农学","学科门类：农学",null,null,"0851-33460221"]
[144,"西秀区","安顺市西秀区鸡场乡布依族苗族乡人民政府",1049,"安顺市西秀区鸡场布依族苗族乡农业服务中心","全额事业","01","专业技术人员","从事农业技术推广、植保等相关工作","综合管理类（A类）","——","104901",1,"本科及以上","学士及以上",null,"学科门类：农学","学科门类：农学",null,null,"0851-33460221"]
[145,"西秀区","安顺市西秀区鸡场乡布依族苗族乡人民政府",1050,"安顺市西秀区鸡场布依族苗族乡科技宣教文化信息服务中心","全额事业","01","专业技术人员","从事科技宣教文化信息服务等相关工作","综合管理类（A类）","——","105001",1,"本科及以上","学士及以上",{"$nulls":4},"限男性","0851-33460221"]
[146,"西秀区","安顺市西秀区鸡场乡布依族苗族乡人民政府",1050,"安顺市西秀区鸡场布依族苗族乡科技宣教文化信息服务中心","全额事业","02","专业技术人员","从事科技宣教文化信息服务等相关工作","综合管理类（A类）","——","105002",1,"本科及以上","学士及以上",{"$nulls":4},"限女性","0851-33460221"]
[147,"西秀区","安顺市西秀区杨武布依族苗族乡人民政府",1051,"安顺市西秀区杨武布依族苗族乡科技宣教文化信息服务中心","全额事业","01","专业技术人员","从事科技宣教文化信息服务等相关工作","综合管理类（A类）","——","105101",1,"本科及以上","学士及以上",{"$nulls":4},"限男性","0851-33460221"]
[148,"西秀区","安顺市西秀区杨武布依族苗族乡人民政府",1051,"安顺市西秀区杨武布依族苗族乡科技宣教文化信息服务中心","全额事业","02","专业技术人员","从事科技宣教文化信息服务等相关工作","综合管理类（A类）","——","105102",1,"本科及以上","学士及以上",{"$nulls":4},"限女性","0851-33460221"]
[149,"西秀区","安顺市西秀区杨武布依族苗族乡人民政府",1052,"安顺市西秀区杨武布依族苗族乡水利和移民工作站","全额事业","01","管理人员","从事水利建设规划、移民安置、防治水害综合规划等相关工作","综合管理类（A类）","——","105201",1,"本科及以上","学士及以上",null,"一级学科：水利类、土木类","一级学科：水利工程\n、土木工程、土木水利",null,null,"0851-33460221"]
[150,"西秀区","安顺市西秀区杨武布依族苗族乡人民政府",1053,"安顺市西秀区杨武布依族苗族乡乡村振兴服务中心","全额事业","01","管理人员","从事社会保障等民生服务等综合类工作","综合管理类（A类）","——","105301",1,"本科及以上","学士及以上",{"$nulls":5},"0851-33460221"]
[151,"西秀区","安顺市西秀区杨武布依族苗族乡人民政府",1054,"安顺市西秀区杨武布依族苗族乡幸福社区服务中心","全额事业","01","管理人员","从事基层社区服务等综合类工作","综合管理类（A类）","——","105401",1,"中专（技校、职高、高中）及以上",{"$nulls":4},"定向西秀区（不含经济技术开发区）所辖乡（镇、城郊街道）村干部","本单位最低服务年限5年","0851-33460221"]
[152,"西秀区","安顺市西秀区东屯乡人民政府",1055,"安顺市西秀区东屯乡科技宣教文化信息服务中心","全额事业","01","专业技术人员","从事科技宣教文化信息服务等相关工作","综合管理类（A类）","——","105501",1,"本科及以上","学士及以上",{"$nulls":5},"0851-33460221"]
[153,"西秀区","安顺市西秀区东屯乡人民政府",1056,"安顺市西秀区东屯乡林业和环境保护工作站","全额事业","01","专业技术人员","从事林业发展、农林经济、环境保护等相关工作","综合管理类（A类）","——","105601",1,"本科及以上","学士及以上",null,"一级学科：植物生产类、林学类、自然保护与环境生态类、环境科学与工程类","一级学科：林学、农业资源与环境、植物保护、水土保持与荒漠化防治学、林业、环境科学与工程",null,null,"0851-33460221"]
[154,"西秀区","安顺市西秀区东屯乡人民政府",1057,"安顺市西秀区东屯乡乡村振兴服务中心","全额事业","01","管理人员","从事社会保障等民生服务等综合类工作","综合管理类（A类）","——","105701",1,"本科及以上","学士及以上",{"$nulls":4},"1.限西秀区户籍（生源）；\n2.本单位最低服务年限5年","0851-33460221"]
[155,"西秀区","安顺市西秀区旧州镇人民政府",1058,"安顺市西秀区财政局旧州镇分局","全额事业","01","管理人员","从事财务及综合类相关工作","综合管理类（A类）","——","105801",1,"本科及以上","学士及以上",{"$nulls":4},"1.限西秀区户籍（生源）；\n2.本单位最低服务年限5年","0851-33460221"]
[156,"西秀区","安顺市西秀区旧州镇人民政府",1059,"安顺市西秀区旧州镇农业服务中心","全额事业","01","专业技术人员","从事农业技术推广、植保等相关工作","综合管理类（A类）","——","105901",1,"本科及以上","学士及以上",null,"学科门类：农学","学科门类：农学",null,"限男性","0851-33460221"]
[157,"西秀区","安顺市西秀区旧州镇人民政府",1059,"安顺市西秀区旧州镇农业服务中心","全额事业","02","专业技术人员","从事农业技术推广、植保等相关工作","综合管理类（A类）","——","105902",1,"本科及以上","学士及以上",null,"学科门类：农学","学科门类：农学",null,"限女性","0851-33460221"]
[158,"西秀区","安顺市西秀区旧州镇人民政府",1059,"安顺市西秀区旧州镇农业服务中心","全额事业","03","专业技术人员","从事农业技术推广、植保等相关工作","综合管理类（A类）","——","105903",1,"本科及以上","学士及以上",null,"学科门类：农学","学科门类：农学",null,null,"0851-33460221"]
[159,"西秀区","安顺市西秀区旧州镇人民政府",1060,"安顺市西秀区旧州镇科技宣教文化信息服务中心","全额事业","01","管理人员","从事科技宣教文化信息服务等相关工作","综合管理类（A类）","——","106001",1,"本科及以上","学士及以上",{"$nulls":5},"0851-33460221"]
[160,"西秀区","安顺市西秀区七眼桥镇人民政府",1061,"安顺市西秀区七眼桥镇水利和移民工作站","全额事业","01","管理人员","从事水利建设规划、移民安置、防治水害综合规划等相关工作","综合管理类（A类）","——","106101",1,"本科及以上","学士及以上",null,"一级学科：水利类、土木类","一级学科：水利工程、土木工程、土木水利",null,null,"0851-33460221"]
[161,"西秀区","安顺市西秀区双堡镇人民政府",1062,"安顺市西秀区双堡镇农业服务中心","全额事业","01","专业技术人员","从事农业技术推广、植保等相关工作","综合管理类（A类）","——","106201",1,"本科及以上","学士及以上",null,"学科门类：农学","学科门类：农学",null,null,"0851-33460221"]
[162,"西秀区","安顺市西秀区大西桥镇人民政府",1063,"安顺市西秀区财政局大西桥镇分局","全额事业","01","管理人员","从事财务及综合类相关工作","综合管理类（A类）","——","106301",1,"本科及以上","学士及以上",{"$nulls":4},"限男性","0851-33460221"]
[163,"西秀区","安顺市西秀区大西桥镇人民政府",1063,"安顺市西秀区财政局大西桥镇分局","全额事业","02","管理人员","从事财务及综合类相关工作","综合管理类（A类）","——","106302",1,"本科及以上","学士及以上",{"$nulls":4},"限女性","0851-33460221"]
[164,"西秀区","安顺市西秀区大西桥镇人民政府",1064,"安顺市西秀区大西桥镇村镇建设管理站","全额事业","01","管理人员","从事村镇规划建设、综合管理等相关工作","综合管理类（A类）","——","106401",1,"本科及以上","学士及以上",{"$nulls":3},"定向2024年度毕业生",null,"0851-33460221"]
[165,"西秀区","安顺市西秀区轿子山镇人民政府",1065,"安顺市西秀区轿子山镇农业服务中心","全额事业","01","专业技术人员","从事农业技术推广、植保等相关工作","综合管理类（A类）","——","106501",1,"本科及以上","学士及以上",null,"学科门类：农学","学科门类：农学",null,"限男性","0851-33460221"]
[166,"西秀区","安顺市西秀区轿子山镇人民政府",1065,"安顺市西秀区轿子山镇农业服务中心","全额事业","02","专业技术人员","从事农业技术推广、植保等相关工作","综合管理类（A类）","——","106502",1,"本科及以上","学士及以上",null,"学科门类：农学","学科门类：农学",null,"限女性","0851-33460221"]
[167,"西秀区","安顺市西秀区轿子山镇人民政府",1065,"安顺市西秀区轿子山镇农业服务中心","全额事业","03","专业技术人员","从事农业技术推广、植保等相关工作","综合管理类（A类）","——","106503",1,"本科及以上","学士及以上",null,"学科门类：农学","学科门类：农学",null,null,"0851-33460221"]
[168,"西秀区","安顺市西秀区轿子山镇人民政府",1066,"安顺市西秀区轿子山镇政务服务中心","全额事业","01","管理人员","从事政务服务、社会管理等相关工作","综合管理类（A类）","——","106601",1,"本科及以上","学士及以上",{"$nulls":4},"2年基层工作经历","0851-33460221"]
[169,"西秀区","安顺市西秀区蔡官镇人民政府",1067,"安顺市西秀区蔡官镇农业服务中心","全额事业","01","专业技术人员","从事农业技术推广、植保等相关工作","综合管理类（A类）","——","106701",1,"本科及以上","学士及以上",null,"学科门类：农学","学科门类：农学",null,"限男性","0851-33460221"]
[170,"西秀区","安顺市西秀区蔡官镇人民政府",1067,"安顺市西秀区蔡官镇农业服务中心","全额事业","02","专业技术人员","从事农业技术推广、植保等相关工作","综合管理类（A类）","——","106702",1,"本科及以上","学士及以上",null,"学科门类：农学","学科门类：农学",null,"限女性","0851-33460221"]
[171,"西秀区","安顺市西秀区蔡官镇人民政府",1067,"安顺市西秀区蔡官镇农业服务中心","全额事业","03","专业技术人员","从事农业技术推广、植保等相关工作","综合管理类（A类）","——","106703",1,"本科及以上","学士及以上",null,"学科门类：农学","学科门类：农学",null,null,"0851-33460221"]
[172,"西秀区","安顺市西秀区蔡官镇人民政府",1068,"安顺市西秀区蔡官镇人力资源和社会保障服务中心","全额事业","01","管理人员","从事人力资源和社会保障等相关工作","综合管理类（A类）","——","106801",1,"本科及以上","学士及以上",{"$nulls":4},"2年基层工作经历","0851-33460221"]
[173,"西秀区","安顺市西秀区蔡官镇人民政府",1069,"安顺市西秀区蔡官镇村镇建设管理站","全额事业","01","管理人员","从事村镇规划建设、综合管理等相关工作","综合管理类（A类）","——","106901",1,"本科及以上","学士及以上",{"$nulls":5},"0851-33460221"]
[174,"西秀区","安顺市西秀区蔡官镇人民政府",1070,"安顺市西秀区蔡官镇春晖社区服务中心","全额事业","01","管理人员","从事基层社区服务等综合类工作","综合管理类（A类）","——","107001",1,"本科及以上","学士及以上",{"$nulls":4},"限男性","0851-33460221"]
[175,"西秀区","安顺市西秀区蔡官镇人民政府",1070,"安顺市西秀区蔡官镇春晖社区服务中心","全额事业","02","管理人员","从事基层社区服务等综合类工作","综合管理类（A类）","——","107002",1,"本科及以上","学士及以上",{"$nulls":4},"限女性","0851-33460221"]
[176,"西秀区","安顺市西秀区东街街道办事处",1071,"安顺市西秀区财政局东街办事处分局","全额事业","01","管理人员","从事财务及综合类相关工作","综合管理类（A类）","——","107101",1,"本科及以上","学士及以上",{"$nulls":5},"0851-33460221"]
[177,"西秀区","安顺市西秀区南街街道办事处",1072,"安顺市西秀区南街街道综治服务中心","全额事业","01","管理人员","从事综合治理、社会稳定形式动态监测研判等相关工作","综合管理类（A类）","——","107201",1,"本科及以上","学士及以上",{"$nulls":4},"限男性","0851-33460221"]
[178,"西秀区","安顺市西秀区南街街道办事处",1072,"安顺市西秀区南街街道综治服务中心","全额事业","02","管理人员","从事综合治理、社会稳定形式动态监测研判等相关工作","综合管理类（A类）","——","107202",1,"本科及以上","学士及以上",{"$nulls":4},"限女性","0851-33460221"]
[179,"西秀区","安顺市西秀区西街街道办事处",1073,"安顺市西秀区西街街道党建工作中心","全额事业","01","专业技术人员","从事党建宣传、党群服务等相关工作","综合管理类（A类）","——","107301",1,"本科及以上","学士及以上",{"$nulls":4},"中共党员（含预备党员）","0851-33460221"]
[180,"西秀区","安顺市西秀区西街街道办事处",1074,"安顺市西秀区西街街道综治服务中心","全额事业","01","管理人员","从事综合治理、社会稳定形式动态监测研判等相关工作","综合管理类（A类）","——","107401",1,"本科及以上","学士及以上",{"$nulls":4},"限男性","0851-33460221"]
[181,"西秀区","安顺市西秀区西街街道办事处",1074,"安顺市西秀区西街街道综治服务中心","全额事业","02","管理人员","从事综合治理、社会稳定形式动态监测研判等相关工作","综合管理类（A类）","——","107402",1,"本科及以上","学士及以上",{"$nulls":4},"限女性","0851-33460221"]
[182,"西秀区","安顺市西秀区北街街道办事处",1075,"安顺市西秀区北街街道综治服务中心","全额事业","01","管理人员","从事综合治理、社会稳定形式动态监测研判等相关工作","综合管理类（A类）","——","107501",1,"本科及以上","学士及以上",{"$nulls":4},"限男性","0851-33460221"]
[183,"西秀区","安顺市西秀区北街街道办事处",1075,"安顺市西秀区北街街道综治服务中心","全额事业","02","管理人员","从事综合治理、社会稳定形式动态监测研判等相关工作","综合管理类（A类）","——","107502",1,"本科及以上","学士及以上",{"$nulls":4},"限女性","0851-33460221"]
[184,"西秀区","安顺市西秀区北街街道办事处",1076,"安顺市西秀区北街街道党建工作中心","全额事业","01","专业技术人员","从事党建宣传、党群服务等相关工作","综合管理类（A类）","——","107601",1,"本科及以上","学士及以上",{"$nulls":5},"0851-33460221"]
[185,"西秀区","安顺市西秀区东关街道办事处",1077,"安顺市西秀区财政局东关办事处分局","全额事业","01","管理人员","从事财务及综合类相关工作","综合管理类（A类）","——","107701",1,"本科及以上","学士及以上",{"$nulls":5},"0851-33460221"]
[186,"西秀区","安顺市西秀区华西街道办事处",1078,"安顺市西秀区财政局华西办事处分局","全额事业","01","管理人员","从事财务及综合类相关工作","综合管理类（A类）","——","107801",1,"大专及以上",{"$nulls":5},"残疾人（残疾等级：四级）","0851-33460221"]
[187,"西秀区","安顺市西秀区华西街道办事处",1079,"安顺市西秀区华西街道社会事务服务中心","全额事业","01","管理人员","从事社会事务服务、村镇建设、民生服务等相关工作","综合管理类（A类）","——","107901",1,"本科及以上","学士及以上",{"$nulls":4},"限男性","0851-33460221"]
[188,"西秀区","安顺市西秀区华西街道办事处",1079,"安顺市西秀区华西街道社会事务服务中心","全额事业","02","管理人员","从事社会事务服务、村镇建设、民生服务等相关工作","综合管理类（A类）","——","107902",1,"本科及以上","学士及以上",{"$nulls":4},"限女性","0851-33460221"]
[189,"西秀区","安顺市西秀区华西街道办事处",1080,"安顺市西秀区华西街道社会治安综合治理中心","全额事业","01","管理人员","从事综合治理、社会稳定形式动态监测研判等相关工作","综合管理类（A类）","——","108001",1,"本科及以上","学士及以上",{"$nulls":5},"0851-33460221"]
[190,"西秀区","安顺市西秀区华西街道办事处",1081,"安顺市西秀区华西街道优化营商环境服务中心","全额事业","01","管理人员","从事营商环境提升、企业（人才）管理招商引资、对外经济技术合作等相关工作","综合管理类（A类）","——","108101",1,"本科及以上","学士及以上",{"$nulls":4},"限男性","0851-33460221"]
[191,"西秀区","安顺市西秀区华西街道办事处",1081,"安顺市西秀区华西街道优化营商环境服务中心","全额事业","02","专业技术人员","从事营商环境提升、企业（人才）管理招商引资、对外经济技术合作等相关工作","综合管理类（A类）","——","108102",1,"本科及以上","学士及以上",{"$nulls":4},"限女性","0851-33460221"]
[192,"西秀区","安顺市西秀区华西街道办事处",1082,"安顺市西秀区华西街道农业服务中心","全额事业","01","专业技术人员","从事农业技术推广、植保等相关工作","综合管理类（A类）","——","108201",1,"本科及以上","学士及以上",null,"学科门类：农学","学科门类：农学",null,"限男性","0851-33460221"]
[193,"西秀区","安顺市西秀区华西街道办事处",1082,"安顺市西秀区华西街道农业服务中心","全额事业","02","专业技术人员","从事农业技术推广、植保等相关工作","综合管理类（A类）","——","108202",1,"本科及以上","学士及以上",null,"学科门类：农学","学科门类：农学",null,"限女性","0851-33460221"]
[194,"西秀区","安顺市西秀区华西街道办事处",1082,"安顺市西秀区华西街道农业服务中心","全额事业","03","专业技术人员","从事农业技术推广、植保等相关工作","综合管理类（A类）","——","108203",1,"本科及以上","学士及以上",null,"学科门类：农学","学科门类：农学",null,null,"0851-33460221"]
[195,"西秀区","安顺市西秀区新安街道办事处",1083,"安顺市西秀区新安街道社会事务服务中心","全额事业","01","管理人员","从事社会事务服务、村镇建设、民生服务等相关工作","综合管理类（A类）","——","108301",1,"本科及以上","学士及以上",{"$nulls":4},"限男性","0851-33460221"]
[196,"西秀区","安顺市西秀区新安街道办事处",1083,"安顺市西秀区新安街道社会事务服务中心","全额事业","02","管理人员","从事社会事务服务、村镇建设、民生服务等相关工作","综合管理类（A类）","——","108302",1,"本科及以上","学士及以上",{"$nulls":4},"限女性","0851-33460221"]
[197,"西秀区","安顺市西秀区新安街道办事处",1084,"安顺市西秀区新安街道农业服务中心","全额事业","01","专业技术人员","从事农业技术推广、植保等相关工作","综合管理类（A类）","——",{"$f":"D201&G201","v":"108401"},1,"本科及以上","学士及以上",null,"学科门类：农学","学科门类：农学",null,"限男性","0851-33460221"]
[198,"西秀区","安顺市西秀区新安街道办事处",1084,"安顺市西秀区新安街道农业服务中心","全额事业","02","专业技术人员","从事农业技术推广、植保等相关工作","综合管理类（A类）","——","108402",1,"本科及以上","学士及以上",null,"学科门类：农学","学科门类：农学",null,"限女性","0851-33460221"]
[199,"西秀区","安顺市西秀区新安街道办事处",1085,"安顺市西秀区新安街道退役军人服务站","全额事业","01","管理人员","从事辖区征兵、拥军优抚等相关工作","综合管理类（A类）","——","108501",1,"大专及以上",{"$nulls":4},"定向生源地或兵源地为本区的退役士兵、驻本区部队干部（士官）符合条件的六类随军家属","本单位最低服务年限5年","0851-33460221"]
[200,"平坝区","安顺市平坝区应急管理局",2001,"安顺市平坝区安全生产监控与调度中心","全额事业","01","管理人员","从事安全生产监管、应急救援、防灾减灾等工作","综合管理类（A类）","——","200101",1,"本科及以上","学士及以上",null,"二级学科：采矿工程、安全工程、应急技术与管理","一级学科：矿业工程",null,null,"0851-34226315"]
[201,"平坝区","安顺市平坝区自然资源局",2002,"安顺市平坝区土地勘测规划站","全额事业","01","专业技术人员","从事土地资源勘测、制图土地动态变化的监测等工作","综合管理类（A类）","——","200201",1,"本科及以上","学士及以上",null,"二级学科：城乡规划、土木工程、采矿工程","一级学科：土木工程\n二级学科：城市规划与设计、采矿工程",null,null,"0851-34226315"]
[202,"平坝区","安顺市平坝区自然资源局",2003,"安顺市平坝区不动产登记中心","全额事业","01","专业技术人员","从事不动产登记信息数据库平台的建设、管理、数据互联互享等工作","综合管理类（A类）","——","200301",1,"本科及以上","学士及以上",null,"二级学科：土地资源管理、计算机科学与技术、网络工程","一级学科：计算机科学与技术\n二级学科：土地资源管理",null,"1.限平坝区户籍（生源）\n2.该定向招聘岗位在本单位最低服务年限为5年（含试用期）","0851-34226315"]
[203,"平坝区","安顺市平坝区自然资源局",2004,"安顺市平坝区土地矿产资源储备交易中心","全额事业","01","管理人员","从事筹措、管理、使用土地储备资金等工作\n","综合管理类（A类）","——","200401",1,"本科及以上","学士及以上",{"$nulls":5},"0851-34226315"]
[204,"平坝区","安顺市平坝区自然资源局",2005,"安顺市平坝区白云镇自然资源所","全额事业","01","专业技术人员","按规定和授权承担辖区内自然资源,国土空间、地质灾害防治等工作","综合管理类（A类）","——","200501",1,"本科及以上","学士及以上",null,"二级学科：城乡规划、土地资源管理、土木工程、地质工程、工程管理、勘查技术与工程","一级学科：土木工程、工程管理\n二级学科：土地资源管理、地质工程",null,null,"0851-34226315"]
[205,"平坝区","安顺市平坝区自然资源局",2006,"安顺市平坝区安平街道自然资源所","全额事业","01","专业技术人员","按规定和授权承担辖区内自然资源,国土空间、地质灾害防治等工作","综合管理类（A类）","——","200601",1,"本科及以上","学士及以上",null,"二级学科：城乡规划、土地资源管理、土木工程、地质工程、工程管理、勘查技术与工程","一级学科：土木工程、工程管理\n二级学科：土地资源管理、地质工程",null,null,"0851-34226315"]
[206,"平坝区","安顺市平坝区自然资源局",2007,"安顺市平坝区鼓楼街道自然资源所","全额事业","01","管理人员","按规定和授权承担辖区内自然资源,国土空间、地质灾害防治等工作","综合管理类（A类）","——","200701",1,"本科及以上","学士及以上",{"$nulls":5},"0851-34226315"]
[207,"平坝区","安顺市平坝区自然资源局",2008,"安顺市平坝区齐伯镇自然资源所","全额事业","01","管理人员","按规定和授权承担辖区内自然资源,国土空间、地质灾害防治等工作","综合管理类（A类）","——","200801",1,"本科及以上","学士及以上",{"$nulls":3},"定向2024年度毕业生","该定向招聘岗位在本单位最低服务年限为5年（含试用期）","0851-34226315"]
[208,"平坝区","安顺市平坝区自然资源局",2009,"安顺市平坝区夏云镇自然资源所","全额事业","01","专业技术人员","按规定和授权承担辖区内自然资源,国土空间、地质灾害防治等工作","综合管理类（A类）","——","200901",1,"本科及以上","学士及以上",null,"二级学科：城乡规划、土地资源管理、土木工程、地质工程、工程管理、勘查技术与工程","一级学科：土木工程、工程管理\n二级学科：土地资源管理、地质工程",null,null,"0851-34226315"]
[209,"平坝区","安顺市平坝区自然资源局",2010,"安顺市平坝区十字回族苗族乡自然资源所","全额事业","01","专业技术人员","按规定和授权承担辖区内自然资源,国土空间、地质灾害防治等工作","综合管理类（A类）","——","201001",1,"本科及以上","学士及以上",null,"二级学科：城乡规划、土地资源管理、土木工程、地质工程、工程管理、勘查技术与工程","一级学科：土木工程、工程管理\n二级学科：土地资源管理、地质工程",null,null,"0851-34226315"]
[210,"平坝区","安顺市平坝区农业农村局",2011,"安顺市平坝区农业技术推广站","全额事业","01","专业技术人员","从事农业相关工作","综合管理类（A类）","——","201101",1,"本科及以上","学士及以上",null,"学科门类：农学","学科门类：农学","定向2024年度毕业生","该定向招聘岗位在本单位最低服务年限为5年（含试用期）","0851-34226315"]
[211,"平坝区","安顺市平坝区农业农村局",2012,"安顺市平坝区种子工作站","全额事业","01","专业技术人员","从事农业相关工作","综合管理类（A类）","——","201201",1,"本科及以上","学士及以上",null,"一级学科：植物生产类","一级学科：作物学、植物保护",null,null,"0851-34226315"]
[212,"平坝区","安顺市平坝区农业农村局",2013,"安顺市平坝区农业经济发展办公室","全额事业","01","专业技术人员","从事农业相关工作","综合管理类（A类）","——","201301",1,"本科及以上","学士及以上",null,"一级学科：农业经济管理类","一级学科：农林经济管理",null,null,"0851-34226315"]
[213,"平坝区","安顺市平坝区农业农村局",2014,"安顺市平坝区植物保护站","全额事业","01","专业技术人员","从事农业相关工作","综合管理类（A类）","——","201401",1,"本科及以上","学士及以上",null,"一级学科：植物生产类","一级学科：作物学、植物保护",null,null,"0851-34226315"]
[214,"平坝区","安顺市平坝区农业农村局",2015,"安顺市平坝区农村能源工作站","全额事业","01","专业技术人员","从事农业相关工作","综合管理类（A类）","——","201501",1,"本科及以上","学士及以上",null,"学科门类：农学","学科门类：农学","定向2024年度毕业生","该定向招聘岗位在本单位最低服务年限为5年（含试用期）","0851-34226315"]
[215,"平坝区","安顺市平坝区农业农村局",2016,"安顺市平坝区农田基本建设办公室","全额事业","01","管理人员","从事农业相关工作","综合管理类（A类）","——","201601",1,"本科及以上","学士及以上",null,"一级学科：农业工程类","一级学科：管理科学与工程",null,null,"0851-34226315"]
[216,"平坝区","安顺市平坝区农业农村局",2017,"安顺市平坝区动物疫病预防控制中心","全额事业","01","专业技术人员","从事动物疫病防控工作","综合管理类（A类）","——","201701",1,"本科及以上","学士及以上",null,"一级学科：动物医学类","一级学科：兽医学、畜牧学","定向2024年度毕业生","该定向招聘岗位在本单位最低服务年限为5年（含试用期）","0851-34226315"]
[217,"平坝区","安顺市平坝区卫生健康局",2018,"安顺市平坝区基层卫生健康工作服务中心","全额事业","01","管理人员","从事基本公共卫生工作","综合管理类（A类）","——","201801",1,"本科及以上","学士及以上",null,"一级学科：公共卫生与预防医学类","一级学科：公共卫生与预防医学","定向2024年度毕业生","该定向招聘岗位在本单位最低服务年限为5年（含试用期）","0851-34226315"]
[218,"平坝区","安顺市平坝区卫生健康局",2019,"安顺市平坝区疾病预防控制中心","全额事业","01","专业技术人员","从事财务管理工作","综合管理类（A类）","——","201901",1,"本科及以上","学士及以上",null,"二级学科：会计学、财务管理、财务会计教育","一级学科：会计\n二级学科：会计学","定向2024年度毕业生","该定向招聘岗位在本单位最低服务年限为5年（含试用期）","0851-34226315"]
[219,"平坝区","安顺市平坝区卫生健康局",2019,"安顺市平坝区疾病预防控制中心","全额事业","02","专业技术人员","从事传染病、突发公共卫生事件监测预警及应急处置工作","医疗卫生类（E类）","公共卫生管理岗位","201902",1,"本科及以上","学士及以上",null,"二级学科：预防医学","一级学科：公共卫生与预防医学",null,null,"0851-34226315"]
[220,"平坝区","安顺市平坝区卫生健康局",2019,"安顺市平坝区疾病预防控制中心","全额事业","03","专业技术人员","从事职业病监测与防治工作","综合管理类（A类）","——","201903",1,"本科及以上","学士及以上",null,"二级学科：采矿工程、矿物加工工程、智能采矿工程","二级学科：采矿工程、矿物加工工程",null,null,"0851-34226315"]
[221,"平坝区","安顺市平坝区卫生健康局",2020,"安顺市平坝区中医院","差额事业","01","专业技术人员","从事相关临床工作","医疗卫生类（E类）","西医临床岗位","202001",1,"本科及以上","学士及以上",null,"二级学科：临床医学、医学影像学","一级学科：临床医学",null,"1.具有执业医师资格证书；\n2.该岗位招聘人员需派驻基层服务。取得住院医师规范化培训合格证书后须到平坝区乡镇卫生院服务3年","0851-34226315"]
[222,"平坝区","安顺市平坝区卫生健康局",2020,"安顺市平坝区中医院","差额事业","02","专业技术人员","从事相关临床工作","医疗卫生类（E类）","中医临床岗位","202002",1,"本科及以上","学士及以上",null,"二级学科：中医学","一级学科：中医学",null,"具有主治医师资格证书","0851-34226315"]
[223,"平坝区","安顺市平坝区卫生健康局",2020,"安顺市平坝区中医院","差额事业","03","专业技术人员","从事相关临床工作","医疗卫生类（E类）","中医临床岗位","202003",1,"本科及以上","学士及以上",null,"二级学科：中医学、针灸推拿学","一级学科：中医学",null,"具有执业医师资格证书","0851-34226315"]
[224,"平坝区","安顺市平坝区卫生健康局",2021,"安顺市平坝区妇幼保健院","全额事业","01","专业技术人员","从事影像诊断工作","医疗卫生类（E类）","西医临床岗位","202101",1,"本科及以上","学士及以上",null,"二级学科：医学影像学","二级学科：放射医学",null,"具有执业医师资格证书","0851-34226315"]
[225,"平坝区","安顺市平坝区卫生健康局",2021,"安顺市平坝区妇幼保健院","全额事业","02","专业技术人员","从事麻醉及疼痛医学工作","医疗卫生类（E类）","西医临床岗位","202102",1,"本科及以上","学士及以上",null,"二级学科：麻醉学","二级学科：麻醉学",null,"具有执业医师资格证书","0851-34226315"]
[226,"平坝区","安顺市平坝区卫生健康局",2022,"安顺市平坝区社区卫生服务中心","全额事业","01","专业技术人员","从事口腔常见病的指导和治疗工作","医疗卫生类（E类）","西医临床岗位","202201",1,"本科及以上","学士及以上",null,"二级学科：口腔医学","一级学科：口腔医学",null,"1.具有口腔执业医师资格证书；\n2.取得住院医师规范化培训合格证","0851-34226315"]
[227,"平坝区","安顺市平坝区卫生健康局",2023,"安顺市平坝区鼓楼街道卫生院","全额事业","01","专业技术人员","从事临床日常工作","医疗卫生类（E类）","西医临床岗位","202301",1,"本科及以上","学士及以上",null,"二级学科：临床医学","一级学科：临床医学",null,"1.具有执业医师技术资格证书；\n2.取得住院医师规范化培训合格证","0851-34226315"]
[228,"平坝区","安顺市平坝区卫生健康局",2024,"安顺市平坝区白云镇卫生院","全额事业","01","专业技术人员","从事临床日常工作","医疗卫生类（E类）","西医临床岗位","202401",1,"本科及以上","学士及以上",null,"二级学科：临床医学","一级学科：临床医学",null,"具有执业医师资格证书","0851-34226315"]
[229,"平坝区","安顺市平坝区卫生健康局",2025,"安顺市平坝区天龙镇卫生院","全额事业","01","专业技术人员","从事临床日常工作","医疗卫生类（E类）","中医临床岗位","202501",1,"本科及以上","学士及以上",null,"二级学科：临床医学","一级学科：临床医学",null,"具有执业医师资格证书","0851-34226315"]
[230,"平坝区","安顺市平坝区卫生健康局",2026,"安顺市平坝区乐平镇卫生院","全额事业","01","专业技术人员","从事眼科临床工作","医疗卫生类（E类）","中医临床岗位","202601",1,"本科及以上","学士及以上",null,"二级学科：临床医学","一级学科：临床医学",null,"具有执业助理医师及以上资格证书","0851-34226315"]
[231,"平坝区","安顺市平坝区卫生健康局",2026,"安顺市平坝区乐平镇卫生院","全额事业","02","专业技术人员","从事临床日常工作","医疗卫生类（E类）","西医临床岗位","202602",1,"本科及以上","学士及以上",null,"二级学科：临床医学","一级学科：临床医学",null,"具有执业助理医师及以上资格证书","0851-34226315"]
[232,"平坝区","安顺市平坝区卫生健康局",2027,"安顺市平坝区十字回族苗族乡卫生院","全额事业","01","专业技术人员","从事放射工作","医疗卫生类（E类）","医学技术岗位","202701",1,"大专及以上",null,"二级学科：医学影像技术","二级学科：医学影像学","一级学科：临床医学",null,"具有放射医学技术师资格证及以上","0851-34226315"]
[233,"平坝区","安顺市平坝区发展和改革局",2028,"安顺市平坝区人防工程建设服务中心","全额事业","01","专业技术人员","从事人防工程建设相关工作","综合管理类（A类）","——","202801",1,"本科及以上","学士及以上",null,"一级学科：建筑类、土木类","一级学科：建筑学、土木工程",null,null,"0851-34226315"]
[234,"平坝区","安顺市平坝区工业和信息化局",2029,"安顺市平坝区煤炭开票验票处","全额事业","01","管理人员","从事煤炭开票验票日常相关工作","综合管理类（A类）","——","202901",1,"本科及以上",null,null,"一级学科：安全科学与工程类",{"$nulls":3},"0851-34226315"]
[235,"平坝区","安顺市平坝区工业和信息化局",2030,"安顺市平坝区大数据发展中心（区电子商务发展中心）","全额事业","01","专业技术人员","从事大数据发展中心信息处理相关工作","综合管理类（A类）","——","203001",1,"本科及以上",null,null,"一级学科：计算机类","一级学科：计算机科学与技术","定向2024年度毕业生","该定向招聘岗位在本单位最低服务年限为5年（含试用期）","0851-34226315"]
[236,"平坝区","安顺市平坝区工业和信息化局",2031,"安顺市平坝区煤矿驻矿安全监管中心（安顺市平坝区煤矿技术服务中心）","全额事业","01","管理人员","从事煤矿安全监管、巡查、驻矿盯守等工作","综合管理类（A类）","——","203101",1,"本科及以上","学士及以上",null,"一级学科：矿业类","一级学科：矿业工程",null,null,"0851-34226315"]
[237,"平坝区","安顺市平坝区工业和信息化局",2031,"安顺市平坝区煤矿驻矿安全监管中心（安顺市平坝区煤矿技术服务中心）","全额事业","02","管理人员","从事煤矿安全监管、巡查、驻矿盯守等工作","综合管理类（A类）","——","203102",1,"本科及以上","学士及以上",null,"一级学科：电气类","一级学科：电气工程",null,"建议男性报考：因需要从事煤矿井下工作","0851-34226315"]
[238,"平坝区","安顺市平坝区工业和信息化局",2031,"安顺市平坝区煤矿驻矿安全监管中心（安顺市平坝区煤矿技术服务中心）","全额事业","03","管理人员","从事煤矿安全监管、巡查、驻矿盯守等工作","综合管理类（A类）","——","203103",1,"本科及以上","学士及以上",null,"一级学科：安全科学与工程类","一级学科：矿业工程",null,null,"0851-34226315"]
[239,"平坝区","安顺市平坝区工业和信息化局",2031,"安顺市平坝区煤矿驻矿安全监管中心（安顺市平坝区煤矿技术服务中心）","全额事业","04","专业技术人员","从事煤矿安全监管、巡查、驻矿盯守等工作","综合管理类（A类）","——","203104",1,"本科及以上","学士及以上",null,"一级学科：矿业类","一级学科：矿业工程",null,"建议男性报考：因需要从事煤矿井下工作","0851-34226315"]
[240,"平坝区","安顺市平坝区教育和科技局",2032,"安顺市平坝区教育财务中心","全额事业","01","专业技术人员","从事教育财务会计工作","综合管理类（A类）","——","203201",1,"本科及以上","学士及以上",null,"二级学科：会计学、财务管理、财务会计教育","一级学科：会计\n二级学科：会计学",null,null,"0851-34226315"]
[241,"平坝区","安顺市平坝区林业局",2033,"安顺市平坝区种苗站","全额事业","01","专业技术人员","掌握一定的林业业务知识，具备一定的写作能力及计算机水平，负责营造林、林下经济、林业科技推广等工作。","综合管理类（A类）","——","203301",1,"本科及以上","学士及以上",null,"一级学科：林学类、林业工程类","一级学科：林学、林业工程","定向2024年度毕业生","该定向招聘岗位在本单位最低服务年限为5年（含试用期）","0851-34226315"]
[242,"平坝区","安顺市平坝区林业局",2034,"安顺市平坝区林政资源管理站","全额事业","01","专业技术人员","掌握一定的林业业务知识，具备一定的写作能力及计算机水平，负责森林资源管理、林地图斑核查、野生动植物保护宣传等工作。","综合管理类（A类）","——","203401",1,"本科及以上","学士及以上",null,"一级学科：林学类、林业工程类","一级学科：林学、林业工程",null,null,"0851-34226315"]
[243,"平坝区","安顺市平坝区林业局",2035,"安顺市平坝区森林病虫检疫防治管理站","全额事业","01","专业技术人员","掌握一定的林业业务知识，具备一定的写作能力及计算机水平，负责森林病虫检疫防治工作。","综合管理类（A类）","——","203501",1,"本科及以上","学士及以上",null,"一级学科：林学类、林业工程类","一级学科：林学、林业工程",null,null,"0851-34226315"]
[244,"平坝区","安顺市平坝区林业局",2036,"安顺市平坝区木材检查站","全额事业","01","专业技术人员","掌握一定的林业业务知识，具备一定的写作能力及计算机水平，负责木材加工领域监管工作。","综合管理类（A类）","——","203601",1,"本科及以上","学士及以上",null,"一级学科：林学类、林业工程类","一级学科：林学、林业工程",null,null,"0851-34226315"]
[245,"平坝区","中共安顺市平坝区委宣传部",2037,"安顺市平坝区文化产业促进中心","全额事业","01","管理人员","从事文化及文化产业发展工作","综合管理类（A类）","——","203701",1,"本科及以上","学士及以上",null,"一级学科：新闻传播学类",null,null,"1.限平坝区户籍（生源）\n2.该定向招聘岗位在本单位最低服务年限为5年（含试用期）","0851-34226315"]
[246,"平坝区","中共安顺市平坝区委宣传部",2038,"安顺市平坝区创建工作办公室","全额事业","01","管理人员","从事精神文明创建工作及网络维护","综合管理类（A类）","——","203801",1,"本科及以上","学士及以上",{"$nulls":4},"\n1.限2年以上基层工作经历\n2.该定向招聘岗位在本单位最低服务年限为5年（含试用期）","0851-34226315"]
[247,"平坝区","中共安顺市平坝区委宣传部",2039,"安顺市平坝区融媒体中心","全额事业","01","专业技术人员","从事新闻传播等工作","综合管理类（A类）","——","203901",2,"本科及以上","学士及以上",null,"一级学科：新闻传播学类","一级学科：新闻传播学",null,null,"0851-34226315"]
[248,"平坝区","安顺市平坝区文体广电旅游局",2040,"安顺市平坝区体育运动中心","全额事业","01","专业技术人员","从事群众体育、国民体质监测和社会体育指导工作。","综合管理类（A类）","——","204001",1,"本科及以上","学士及以上",null,"一级学科：体育学类","一级学科：体育学",null,null,"0851-34226315"]
[249,"平坝区","安顺市平坝区文体广电旅游局",2041,"安顺市平坝区图书馆","全额事业","01","专业技术人员","从事图书馆事业发展规划，指导图书馆公共服务体系建设，推进图书馆信息化、标准化建设。","综合管理类（A类）","——","204101",1,"本科及以上","学士及以上",null,"一级学科：中国语言文学类","一级学科：中国语言文学","定向2024年度毕业生","该定向招聘岗位在本单位最低服务年限为5年（含试用期）","0851-34226315"]
[250,"平坝区","安顺市平坝区市场监督管理局",2042,"安顺市平坝区质量技术监督检验检测所","全额事业","01","专业技术人员","从事计量检定等工作","综合管理类（A类）","——","204201",1,"本科及以上","学士及以上",null,"学科门类：工学","学科门类：工学",null,"1.限平坝区户籍（生源）；\n2.该定向招聘岗位在本单位最低服务年限为5年（含试用期）","0851-34226315"]
[251,"平坝区","安顺市平坝区水务局",2043,"安顺市平坝区防汛抗旱管理中心","全额事业","01","专业技术人员","主要从事水利工程建设与管理等工作","综合管理类（A类）","——","204301",1,"本科及以上",null,null,"一级学科：水利类、土木类","一级学科：水利工程、土木工程",null,"1.限平坝区户籍（生源）；\n2.该定向招聘岗位在本单位最低服务年限为5年（含试用期）","0851-34226315"]
[252,"平坝区","安顺市平坝区水务局",2044,"安顺市平坝区水利水电勘测设计队","全额事业","01","专业技术人员","主要从事水利工程建设与管理等工作","综合管理类（A类）","——","204401",1,"本科及以上",null,null,"一级学科：水利类、土木类","一级学科：水利工程、土木工程",null,"1.限平坝区户籍（生源）；\n2.该定向招聘岗位在本单位最低服务年限为5年（含试用期）","0851-34226315"]
[253,"平坝区","安顺市平坝区水务局",2045,"安顺市平坝区水资源管理中心","全额事业","01","专业技术人员","主要从事水利工程建设与管理等工作","综合管理类（A类）","——","204501",1,"本科及以上",null,null,"一级学科：水利类、土木类","一级学科：水利工程、土木工程",null,null,"0851-34226315"]
[254,"平坝区","安顺市平坝区水务局",2046,"安顺市平坝区龙井灌溉工程管理所","全额事业","01","专业技术人员","主要从事水利工程建设与管理等\n工作","综合管理类（A类）","——","204601",1,"本科及以上",null,null,"一级学科：水利类、土木类","一级学科：水利工程、土木工程",null,null,"0851-34226315"]
[255,"平坝区","安顺市平坝区残疾人联合会",2047,"安顺市平坝区残疾人劳动就业服务指导中心","全额事业","01","管理人员","从事办公室日常工作","综合管理类（A类）","——","204701",1,"本科及以上","学士及以上",{"$nulls":5},"0851-34226315"]
[256,"平坝区","安顺高新技术产业园区管理委员会",2048,"安顺高新技术产业园区管理服务中心","全额事业","01","管理人员","从事园区\n综合管理","综合管理类（A类）","——","204801",1,"本科及以上","学士及以上",null,"一级学科：公共管理类、工商管理类、经济学类、金融学类、食品科学与工程类、环境科学与工程类、管理科学与工程类、化工与制药类、土木类",null,null,"限男性","0851-34226315"]
[257,"平坝区","安顺高新技术产业园区管理委员会",2048,"安顺高新技术产业园区管理服务中心","全额事业","02","管理人员","从事园区\n综合管理","综合管理类（A类）","——","204802",1,"本科及以上","学士及以上",null,"一级学科：公共管理类、工商管理类、经济学类、金融学类、食品科学与工程类、环境科学与工程类、管理科学与工程类、化工与制药类、土木类",null,null,"限女性","0851-34226315"]
[258,"平坝区","黔中新兴产业示范园区管理委员会",2049,"黔中新兴产业示范园区管理服务中心","全额事业","01","管理人员","从事企业管理工作","综合管理类（A类）","——","204901",1,"本科及以上","学士及以上",null,"一级学科：工商管理类",null,"定向2024年度毕业生","该定向招聘岗位在本单位最低服务年限为5年（含试用期）","0851-34226315"]
[259,"平坝区","黔中新兴产业示范园区管理委员会",2049,"黔中新兴产业示范园区管理服务中心","全额事业","02","管理人员","从事财会工作","综合管理类（A类）","——","204902",1,"本科及以上","学士及以上",null,"一级学科：金融学类",{"$nulls":3},"0851-34226315"]
[260,"平坝区","安顺市平坝区统计局",2050,"安顺市平坝区社情民意调查中心（安顺市平坝区统计局普查中心）","全额事业","01","专业技术人员","开展人口普查、农业普查、经济普查等各类大型普查及各类专项调查等工作","综合管理类（A类）","——","205001",1,"本科及以上","学士及以上",null,"二级学科：统计学、应用统计学、经济统计学","一级学科：应用经济学",null,null,"0851-34226315"]
[261,"平坝区","安顺市平坝区安平街道办事处",2051,"安顺市平坝区安平街道财政所","全额事业","01","管理人员","从事财务及相关工作","综合管理类（A类）","——",{"$f":"D265&G265","v":"205101"},1,"本科及以上","学士及以上",null,"二级学科：会计学、财务管理、财务会计教育","一级学科：会计\n二级学科：会计学",null,null,"0851-34226315"]
[262,"平坝区","安顺市平坝区鼓楼街道办事处",2052,"安顺市平坝鼓楼街道农业服务中心","全额事业","01","专业技术人员","主要为农业技术推广、动植物疫病防控、农产品质量安全监测等工作","综合管理类（A类）","——","205201",1,"本科及以上","学士及以上",null,"一级学科：农业工程类、植物生产类、自然保护与环境生态类、动物生产类、动物医学类、林学类","学科门类：农学",null,null,"0851-34226315"]
[263,"平坝区","安顺市平坝区夏云镇人民政府",2053,"安顺市平坝区夏云镇财政所","全额事业","01","管理人员","从事财政管理的事务性和服务性工作。","综合管理类（A类）","——","205301",1,"本科及以上","学士及以上",null,"一级学科：工商管理类","一级学科：会计\n二级学科：会计学",null,"需持有会计从业资格证或会计初级以上职称","0851-34226315"]
[264,"平坝区","安顺市平坝区夏云镇人民政府",2054,"安顺市平坝区夏云镇农业服务中心","全额事业","01","专业技术人员","从事水务材料和实验、示范工作，组织开展各类技术培训工作。","综合管理类（A类）","——","205401",1,"本科及以上","学士及以上",null,"一级学科：材料类","一级学科：材料科学与工程",null,null,"0851-34226315"]
[265,"平坝区","安顺市平坝区乐平镇人民政府",2055,"安顺市平坝区乐平镇农业服务中心","全额事业","01","专业技术人员","从事农业服务相关工作","综合管理类（A类）","——","205501",1,"本科及以上","学士及以上",null,"一级学科：植物生产类、自然保护与环境生态类、动物生产类、动物医学类、水产类、草学类","学科门类：农学",null,null,"0851-34226315"]
[266,"平坝区","安顺市平坝区乐平镇人民政府",2055,"安顺市平坝区乐平镇农业服务中心","全额事业","02","专业技术人员","从事林业服务相关工作","综合管理类（A类）","——","205502",1,"本科及以上","学士及以上",null,"一级学科：林学类","学科门类：农学",null,null,"0851-34226315"]
[267,"平坝区","安顺市平坝区乐平镇人民政府",2056,"安顺市平坝区乐平镇财政所","全额事业","01","管理人员","从事财政管理等工作","综合管理类（A类）","——","205601",1,"本科及以上","学士及以上",null,"二级学科：会计学、财务管理、财务会计教育","一级学科：会计\n二级学科：会计学",null,null,"0851-34226315"]
[268,"平坝区","安顺市平坝区乐平镇人民政府",2057,"安顺市平坝区乐平镇公共事务服务中心","全额事业","01","专业技术人员","从事公共事务工作","综合管理类（A类）","——","205701",1,"本科及以上","学士及以上",{"$nulls":3},"定向招聘平坝区(不含高峰镇、马场镇）“基层服务项目人员”","该岗位在本单位最低服务年限为5年（含试用期）","0851-34226315"]
[269,"平坝区","安顺市平坝区天龙镇人民政府",2058,"安顺市平坝区天龙镇综治中心","全额事业","01","管理人员","从事社会治安网格化管理及群防群治等工作","综合管理类（A类）","——","205801",1,"本科及以上","学士及以上",null,"一级学科：法学类","一级学科：法学",null,null,"0851-34226315"]
[270,"平坝区","安顺市平坝区天龙镇人民政府",2059,"安顺市平坝区天龙镇财政所","全额事业","01","管理人员","从事财务及相关工作","综合管理类（A类）","——","205901",1,"大专及以上",null,"一级学科：财务会计类","二级学科：会计学、财务管理、财务会计教育","一级学科：会计\n二级学科：会计学",null,null,"0851-34226315"]
[271,"平坝区","安顺市平坝区天龙镇人民政府",2060,"安顺市平坝区天龙镇公共事务服务中心","全额事业","01","专业技术人员","从事劳动就业和社会\n保障相关事务工作","综合管理类（A类）","——","206001",1,"本科及以上","学士及以上",null,"一级学科：公共管理类","一级学科：公共管理",null,null,"0851-34226315"]
[272,"平坝区","安顺市平坝区白云镇人民政府",2061,"安顺市平坝区白云镇农业服务中心","全额事业","01","专业技术人员","承担农业工程和农业设施建设等技术服务和管理工作，农业工程科学研究和技术推广","综合管理类（A类）","——","206101",1,"本科及以上","学士及以上",null,"学科门类：工学","学科门类：工学",null,null,"0851-34226315"]
[273,"平坝区","安顺市平坝区齐伯镇人民政府",2062,"安顺市平坝区齐伯镇党务政务中心","全额事业","01","专业技术人员","从事党群服务、综合便民审批服务工作。","综合管理类（A类）","——","206201",1,"本科及以上","学士及以上",null,"学科门类：文学","学科门类：文学",null,"中共党员（含预备党员）","0851-34226315"]
[274,"平坝区","安顺市平坝区齐伯镇人民政府",2063,"安顺市平坝区齐伯镇综治中心","全额事业","01","管理人员","从事对社会治安和社会稳定形势进行分析研判、动态监测工作。","综合管理类（A类）","——","206301",1,"大专及以上",{"$nulls":6},"0851-34226315"]
[275,"平坝区","安顺市平坝区齐伯镇人民政府",2064,"安顺市平坝区齐伯镇农业服务中心","全额事业","01","专业技术人员","从事农业技术推广服务、动植物疫病防控服务、农产品质量安全监测服务等工作。","综合管理类（A类）","——","206401",1,"本科及以上","学士及以上",null,"学科门类：农学","学科门类：农学",null,"限男性","0851-34226315"]
[276,"平坝区","安顺市平坝区齐伯镇人民政府",2064,"安顺市平坝区齐伯镇农业服务中心","全额事业","02","专业技术人员","从事农业技术推广服务、动植物疫病防控服务、农产品质量安全监测服务等工作。","综合管理类（A类）","——","206402",1,"本科及以上","学士及以上",null,"学科门类：农学","学科门类：农学",null,"限女性","0851-34226315"]
[277,"平坝区","安顺市平坝区齐伯镇人民政府",2065,"安顺市平坝区齐伯镇财政所","全额事业","01","管理人员","承担财政管理的事务性和服务性工作、决算相关工作;负责管理财政收支。","综合管理类（A类）","——","206501",1,"本科及以上","学士及以上",null,"二级学科：会计学、财务管理、财务会计教育","一级学科：会计\n二级学科：会计学",null,null,"0851-34226315"]
[278,"平坝区","安顺市平坝区羊昌布依族苗族乡人民政府",2066,"安顺市平坝区羊昌布依族苗族乡农业服务中心","全额事业","01","专业技术人员","从事动植物病疫防控工作","综合管理类（A类）","——","206601",1,"本科及以上","学士及以上",null,"一级学科：动物医学类","一级学科：兽医学、畜牧学",null,null,"0851-34226315"]
[279,"平坝区","安顺市平坝区羊昌布依族苗族乡人民政府",2067,"安顺市平坝区羊昌布依族苗族乡公共事务服务中心","全额事业","01","专业技术人员","从事村镇规划建设、集镇规划管理等工作","综合管理类（A类）","——","206701",1,"本科及以上","学士及以上",null,"二级学科：城乡规划、土木工程、工程管理","一级学科：建筑学",null,null,"0851-34226315"]
[280,"平坝区","安顺市平坝区羊昌布依族苗族乡人民政府",2068,"安顺市平坝区羊昌布依族苗族乡党务政务中心","全额事业","01","管理人员","从事政务服务工作以及政务信息统计汇总","综合管理类（A类）","——","206801",1,"本科及以上","学士及以上",null,"一级学科：法学类",{"$nulls":3},"0851-34226315"]
[281,"平坝区","安顺市平坝区十字回族苗族乡人民政府",2069,"安顺市平坝区十字回族苗族乡公共事务服务中心","全额事业","01","管理人员","从事乡镇公共事务服务日常工作","综合管理类（A类）","——","206901",1,"本科及以上","学士及以上",{"$nulls":3},"定向生源地或兵源地为平坝区的退役士兵、驻安部队干部（士官）符合条件的六类随军家属","该定向招聘岗位在本单位最低服务年限为5年（含试用期）","0851-34226315"]
[282,"平坝区","安顺市平坝区十字回族苗族乡人民政府",2070,"安顺市平坝区十字回族苗族乡财政所","全额事业","01","管理人员","从事乡镇财政所日常工作","综合管理类（A类）","——","207001",1,"本科及以上","学士及以上",null,"二级学科：财务管理、会计学","一级学科：会计\n二级学科：会计学",null,null,"0851-34226315"]
[283,"平坝区","安顺市平坝区十字回族苗族乡人民政府",2071,"安顺市平坝区十字回族苗族乡社会工作服务站","全额事业","01","管理人员","从事社会工作服务站日常工作","综合管理类（A类）","——","207101",1,"中专（技校、职高、高中）及以上",{"$nulls":4},"定向招聘平坝区（不含高峰镇、马场镇）村干部","该定向招聘岗位在本单位最低服务年限为5年（含试用期）","0851-34226315"]
[284,"平坝区","安顺市平坝区教育和科技局",2072,"安顺市平坝区第二小学","全额事业","01","专业技术人员","从事小学数学教学工作","中小学教师类（D类）","小学教师岗位","207201",1,"本科及以上","学士及以上",null,"一级学科：数学类","一级学科：数学",null,"具备小学及以上数学教师资格证书","0851-34226315"]
[285,"平坝区","安顺市平坝区教育和科技局",2072,"安顺市平坝区第二小学","全额事业","02","专业技术人员","从事小学英语教学工作","中小学教师类（D类）","小学教师岗位","207202",1,"本科及以上","学士及以上",null,"二级学科：英语、英语教育","二级学科：英语语言文学",null,"具备小学及以上英语教师资格证书","0851-34226315"]
[286,"平坝区","安顺市平坝区教育和科技局",2072,"安顺市平坝区第二小学","全额事业","03","专业技术人员","从事小学体育教学工作","中小学教师类（D类）","小学教师岗位","207203",1,"本科及以上","学士及以上",null,"一级学科：体育学类","一级学科：体育学",null,"具备小学及以上体育与健康教师资格证书","0851-34226315"]
[287,"平坝区","安顺市平坝区教育和科技局",2072,"安顺市平坝区第二小学","全额事业","04","专业技术人员","从事小学科学教学工作","中小学教师类（D类）","小学教师岗位","207204",1,"本科及以上","学士及以上",null,"一级学科：生物科学类、物理学类、化学类\n二级学科：科学教育","一级学科：生物学、化学、物理学","定向2024年度毕业生","1..具有小学及以上科学或初级中学及以上物理、化学、生物教师资格证书；\n2.该岗位在本单位最低服务年限为5年（含试用期）","0851-34226315"]
[288,"平坝区","安顺市平坝区教育和科技局",2073,"安顺市平坝区夏云中心小学","全额事业","01","专业技术人员","从事小学语文教学工作","中小学教师类（D类）","小学教师岗位","207301",6,"本科及以上","学士及以上",null,"一级学科：中国语言文学类","一级学科：中国语言文学",null,"具备小学及以上语文教师资格证书","0851-34226315"]
[289,"平坝区","安顺市平坝区教育和科技局",2074,"安顺市平坝区第一小学","全额事业","01","专业技术人员","从事小学语文教学工作","中小学教师类（D类）","小学教师岗位","207401",1,"本科及以上","学士及以上",null,"一级学科：中国语言文学类","一级学科：中国语言文学","定向2024年度毕业生","1.具备小学及以上语文教师资格证书;\n2.该岗位在本单位最低服务年限为5年（含试用期）","0851-34226315"]
[290,"平坝区","安顺市平坝区教育和科技局",2074,"安顺市平坝区第一小学","全额事业","02","专业技术人员","从事小学英语教学工作","中小学教师类（D类）","小学教师岗位","207402",2,"本科及以上","学士及以上",null,"二级学科：英语、英语教育","二级学科：英语语言文学",null,"具备小学及以上英语教师资格证书","0851-34226315"]
[291,"平坝区","安顺市平坝区教育和科技局",2074,"安顺市平坝区第一小学","全额事业","03","专业技术人员","从事小学音乐教学工作","中小学教师类（D类）","小学教师岗位","207403",1,"本科及以上","学士及以上",null,"一级学科：音乐与舞蹈学类","二级学科：音乐学、舞蹈学",null,"具备小学及以上音乐教师资格证书","0851-34226315"]
[292,"平坝区","安顺市平坝区教育和科技局",2075,"安顺市平坝区平水学校","全额事业","01","专业技术人员","从事小学数学教学工作","中小学教师类（D类）","小学教师岗位","207501",1,"本科及以上","学士及以上",null,"一级学科：数学类","一级学科：数学",null,"具备小学及以上数学教师资格证书","0851-34226315"]
[293,"平坝区","安顺市平坝区教育和科技局",2076,"安顺市平坝区逸夫小学","全额事业","01","专业技术人员","从事小学语文教学工作","中小学教师类（D类）","小学教师岗位","207601",1,"本科及以上","学士及以上",null,"一级学科：中国语言文学类","一级学科：中国语言文学",null,"具备小学及以上语文教师资格证书","0851-34226315"]
[294,"平坝区","安顺市平坝区教育和科技局",2077,"安顺市平坝区第三小学","全额事业","01","专业技术人员","从事小学体育教学工作","中小学教师类（D类）","小学教师岗位","207701",1,"本科及以上","学士及以上",null,"一级学科：体育学类","一级学科：体育学",null,"具备小学及以上体育与健康教师资格证书","0851-34226315"]
[295,"平坝区","安顺市平坝区教育和科技局",2077,"安顺市平坝区第三小学","全额事业","02","专业技术人员","从事小学数学教学工作","中小学教师类（D类）","小学教师岗位","207702",1,"本科及以上","学士及以上",null,"一级学科：数学类","一级学科：数学",null,"具备小学及以上数学教师资格证书","0851-34226315"]
[296,"平坝区","安顺市平坝区教育和科技局",2077,"安顺市平坝区第三小学","全额事业","03","专业技术人员","从事小学科学教学工作","中小学教师类（D类）","小学教师岗位","207703",1,"本科及以上","学士及以上",null,"一级学科：生物科学类、物理学类、化学类\n二级学科：科学教育","一级学科：生物学、化学、物理学",null,"具有小学及以上科学或初级中学及以上物理、化学、生物教师资格证书","0851-34226315"]
[297,"平坝区","安顺市平坝区教育和科技局",2078,"安顺市平坝区乐平中心小学","全额事业","01","专业技术人员","从事小学语文教学工作","中小学教师类（D类）","小学教师岗位","207801",2,"本科及以上","学士及以上",null,"一级学科：中国语言文学类","一级学科：中国语言文学",null,"具备小学及以上语文教师资格证书","0851-34226315"]
[298,"平坝区","安顺市平坝区教育和科技局",2078,"安顺市平坝区乐平中心小学","全额事业","02","专业技术人员","从事小学英语教学工作","中小学教师类（D类）","小学教师岗位","207802",1,"本科及以上","学士及以上",null,"二级学科：英语、英语教育","二级学科：英语语言文学",null,"具备小学及以上英语教师资格证书","0851-34226315"]
[299,"平坝区","安顺市平坝区教育和科技局",2079,"安顺市平坝区齐伯中心学校","全额事业","01","专业技术人员","从事小学数学教学工作","中小学教师类（D类）","小学教师岗位","207901",1,"本科及以上","学士及以上",null,"一级学科：数学类","一级学科：数学",null,"具备小学及以上数学教师资格证书","0851-34226315"]
[300,"平坝区","安顺市平坝区教育和科技局",2080,"安顺市平坝区黎阳学校","全额事业","01","专业技术人员","从事小学语文教学工作","中小学教师类（D类）","小学教师岗位","208001",1,"本科及以上","学士及以上",null,"一级学科：中国语言文学类","一级学科：中国语言文学",null,"具备小学及以上语文教师资格证书","0851-34226315"]
[301,"平坝区","安顺市平坝区教育和科技局",2080,"安顺市平坝区黎阳学校","全额事业","02","专业技术人员","从事初中语文教学工作","中小学教师类（D类）","中学教师岗位","208002",1,"本科及以上","学士及以上",null,"一级学科：中国语言文学类","一级学科：中国语言文学",null,"具备初级中学及以上语文教师资格证书","0851-34226315"]
[302,"平坝区","安顺市平坝区教育和科技局",2080,"安顺市平坝区黎阳学校","全额事业","03","专业技术人员","从事初中英语教学工作","中小学教师类（D类）","中学教师岗位","208003",1,"本科及以上","学士及以上",null,"二级学科：英语、英语教育","二级学科：英语语言文学",null,"具备初级中学及以上英语教师资格证书","0851-34226315"]
[303,"平坝区","安顺市平坝区教育和科技局",2080,"安顺市平坝区黎阳学校","全额事业","04","专业技术人员","从事初中体育教学工作","中小学教师类（D类）","中学教师岗位","208004",1,"本科及以上","学士及以上",null,"一级学科：体育学类","一级学科：体育学",null,"具备初级中学及以上体育与健康教师资格证书","0851-34226315"]
[304,"平坝区","安顺市平坝区教育和科技局",2081,"安顺市平坝区第二中学","全额事业","01","专业技术人员","从事初中语文教学工作","中小学教师类（D类）","中学教师岗位","208101",2,"本科及以上","学士及以上",null,"一级学科：中国语言文学类","一级学科：中国语言文学","定向2024年度毕业生","1.具备初级中学及以上语文教师资格证书;\n2.该岗位在本单位最低服务年限为5年（含试用期）","0851-34226315"]
[305,"平坝区","安顺市平坝区教育和科技局",2081,"安顺市平坝区第二中学","全额事业","02","专业技术人员","从事初中数学教学工作","中小学教师类（D类）","中学教师岗位","208102",2,"本科及以上","学士及以上",null,"一级学科：数学类","一级学科：数学",null,"具备初级中学及以上数学教师资格证书","0851-34226315"]
[306,"平坝区","安顺市平坝区教育和科技局",2081,"安顺市平坝区第二中学","全额事业","03","专业技术人员","从事初中英语教学工作","中小学教师类（D类）","中学教师岗位","208103",2,"本科及以上","学士及以上",null,"二级学科：英语、英语教育","二级学科：英语语言文学",null,"具备初级中学及以上英语教师资格证书","0851-34226315"]
[307,"平坝区","安顺市平坝区教育和科技局",2081,"安顺市平坝区第二中学","全额事业","04","专业技术人员","从事初中道德与法治教学工作","中小学教师类（D类）","中学教师岗位","208104",1,"本科及以上","学士及以上",null,"一级学科：政治学类、\n二级学科：思想政治教育","一级学科：政治学\n二级学科：思想政治教育",null,"具备初级中学及以上道德与法治（或思想政治）教师资格证书","0851-34226315"]
[308,"平坝区","安顺市平坝区教育和科技局",2082,"安顺市平坝区第三中学","全额事业","01","专业技术人员","从事高中心理健康教育教学工作","中小学教师类（D类）","中学教师岗位","208201",1,"本科及以上","学士及以上",null,"一级学科：心理学类\n二级学科：心理健康教育","一级学科：心理学",null,null,"0851-34226315"]
[309,"平坝区","安顺市平坝区教育和科技局",2082,"安顺市平坝区第三中学","全额事业","02","专业技术人员","从事高中语文教学工作","中小学教师类（D类）","中学教师岗位","208202",4,"本科及以上","学士及以上",null,"一级学科：中国语言文学类","一级学科：中国语言文学",null,"具备高级中学语文教师资格证书","0851-34226315"]
[310,"平坝区","安顺市平坝区教育和科技局",2082,"安顺市平坝区第三中学","全额事业","03","专业技术人员","从事高中英语教学工作","中小学教师类（D类）","中学教师岗位","208203",5,"本科及以上","学士及以上",null,"二级学科：英语、英语教育","二级学科：英语语言文学",null,"具备高级中学英语教师资格证书","0851-34226315"]
[311,"平坝区","安顺市平坝区教育和科技局",2082,"安顺市平坝区第三中学","全额事业","04","专业技术人员","从事高中数学教学工作","中小学教师类（D类）","中学教师岗位","208204",4,"本科及以上","学士及以上",null,"一级学科：数学类","一级学科：数学",null,"具备高级中学数学教师资格证书","0851-34226315"]
[312,"平坝区","安顺市平坝区教育和科技局",2082,"安顺市平坝区第三中学","全额事业","05","专业技术人员","从事高中化学教学工作","中小学教师类（D类）","中学教师岗位","208205",1,"本科及以上","学士及以上",null,"一级学科：化学类","一级学科：化学","定向2024年度毕业生","1.具备高级中学化学教师资格证书;\n2.该岗位在本单位最低服务年限为5年（含试用期）","0851-34226315"]
[313,"平坝区","安顺市平坝区教育和科技局",2082,"安顺市平坝区第三中学","全额事业","06","专业技术人员","从事高中历史教学工作","中小学教师类（D类）","中学教师岗位","208206",1,"本科及以上","学士及以上",null,"一级学科：历史学类","一级学科：历史学",null,"具备高级中学历史教师资格证书","0851-34226315"]
[314,"平坝区","安顺市平坝区教育和科技局",2082,"安顺市平坝区第三中学","全额事业","07","专业技术人员","从事高中思想政治教学工作","中小学教师类（D类）","中学教师岗位","208207",1,"本科及以上","学士及以上",null,"一级学科：政治学类\n二级学科：思想政治教育","一级学科：政治学\n二级学科：思想政治教育",null,"具备高级中学思想政治教师资格证书","0851-34226315"]
[315,"平坝区","安顺市平坝区教育和科技局",2082,"安顺市平坝区第三中学","全额事业","08","专业技术人员","从事高中物理教学工作","中小学教师类（D类）","中学教师岗位","208208",2,"本科及以上","学士及以上",null,"一级学科：物理学类","一级学科：物理学","定向2024年度毕业生","1.具备高级中学物理教师资格证书;\n2.该岗位在本单位最低服务年限为5年（含试用期）","0851-34226315"]
[316,"平坝区","安顺市平坝区教育和科技局",2082,"安顺市平坝区第三中学","全额事业","09","专业技术人员","从事高中生物教学工作","中小学教师类（D类）","中学教师岗位","208209",2,"本科及以上","学士及以上",null,"一级学科：生物科学类","一级学科：生物学",null,"具备高级中学生物教师资格证书","0851-34226315"]
[317,"平坝区","安顺市平坝区教育和科技局",2082,"安顺市平坝区第三中学","全额事业","10","专业技术人员","从事高中体育教学工作","中小学教师类（D类）","中学教师岗位","208210",1,"本科及以上","学士及以上",null,"一级学科：体育学类","一级学科：体育学",null,"具备高级中学体育与健康教师资格证书","0851-34226315"]
[318,"平坝区","安顺市平坝区教育和科技局",2083,"安顺市平坝区第四中学","全额事业","01","专业技术人员","从事初中语文教学工作","中小学教师类（D类）","中学教师岗位","208301",2,"本科及以上","学士及以上",null,"一级学科：中国语言文学类","一级学科：中国语言文学",null,"具备初级中学及以上语文教师资格证书","0851-34226315"]
[319,"平坝区","安顺市平坝区教育和科技局",2083,"安顺市平坝区第四中学","全额事业","02","专业技术人员","从事初中数学教学工作","中小学教师类（D类）","中学教师岗位","208302",2,"本科及以上","学士及以上",null,"一级学科：数学类","一级学科：数学",null,"具备初级中学及以上数学教师资格证书","0851-34226315"]
[320,"平坝区","安顺市平坝区教育和科技局",2083,"安顺市平坝区第四中学","全额事业","03","专业技术人员","从事初中体育教学工作","中小学教师类（D类）","中学教师岗位","208303",1,"本科及以上","学士及以上",null,"一级学科：体育学类","一级学科：体育学",null,"具备初级中学及以上体育与健康教师资格证书","0851-34226315"]
[321,"平坝区","安顺市平坝区教育和科技局",2083,"安顺市平坝区第四中学","全额事业","04","专业技术人员","从事初中生物教学工作","中小学教师类（D类）","中学教师岗位","208304",1,"本科及以上","学士及以上",null,"一级学科：生物科学类","一级学科：生物学",null,"具备初级中学及以上生物教师资格证书","0851-34226315"]
[322,"平坝区","安顺市平坝区教育和科技局",2084,"安顺市平坝区中等职业学校","全额事业","01","专业技术人员","从事中职数学教学工作","中小学教师类（D类）","中学教师岗位","208401",1,"本科及以上","学士及以上",null,"一级学科：数学类","一级学科：数学","定向2024年度毕业生","1.具备高级中学或中等职业学校及以上数学教师资格证书；\n2.该岗位在本单位最低服务年限为5年（含试用期）","0851-34226315"]
[323,"平坝区","安顺市平坝区教育和科技局",2084,"安顺市平坝区中等职业学校","全额事业","02","专业技术人员","从事中职英语教学工作","中小学教师类（D类）","中学教师岗位","208402",1,"本科及以上","学士及以上",null,"二级学科：英语、英语教育","二级学科：英语语言文学",null,"具备高级中学或中等职业学校及以上英语教师资格证书","0851-34226315"]
[324,"平坝区","安顺市平坝区教育和科技局",2084,"安顺市平坝区中等职业学校","全额事业","03","专业技术人员","从事中职学生汽车维修实训指导工作","综合管理类（A类）","——","208403",1,"本科及以上","学士及以上",null,"二级学科：汽车维修工程教育、车辆工程、汽车服务工程、智能车辆工程、新能源汽车工程",{"$nulls":3},"0851-34226315"]
[325,"平坝区","安顺市平坝区教育和科技局",2085,"安顺市平坝区红湖中学","全额事业","01","专业技术人员","从事初中语文教学工作","中小学教师类（D类）","中学教师岗位",{"$f":"D329&G329","v":"208501"},2,"本科及以上","学士及以上",null,"一级学科：中国语言文学类","一级学科：中国语言文学（",null,"具备初级中学及以上语文教师资格证书","0851-34226315"]
[326,"平坝区","安顺市平坝区教育和科技局",2085,"安顺市平坝区红湖中学","全额事业","02","专业技术人员","从事初中英语教学工作","中小学教师类（D类）","中学教师岗位","208502",1,"本科及以上","学士及以上",null,"二级学科：英语、英语教育","二级学科：英语语言文学",null,"具备初级中学及以上英语教师资格证书","0851-34226315"]
[327,"平坝区","安顺市平坝区教育和科技局",2086,"安顺市平坝区十字乡民族中学","全额事业","01","专业技术人员","从事初中英语教学工作","中小学教师类（D类）","中学教师岗位","208601",1,"本科及以上","学士及以上",null,"二级学科：英语、英语教育","二级学科：英语语言文学",null,"具备初级中学及以上英语教师资格证书","0851-34226315"]
[328,"平坝区","安顺市平坝区教育和科技局",2086,"安顺市平坝区十字乡民族中学","全额事业","02","专业技术人员","从事初中数学教学工作","中小学教师类（D类）","中学教师岗位","208602",1,"本科及以上","学士及以上",null,"一级学科：数学类","一级学科：数学",null,"具备初级中学及以上数学教师资格证书","0851-34226315"]
[329,"普定县","普定县司法局",3001,"普定县公证处","全额事业","01","管理人员","从事公证工作","综合管理类（A类）","——","300101",1,"本科及以上","学士及以上",null,"一级学科：法学类","一级学科：法学",null,"获得国家统一法律职业资格考试证书C证及以上","0851-38222870"]
[330,"普定县","中共普定县委宣传部",3002,"普定县融媒体中心","全额事业","01","专业技术人员","从事新闻采编播工作","综合管理类（A类）","——","300201",2,"大专及以上",null,"一级学科：新闻类、广播影视类","一级学科：新闻传播学类、新闻类","一级学科：新闻传播学",null,"限安顺市户籍（生源）","0851-38222870"]
[331,"普定县","中共普定县委宣传部",3003,"普定县互联网舆情监测中心","全额事业","01","管理人员","从事舆情监测处置工作","综合管理类（A类）","——","300301",1,"本科及以上","学士及以上",null,"学科门类：管理学",{"$nulls":3},"0851-38222870"]
[332,"普定县","中共普定县委宣传部",3004,"普定县电影管理站","全额事业","01","管理人员","从事电影放映、扫黄打非等工作","综合管理类（A类）","——","300401",1,"本科及以上","学士及以上",{"$nulls":5},"0851-38222870"]
[333,"普定县","普定县应急管理局",3005,"普定县应急救援中心","全额事业","01","管理人员","主要从事单位财务工作","综合管理类（A类）","——","300501",1,"本科及以上","学士及以上",null,"一级学科：经济学类、财政学类、金融学类、工商管理类","一级学科：应用经济学、工商管理",null,null,"0851-38222870"]
[334,"普定县","普定县市场监督管理局",3006,"普定县市场监督管理局信息中心","全额事业","01","管理人员","从事数据维护、网络安全监管等工作","综合管理类（A类）","——","300601",1,"本科及以上","学士及以上",{"$nulls":5},"0851-38222870"]
[335,"普定县","普定县林业局",3007,"普定县风景园林管理站","全额事业","01","专业技术人员","从事风景园林管理工作","综合管理类（A类）","——","300701",1,"本科及以上","学士及以上",null,"一级学科：林学类、林业工程类\n二级学科：风景园林","一级学科：林学、林业工程\n二级学科：城市规划与设计","定向2024年度毕业生",null,"0851-38222870"]
[336,"普定县","普定县林业局",3007,"普定县风景园林管理站","全额事业","02","专业技术人员","从事风景园林管理工作","综合管理类（A类）","——","300702",1,"本科及以上","学士及以上",null,"一级学科：林学类、林业工程类\n二级学科：风景园林","一级学科：林学、林业工程\n二级学科：城市规划与设计",null,null,"0851-38222870"]
[337,"普定县","中国共产党普定县委党校",3008,"中国共产党普定县委党校","全额事业","01","专业技术人员","从事办公室财务工作","综合管理类（A类）","——","300801",1,"研究生及以上","硕士及以上",null,null,"学科门类：经济学",null,null,"0851-38222870"]
[338,"普定县","普定经济开发区管理委员会",3009,"普定循环经济产业基地管理服务中心","全额事业","01","管理人员","从事办公室综合管理及文秘工作","综合管理类（A类）","——","300901",1,"本科及以上","学士及以上",null,"一级学科：中国语言文学类",null,"定向2024年度毕业生",null,"0851-38222870"]
[339,"普定县","普定经济开发区管理委员会",3009,"普定循环经济产业基地管理服务中心","全额事业","02","管理人员","从事产业发展融资工作","综合管理类（A类）","——","300902",1,"本科及以上","学士及以上",null,"一级学科：金融学类",{"$nulls":3},"0851-38222870"]
[340,"普定县","普定县教育和科技局",3010,"普定县第四小学","全额事业","01","专业技术人员","从事数学教育教学工作","中小学教师类（D类）","小学教师岗位","301001",1,"本科及以上",null,null,"二级学科：数学与应用数学","二级学科：基础数学、计算数学、概率论与数理统计、应用数学","定向2024年度毕业生","具有小学数学及以上教师资格证","0851-38222870"]
[341,"普定县","普定县教育和科技局",3010,"普定县第四小学","全额事业","02","专业技术人员","从事英语教育教学工作","中小学教师类（D类）","小学教师岗位","301002",1,"本科及以上",null,null,"二级学科：英语、商务英语","二级学科：英语语言文学","定向2024年度毕业生","具有小学英语及以上教师资格证","0851-38222870"]
[342,"普定县","普定县教育和科技局",3011,"普定县第五小学","全额事业","01","专业技术人员","从事数学教育教学工作","中小学教师类（D类）","小学教师岗位","301101",1,"本科及以上",null,null,"二级学科：数学与应用数学","二级学科：基础数学、计算数学、概率论与数理统计、应用数学","定向2024年度毕业生","具有小学数学及以上教师资格证","0851-38222870"]
[343,"普定县","普定县教育和科技局",3012,"普定县第七小学","全额事业","01","专业技术人员","从事语文教育教学工作","中小学教师类（D类）","小学教师岗位","301201",1,"本科及以上",null,null,"二级学科：汉语言文学、汉语言、汉语国际教育","二级学科：语言学及应用语言学、汉语言文字学、中国古典文献学、中国古代文学、中国现当代文学","定向2024年度毕业生","具有小学语文及以上教师资格证","0851-38222870"]
[344,"普定县","普定县教育和科技局",3013,"普定县第二中学","全额事业","01","专业技术人员","从事数学教育教学工作","中小学教师类（D类）","中学教师岗位","301301",1,"本科及以上",null,null,"\n二级学科：数学与应用数学","二级学科：基础数学、计算数学、概率论与数理统计、应用数学",null,"具有初中数学及以上教师资格证","0851-38222870"]
[345,"普定县","普定县教育和科技局",3014,"普定县第四中学","全额事业","01","专业技术人员","从事数学教育教学工作","中小学教师类（D类）","中学教师岗位","301401",1,"本科及以上",null,null,"\n二级学科：数学与应用数学","二级学科：基础数学、计算数学、概率论与数理统计、应用数学",null,"具有初中数学及以上教师资格证","0851-38222870"]
[346,"普定县","普定县教育和科技局",3014,"普定县第四中学","全额事业","02","专业技术人员","从事物理教育教学工作","中小学教师类（D类）","中学教师岗位","301402",1,"本科及以上",null,null,"\n二级学科：物理学、应用物理学","二级学科：理论物理、粒子物理与原子核物理、原子与分子物理、等离子体物理、凝聚态物理、无线电物理",null,"具有初中物理及以上教师资格证","0851-38222870"]
[347,"普定县","普定县教育和科技局",3015,"普定县第五中学","全额事业","01","专业技术人员","从事数学教育教学工作","中小学教师类（D类）","中学教师岗位","301501",1,"本科及以上",null,null,"\n二级学科：数学与应用数学","二级学科：基础数学、计算数学、概率论与数理统计、应用数学",null,"具有初中数学及以上教师资格证","0851-38222870"]
[348,"普定县","普定县教育和科技局",3015,"普定县第五中学","全额事业","02","专业技术人员","从事英语教育教学工作","中小学教师类（D类）","中学教师岗位","301502",1,"本科及以上",null,null,"\n二级学科：英语、商务英语","\n二级学科：英语语言文学",null,"具有初中英语及以上教师资格证","0851-38222870"]
[349,"普定县","普定县教育和科技局",3016,"普定县实验高级中学","全额事业","01","专业技术人员","从事物理教育教学工作","中小学教师类（D类）","中学教师岗位","301601",1,"本科及以上",null,null,"\n二级学科：物理学、应用物理学","二级学科：理论物理、粒子物理与原子核物理、原子与分子物理、等离子体物理、凝聚态物理、无线电物理",null,"具有高中物理教师资格证","0851-38222870"]
[350,"普定县","普定县自然资源局",3017,"普定县马场镇国土资源管理所","全额事业","01","管理人员","从事自然资源管理工作","综合管理类（A类）","——","301701",1,"本科及以上","学士及以上",{"$nulls":3},"定向2024年度毕业生",null,"0851-38222870"]
[351,"普定县","普定县自然资源局",3018,"普定县补郎苗族乡国土资源管理所","全额事业","01","管理人员","从事自然资源管理工作","综合管理类（A类）","——","301801",1,"本科及以上","学士及以上",null,"一级学科：地质类、矿业类、地理科学类、建筑类\n二级学科：土地资源管理",null,"定向2024年度毕业生",null,"0851-38222870"]
[352,"普定县","普定县自然资源局",3019,"普定县猴场苗族仡佬族乡国土资源管理所","全额事业","01","管理人员","从事自然资源管理工作","综合管理类（A类）","——","301901",1,"本科及以上","学士及以上",{"$nulls":5},"0851-38222870"]
[353,"普定县","普定县自然资源局",3020,"普定县猫洞苗族仡佬族乡国土资源管理所","全额事业","01","管理人员","从事自然资源管理工作","综合管理类（A类）","——","302001",1,"本科及以上","学士及以上",null,"一级学科：地质类、矿业类、地理科学类、建筑类\n二级学科：土地资源管理",{"$nulls":3},"0851-38222870"]
[354,"普定县","普定县住房和城乡建设局",3021,"普定县园林局","全额事业","01","管理人员","从事办公室相关工作","综合管理类（A类）","——","302101",1,"本科及以上","学士及以上",{"$nulls":5},"0851-38222870"]
[355,"普定县","普定县住房和城乡建设局",3022,"普定县环境卫生管理站","全额事业","01","管理人员","从事办公室相关工作","综合管理类（A类）","——","302201",1,"大专及以上",{"$nulls":4},"定向驻普定部队现役军人符合条件的六类随军家属",null,"0851-38222870"]
[356,"普定县","普定县住房和城乡建设局",3023,"普定县建设工程质量安全监督站","全额事业","01","专业技术人员","主要负责县域内建设工程质量安全监管，建筑市场管理工作","综合管理类（A类）","——","302301",1,"本科及以上","学士及以上",null,"一级学科：建筑类、土木类",{"$nulls":3},"0851-38222870"]
[357,"普定县","普定县住房和城乡建设局",3024,"普定县棚户区改造办公室","全额事业","01","专业技术人员","主要负责全县所有的棚户区改造工作","综合管理类（A类）","——","302401",1,"本科及以上","学士及以上",null,"一级学科：建筑类、土木类",null,"定向2024年度毕业生",null,"0851-38222870"]
[358,"普定县","普定县民政局",3025,"普定县精神病医院","全额事业","01","专业技术人员","从事临床相关工作","医疗卫生类（E类）","西医临床岗位","302501",1,"本科及以上","学士及以上",null,"二级学科：临床医学","二级学科：精神病与精神卫生学",null,null,"0851-38222870"]
[359,"普定县","普定县民政局",3025,"普定县精神病医院","全额事业","02","专业技术人员","从事医学检验相关工作","医疗卫生类（E类）","医学技术岗位","302502",1,"本科及以上","学士及以上",null,"二级学科：医学检验技术","二级学科：临床检验诊断学",null,"取得初级医学检验技术专业技术资格证书（师）及以上","0851-38222870"]
[360,"普定县","普定县卫生健康局",3026,"普定县人民医院","差额事业","01","专业技术人员","从事眼耳鼻喉科临床诊疗工作","医疗卫生类（E类）","西医临床岗位","302601",1,"本科及以上","学士及以上",null,"二级学科：临床医学","\n二级学科：眼科学、耳鼻咽喉科学",null,"1.2016年以后毕业的需取得住院医师规范化培训合格证书；\n2.且取得执业医师资格证书，执业范围需为眼耳鼻咽喉科专业。","0851-38222870"]
[361,"普定县","普定县卫生健康局",3026,"普定县人民医院","差额事业","02","专业技术人员","从事眼耳鼻喉科临床诊疗工作","医疗卫生类（E类）","西医临床岗位","302602",1,"本科及以上","学士及以上",null,"二级学科：临床医学","二级学科：眼科学、耳鼻咽喉科学、内科学",null,"1.取得执业医师资格证；\n2.该岗位招聘人员需派驻基层服务。取得住院医师规范化培训合格证书后须到普定县乡镇卫生院服务3年。","0851-38222870"]
[362,"普定县","普定县卫生健康局",3026,"普定县人民医院","差额事业","03","专业技术人员","从事肿瘤科临床诊疗工作","医疗卫生类（E类）","西医临床岗位","302603",2,"本科及以上","学士及以上",null,"二级学科：临床医学","二级学科：肿瘤学",null,"1.2016年以后毕业的需取得住院医师规范化培训合格证书；\n2.取得执业医师资格证书。","0851-38222870"]
[363,"普定县","普定县卫生健康局",3026,"普定县人民医院","差额事业","04","专业技术人员","从事精神心理科临床诊疗工作","医疗卫生类（E类）","西医临床岗位","302604",1,"本科及以上","学士及以上",null,"二级学科：临床医学、精神医学","\n二级学科：精神病与精神卫生学",null,"1.2016年以后毕业的需取得住院医师规范化培训合格证书；\n2.取得执业医师资格证书，执业范围需为精神卫生专业。","0851-38222870"]
[364,"普定县","普定县卫生健康局",3026,"普定县人民医院","差额事业","05","专业技术人员","从事财务科日常工作","综合管理类（A类）","——","302605",1,"本科及以上","学士及以上",null,"二级学科：财务管理、会计学","二级学科：会计学",null,"1.限安顺市户籍（生源）；\n2.取得助理会计师及以上职称","0851-38222870"]
[365,"普定县","普定县卫生健康局",3027,"普定县中医医院","差额事业","01","专业技术人员","从事呼吸科临床诊疗工作","医疗卫生类（E类）","中医临床岗位","302701",1,"本科及以上","学士及以上",null,"二级学科：中医学、中西医临床医学","二级学科：中医内科学、中西医结合临床",null,"限安顺市户籍（生源），并需满足下列条件之一：\n1.本科学历，需取得副高及以上职称；\n2.专业型硕士研究生同时取得执业医师资格证书。\n","0851-38222870"]
[366,"普定县","普定县卫生健康局",3027,"普定县中医医院","差额事业","02","专业技术人员","从事肾内科临床诊疗工作","医疗卫生类（E类）","中医临床岗位","302702",1,"本科及以上","学士及以上",null,"二级学科：中医学、中西医临床医学","二级学科：中医内科学、中西医结合临床",null,"需满足下列条件之一：\n1.本科学历：需取得中级及以上职称且在二甲及以上公立医院任职肾内科中级职称资格年限不低于两年；\n2.专业型硕士研究生同时取得执业医师资格证书。","0851-38222870"]
[367,"普定县","普定县卫生健康局",3027,"普定县中医医院","差额事业","03","专业技术人员","从事神经内科临床诊疗工作","医疗卫生类（E类）","西医临床岗位","302703",1,"本科及以上","学士及以上",null,"二级学科：临床医学","二级学科：神经病学",null,"需满足下列条件之一：1.本科学历，需取得中级及以上职称或取得规范化培训合格证书；\n2.专业型硕士研究生同时取得执业医师资格证书。","0851-38222870"]
[368,"普定县","普定县卫生健康局",3027,"普定县中医医院","差额事业","04","专业技术人员","从事康复科临床诊疗工作","医疗卫生类（E类）","西医临床岗位","302704",1,"本科及以上","学士及以上",null,"二级学科：临床医学","二级学科：康复医学与理疗学",null,"执业范围需为康复专业同时满足下列条件之一：1.本科学历：需取得中级及以上职称或取得规范化培训合格证书；\n2.专业型硕士研究生同时取得执业医师资格证书。","0851-38222870"]
[369,"普定县","普定县卫生健康局",3027,"普定县中医医院","差额事业","05","专业技术人员","从事儿科临床诊疗工作","医疗卫生类（E类）","西医临床岗位","302705",1,"本科及以上","学士及以上",null,"二级学科：临床医学、儿科学","二级学科：儿科学",null,"需满足下列条件之一：1.本科学历：需取得中级及以上职称且在二甲及以上公立医院任职中级职称资格年限不低于三年或取得副高及以上职称；\n2.专业型硕士研究生同时取得执业医师资格证书。","0851-38222870"]
[370,"普定县","普定县卫生健康局",3028,"普定县妇幼保健院","全额事业","01","专业技术人员","从事新生儿科临床诊疗工作","医疗卫生类（E类）","西医临床岗位","302801",1,"本科及以上","学士及以上",null,"二级学科：临床医学、儿科学","二级学科：儿科学",null,"需满足下列条件之一：1.本科学历：需取得中级及以上职称或取得规范化培训合格证书；\n2.专业型硕士研究生同时取得执业医师资格证书。","0851-38222870"]
[371,"普定县","普定县卫生健康局",3028,"普定县妇幼保健院","全额事业","02","专业技术人员","从事产科临床诊疗工作","医疗卫生类（E类）","西医临床岗位","302802",1,"本科及以上","学士及以上",null,"二级学科：临床医学","二级学科：妇产科学",null,"需满足下列条件之一：1.本科学历：需取得中级及以上职称；\n2.专业型硕士研究生。","0851-38222870"]
[372,"普定县","普定县卫生健康局",3028,"普定县妇幼保健院","全额事业","03","专业技术人员","从事妇科临床诊疗工作","医疗卫生类（E类）","西医临床岗位","302803",1,"本科及以上","学士及以上",null,"二级学科：临床医学","二级学科：妇产科学",null,"需满足下列条件之一：1.本科学历：需取得副高及以上职称；\n2.专业型硕士研究生。","0851-38222870"]
[373,"普定县","普定县工业和信息化局",3029,"普定县煤矿驻矿安全监管中心","全额事业","01","专业技术人员","从事煤矿安全监管","综合管理类（A类）","——","302901",1,"本科及以上","学士及以上",null,"二级学科：地质工程、采矿工程、安全工程","二级学科：地质工程、采矿工程、安全技术及工程",null,null,"0851-38222870"]
[374,"普定县","普定县工业和信息化局",3029,"普定县煤矿驻矿安全监管中心","全额事业","02","专业技术人员","从事煤矿安全监管","综合管理类（A类）","——","302902",1,"本科及以上","学士及以上",null,"二级学科：地质工程、采矿工程、安全工程","二级学科：地质工程、采矿工程、安全技术及工程",null,"限安顺市户籍（生源）","0851-38222870"]
[375,"普定县","普定县交通运输局",3030,"普定县交通运输事业发展中心","全额事业","01","专业技术人员","负责辖区农村公路建设、管理、养护等工作","综合管理类（A类）","——","303001",1,"本科及以上",null,null,"二级学科：土木工程、交通土建工程、道路与桥梁工程、道路桥梁与渡河工程","一级学科：交通运输工程",null,"限普定县户籍（生源）","0851-38222870"]
[376,"普定县","普定县交通运输局",3030,"普定县交通运输事业发展中心","全额事业","02","专业技术人员","负责辖区农村公路建设、管理、养护等工作","综合管理类（A类）","——","303002",1,"本科及以上","学士及以上",null,"二级学科：交通运输、交通工程、轮机工程","一级学科：交通运输工程","定向2024年度毕业生",null,"0851-38222870"]
[377,"普定县","普定县交通运输局",3030,"普定县交通运输事业发展中心","全额事业","03","专业技术人员","负责辖区农村公路建设、管理、养护等工作","综合管理类（A类）","——","303003",1,"本科及以上","学士及以上",null,"二级学科：建筑环境与能源应用工程、土木工程、建筑电气与智能化","一级学科：交通运输工程","定向2024年度毕业生",null,"0851-38222870"]
[378,"普定县","普定县文体广电旅游局",3031,"普定县村村通广播电视维修服务中心","全额事业","01","专业技术人员","从事广播电视、金融、公共管理、文学创作等工作","综合管理类（A类）","——","303101",1,"本科及以上","学士及以上",null,"一级学科：统计学类二级学科:广播电视学、金融学、行政管理专、汉语言文学",null,null,"限普定县户籍（生源）","0851-38222870"]
[379,"普定县","普定县人民政府办公室",3032,"普定县应急值守中心","全额事业","01","管理人员","从事县人民政府应急值守工作","综合管理类（A类）","——","303201",1,"本科及以上","学士及以上",null,"一级学科：中国语言文学类、公共管理类",{"$nulls":3},"0851-38222870"]
[380,"普定县","普定县人民政府办公室",3033,"普定县人民政府经济发展与法制研究中心","全额事业","01","管理人员","从事政府法制工作方面的理论研究等工作","综合管理类（A类）","——","303301",1,"本科及以上","学士及以上",null,"一级学科：中国语言文学类、公共管理类、法学类",{"$nulls":3},"0851-38222870"]
[381,"普定县","普定县水务局",3034,"普定县青山水库管理所","全额事业","01","管理人员","从事水利行业管理岗位工作","综合管理类（A类）","——","303401",1,"大专及以上",{"$nulls":4},"定向驻普定部队现役军人符合条件的六类随军家属",null,"0851-38222870"]
[382,"普定县","普定县水务局",3035,"普定县猛登水库管理所（红坪水库管理所）","全额事业","01","管理人员","从事水利行业管理岗位工作","综合管理类（A类）","——","303501",1,"本科及以上",{"$nulls":5},"限安顺市户籍（生源）","0851-38222870"]
[383,"普定县","普定县水务局",3036,"普定县水利建设管理站（县河长制工作中心）","全额事业","01","专业技术人员","从事水利行业专业技术岗位工作","综合管理类（A类）","——","303601",1,"本科及以上",null,null,"一级学科：水利类、土木类、自然保护与环境生态类",null,"定向2024年度毕业生",null,"0851-38222870"]
[384,"普定县","普定县水务局",3037,"普定县火石坡水库管理所","全额事业","01","专业技术人员","从事水利行业专业技术岗位工作","综合管理类（A类）","——","303701",1,"本科及以上",null,null,"一级学科：水利类、土木类、自然保护与环境生态类",{"$nulls":3},"0851-38222870"]
[385,"普定县","普定县穿洞街道办事处",3038,"普定县穿洞街道综治中心","全额事业","01","管理人员","从事综治信访维稳工作","综合管理类（A类）","——","303801",1,"本科及以上","学士及以上",{"$nulls":5},"0851-38222870"]
[386,"普定县","普定县穿洞街道办事处",3039,"普定县穿洞街道公共事务中心","全额事业","01","专业技术人员","从事社会保障事务性工作","综合管理类（A类）","——","303901",1,"本科及以上","学士及以上",{"$nulls":5},"0851-38222870"]
[387,"普定县","普定县定南街道办事处",3040,"普定县定南街道农业服务中心","全额事业","01","专业技术人员","从事农作物病虫害、动植物疫病工作","综合管理类（A类）","——","304001",1,"大专及以上",null,"一级学科：畜牧兽医类、动物生产与兽医类","一级学科：动物医学类、动物生产与兽医类","一级学科：畜牧学",null,null,"0851-38222870"]
[388,"普定县","普定县定南街道办事处",3041,"普定县定南街道鑫旺政务服务中心","全额事业","01","管理人员","从事搬迁到鑫旺社区群众的服务工作","综合管理类（A类）","——","304101",1,"本科及以上","学士及以上",{"$nulls":5},"0851-38222870"]
[389,"普定县","普定县定南街道办事处",3041,"普定县定南街道鑫旺政务服务中心","全额事业","02","管理人员","从事搬迁到鑫旺社区群众的服务工作","综合管理类（A类）","——",{"$f":"D393&G393","v":"304102"},1,"本科及以上","学士及以上",{"$nulls":3},"定向普定县“基层服务项目人员”",null,"0851-38222870"]
[390,"普定县","普定县黄桶街道办事处",3042,"普定县黄桶街道农业服务中心","全额事业","01","专业技术人员","从事农业服务中心日常工作","综合管理类（A类）","——","304201",1,"本科及以上","学士及以上",null,"一级学科：植物生产类","一级学科：作物学、植物保护、园艺学",null,null,"0851-38222870"]
[391,"普定县","普定县玉秀街道办事处",3043,"普定县玉秀街道财政所","全额事业","01","管理人员","从事财政所办公室日常工作","综合管理类（A类）","——","304301",1,"大专及以上",{"$nulls":4},"定向普定县“基层服务项目人员”",null,"0851-38222870"]
[392,"普定县","普定县玉秀街道办事处",3044,"普定县玉秀街道综治中心（普定县玉秀街道网格化管理服务中心）","全额事业","01","管理人员","从事社会治安网格化服务管理及群防群治工作","综合管理类（A类）","——","304401",1,"本科及以上",null,null,"一级学科：法学类",{"$nulls":3},"0851-38222870"]
[393,"普定县","普定县化处镇人民政府",3045,"普定县化处镇水利和移民工作站","全额事业","01","专业技术人员","从事水利建设、饮水灌溉的规划设计、安装、管理的相关工作","综合管理类（A类）","——","304501",1,"本科及以上","学士及以上",null,"一级学科：水利类、管理科学与工程类",{"$nulls":3},"0851-38222870"]
[394,"普定县","普定县化处镇人民政府",3046,"普定县财政局化处镇分局","全额事业","01","管理人员","从事编制年度财政收支预、决算工作","综合管理类（A类）","——","304601",1,"本科及以上","学士及以上",{"$nulls":5},"0851-38222870"]
[395,"普定县","普定县化处镇人民政府",3047,"普定县化处镇科技宣教文化信息服务中心","全额事业","01","管理人员","从事文化宣传、信息收集与传递等服务性工作","综合管理类（A类）","——","304701",1,"本科及以上","学士及以上",{"$nulls":3},"定向普定县“基层服务项目人员”",null,"0851-38222870"]
[396,"普定县","普定县鸡场坡镇人民政府",3048,"普定县财政局鸡场坡镇分局","全额事业","01","管理人员","从事会计、财务管理工作","综合管理类（A类）","——","304801",2,"本科及以上",null,null,"二级学科：会计、会计学、财务管理、审计学",null,null,"具有会计初级及以上专业技术资格证书","0851-38222870"]
[397,"普定县","普定县鸡场坡镇人民政府",3049,"普定县鸡场坡镇乡村振兴服务站","全额事业","01","专业技术人员","从事乡村振兴服务站日常业务工作","综合管理类（A类）","——","304901",1,"本科及以上",{"$nulls":6},"0851-38222870"]
[398,"普定县","普定县马场镇人民政府",3050,"普定县马场镇农业服务中心","全额事业","01","专业技术人员","从事畜牧防疫工作","综合管理类（A类）","——","305001",1,"大专及以上",null,"一级学科：畜牧兽医类","一级学科：动物医学类","一级学科：畜牧学",null,null,"0851-38222870"]
[399,"普定县","普定县坪上镇人民政府",3051,"普定县坪上镇安全生产监督管理站","全额事业","01","管理人员","从事安全生产监督工作","综合管理类（A类）","——","305101",1,"本科及以上","学士及以上",{"$nulls":3},"定向普定县“基层服务项目人员”",null,"0851-38222870"]
[400,"普定县","普定县坪上镇人民政府",3052,"普定县坪上镇科技宣教文化信息服务中心","全额事业","01","管理人员","从事科教宣传类、意识形态领域等工作","综合管理类（A类）","——","305201",1,"本科及以上","学士及以上",{"$nulls":5},"0851-38222870"]
[401,"普定县","普定县坪上镇人民政府",3053,"普定县坪上镇农业服务中心","全额事业","01","专业技术人员","从事农业农村工作","综合管理类（A类）","——","305301",1,"本科及以上","学士及以上",null,"学科门类：农学",{"$nulls":3},"0851-38222870"]
[402,"普定县","普定县坪上镇人民政府",3054,"普定县坪上镇乡村振兴服务站","全额事业","01","专业技术人员","从事乡村振兴巩固脱贫攻坚工作","综合管理类（A类）","——","305401",1,"本科及以上","学士及以上",null,"学科门类：管理学",{"$nulls":3},"0851-38222870"]
[403,"普定县","普定县马官镇人民政府",3055,"普定县人力资源和社会保障服务中心","全额事业","01","管理人员","从事管理各项保险等各项工作。","综合管理类（A类）","——","305501",1,"本科及以上","学士及以上",{"$nulls":3},"定向普定县“基层服务项目人员”",null,"0851-38222870"]
[404,"普定县","普定县马官镇人民政府",3056,"普定县马官镇科技宣教文化信息服务中心","全额事业","01","管理人员","从事承办文化宣传、群众性体育活动等工作。","综合管理类（A类）","——","305601",2,"本科及以上","学士及以上",{"$nulls":5},"0851-38222870"]
[405,"普定县","普定县马官镇人民政府",3057,"普定县财政局马官镇财政分局","全额事业","01","管理人员","从事地方的财政等相关工作。","综合管理类（A类）","——","305701",1,"本科及以上","学士及以上",null,"一级学科：工商管理类、财政学类，金融学类",null,null,"取得会计初级职称资格证书及以上","0851-38222870"]
[406,"普定县","普定县猫洞苗族仡佬族乡人民政府",3058,"普定县猫洞苗族仡佬族乡乡村振兴服务站","全额事业","01","管理人员","从事乡村振兴服务工作","综合管理类（A类）","——","305801",1,"本科及以上","学士及以上",null,"学科门类：经济学\n一级学科：工商管理类",{"$nulls":3},"0851-38222870"]
[407,"普定县","普定县猴场苗族仡佬族乡人民政府",3059,"普定县财政局猴场苗族仡佬族乡分局","全额事业","01","管理人员","从事乡财政分局办公室日常工作","综合管理类（A类）","——","305901",1,"大专及以上",{"$nulls":4},"定向普定县“基层服务项目人员”",null,"0851-38222870"]
[408,"普定县","普定县补郎苗族乡人民政府",3060,"普定县财政局补郎苗族乡分局","全额事业","01","管理人员","从事财政相关工作","综合管理类（A类）","——","306001",1,"本科及以上","学士及以上",null,"二级学科：会计学、财务管理、财政学、审计学",{"$nulls":3},"0851-38222870"]
[409,"普定县","普定县补郎苗族乡人民政府",3061,"普定县补郎苗族乡乡村振兴服务站","全额事业","01","专业技术人员","从事乡村振兴相关工作","综合管理类（A类）","——","306101",1,"本科及以上","学士及以上",null,"一级学科：自然保护与环境生态类",{"$nulls":3},"0851-38222870"]
[410,"镇宁自治县","镇宁自治县白马湖街道办事处",4001,"镇宁自治县白马湖街道公共事务服务中心（社会工作服务站）","全额事业","01","管理人员","从事公共事务服务中心（社会工作服务站）相关工作","综合管理类（A类）","——","400101",1,"本科及以上","学士及以上",null,"一级学科：旅游管理类","一级学科：工商管理",null,null,"0851-36225153"]
[411,"镇宁自治县","镇宁自治县白马湖街道办事处",4002,"镇宁自治县白马湖街道党务政务综治服务中心（网格管理服务中心）","全额事业","01","管理人员","从事党务政务综合服务中心（网格管理服务中心）相关工作","综合管理类（A类）","——","400201",1,"本科及以上","学士及以上",null,"二级学科：新闻学、传播学、广播电视学、网络与新媒体、广告学、汉语言文学、汉语言","一级学科：中国语言文学、新闻传播学",null,"限安顺市户籍（生源)","0851-36225153"]
[412,"镇宁自治县","镇宁自治县白马湖街道办事处",4003,"镇宁自治县白马湖街道综合行政执法大队","全额事业","01","管理人员","从事综合行政执法大队相关工作","综合管理类（A类）","——","400301",1,"本科及以上","学士及以上",null,"一级学科：安全科学与工程类","一级学科：安全科学与工程",null,null,"0851-36225153"]
[413,"镇宁自治县","镇宁自治县白马湖街道办事处",4003,"镇宁自治县白马湖街道综合行政执法大队","全额事业","02","管理人员","从事综合行政执法大队相关工作","综合管理类（A类）","——","400302",1,"本科及以上","学士及以上",null,"二级学科：通信工程、信息安全、物联网工程、电气工程及其自动化、安全工程、数据科学与大数据技术、化工安全工程、冶金工程、土木工程、应用化学","二级学科：通信与信息系统、防灾减灾工程及防护工程、安全技术及工程、化学工艺、应用化学",null,null,"0851-36225153"]
[414,"镇宁自治县","镇宁自治县环翠街道办事处",4004,"镇宁自治县环翠街道公共事务服务中心（社会工作服务站）","全额事业","01","管理人员","从事公共事务服务中心（社会工作服务站）相关工作","综合管理类（A类）","——","400401",1,"本科及以上","学士及以上",null,"一级学科：公共管理类","一级学科：公共管理",null,"限男性","0851-36225153"]
[415,"镇宁自治县","镇宁自治县环翠街道办事处",4004,"镇宁自治县环翠街道公共事务服务中心（社会工作服务站）","全额事业","02","管理人员","从事公共事务服务中心（社会工作服务站）相关工作","综合管理类（A类）","——","400402",1,"本科及以上","学士及以上",null,"一级学科：公共管理类","一级学科：公共管理",null,"限女性","0851-36225153"]
[416,"镇宁自治县","镇宁自治县宁西街道办事处",4005,"镇宁自治县宁西街道公共事务服务中心","全额事业","01","管理人员","从事公共事务服务中心相关工作","综合管理类（A类）","——","400501",1,"本科及以上","学士及以上",null,"学科门类：管理学","学科门类：管理学",null,null,"0851-36225153"]
[417,"镇宁自治县","镇宁自治县宁西街道办事处",4006,"镇宁自治县宁西街道谐美综合服务中心","全额事业","01","管理人员","从事谐美综合政务服务中心相关工作","综合管理类（A类）","——","400601",1,"本科及以上","学士及以上",null,"一级学科：社会学类","一级学科：社会学",null,"限男性","0851-36225153"]
[418,"镇宁自治县","镇宁自治县宁西街道办事处",4006,"镇宁自治县宁西街道谐美综合服务中心","全额事业","02","管理人员","从事谐美综合政务服务中心相关工作","综合管理类（A类）","——","400602",1,"本科及以上","学士及以上",null,"一级学科：社会学类","一级学科：社会学",null,"限女性","0851-36225153"]
[419,"镇宁自治县","镇宁自治县宁西街道办事处",4007,"镇宁自治县宁西街道农业服务中心","全额事业","01","专业技术人员","从事农业服务中心相关工作","综合管理类（A类）","——","400701",1,"本科及以上",null,null,"学科门类：农学","学科门类：农学",null,null,"0851-36225153"]
[420,"镇宁自治县","镇宁自治县双龙山街道办事处",4008,"镇宁自治县双龙山街道农业服务中心","全额事业","01","专业技术人员","从事农业服务中心相关工作","综合管理类（A类）","——","400801",1,"大专及以上",null,"学科门类：农林牧渔大类","学科门类：农学","学科门类：农学",null,null,"0851-36225153"]
[421,"镇宁自治县","镇宁自治县双龙山街道办事处",4009,"镇宁自治县双龙山街道财政所","全额事业","01","专业技术人员","从事财政类相关工作","综合管理类（A类）","——","400901",1,"本科及以上","学士及以上",null,"一级学科：财政学类、经济学类、金融学类","学科门类：经济学",null,"限安顺市户籍(生源)","0851-36225153"]
[422,"镇宁自治县","镇宁自治县丁旗街道办事处",4010,"镇宁自治县丁旗街道综治中心（网格化管理服务中心）","全额事业","01","管理人员","从事综治中心\n相关工作","综合管理类（A类）","——","401001",1,"本科及以上","学士及以上",null,"学科门类：法学","学科门类：法学",null,null,"0851-36225153"]
[423,"镇宁自治县","镇宁自治县丁旗街道办事处",4011,"镇宁自治县丁旗街道农业服务中心","全额事业","01","专业技术人员","从事农业服务中心相关工作","综合管理类（A类）","——","401101",1,"本科及以上","学士及以上",null,"学科门类：农学","学科门类：农学",null,null,"0851-36225153"]
[424,"镇宁自治县","镇宁自治县丁旗街道办事处",4012,"镇宁自治县丁旗街道财政所","全额事业","01","专业技术人员","从事财政类相关工作","综合管理类（A类）","——","401201",1,"本科及以上","学士及以上",null,"一级学科：财政学类、经济学类、金融学类","学科门类：经济学",null,null,"0851-36225153"]
[425,"镇宁自治县","镇宁自治县丁旗街道办事处",4013,"镇宁自治县丁旗街道综合行政执法大队","全额事业","01","管理人员","从事综合行政执法大队相关工作","综合管理类（A类）","——","401301",2,"本科及以上","学士及以上",null,"二级学科：化学工程与工艺、资源循环科学与工程、能源化学工程、化学工程与工业生物工程","一级学科：材料科学与工程、化学工程与技术",null,null,"0851-36225153"]
[426,"镇宁自治县","镇宁自治县扁担山镇人民政府",4014,"镇宁自治县扁担山镇科技宣教文化信息服务中心","全额事业","01","专业技术人员","从事科技宣教文化信息服务中心相关工作","综合管理类（A类）","——","401401",1,"大专及以上",{"$nulls":4},"定向镇宁自治县（不含黄果树旅游区）“基层服务项目人员”",null,"0851-36225153"]
[427,"镇宁自治县","镇宁自治县扁担山镇人民政府",4015,"镇宁自治县扁担山镇财政分局","全额事业","01","管理人员","从事财政类相关工作","综合管理类（A类）","——","401501",1,"本科及以上","学士及以上",null,"一级学科：财政学类、经济学类、金融学类","学科门类：经济学",null,"具备初级会计专业技术资格证及以上","0851-36225153"]
[428,"镇宁自治县","镇宁自治县马厂镇人民政府",4016,"镇宁自治县马厂镇农业服务中心","全额事业","01","专业技术人员","从事农业服务中心相关工作","综合管理类（A类）","——","401601",1,"大专及以上",null,"学科门类：农林牧渔大类","学科门类：农学","学科门类：农学",null,null,"0851-36225153"]
[429,"镇宁自治县","镇宁自治县马厂镇人民政府",4017,"镇宁自治县马厂镇科技宣教文化信息服务中心","全额事业","01","管理人员","从事文化、安全等相关工作","综合管理类（A类）","——","401701",1,"大专及以上",null,"一级学科：安全类","一级学科：安全科学与工程类\n二级学科：应急管理\n","一级学科：安全科学与工程、管理科学与工程",null,null,"0851-36225153"]
[430,"镇宁自治县","镇宁自治县马厂镇人民政府",4018,"镇宁自治县马厂镇林业和环境保护工作站","全额事业","01","管理人员","从事林业和环境保护工作站相关工作","综合管理类（A类）","——","401801",1,"本科及以上","学士及以上",null,"一级学科：环境科学与工程类","一级学科：环境科学与工程",null,null,"0851-36225153"]
[431,"镇宁自治县","镇宁自治县募役镇人民政府",4019,"镇宁自治县募役镇水利和移民工作站","全额事业","01","专业技术人员","从事水利移民相关工作","综合管理类（A类）","——","401901",1,"大专及以上",null,"一级学科：水利工程与管理类、水文与水资源类、水利水电设备类","一级学科：水利类","一级学科：水利工程",null,null,"0851-36225153"]
[432,"镇宁自治县","镇宁自治县募役镇人民政府",4020,"镇宁自治县募役镇村镇建设管理站","全额事业","01","专业技术人员","从事村镇建设管理相关工作","综合管理类（A类）","——","402001",1,"大专及以上",null,"学科门类：资源开发与测绘大类、土建大类、公共事业大类","一级学科：土木类、环境科学与工程类、管理科学与工程类、建筑类","一级学科：土木工程、管理科学与工程、环境科学与工程、建筑学",null,null,"0851-36225153"]
[433,"镇宁自治县","镇宁自治县募役镇人民政府",4021,"镇宁自治县募役镇退役军人服务站","全额事业","01","管理人员","从事退役军人服务中心相关工作","综合管理类（A类）","——","402101",1,"本科及以上","学士及以上",null,"一级学科：计算机类","一级学科：计算机科学与技术",null,null,"0851-36225153"]
[434,"镇宁自治县","镇宁自治县江龙镇人民政府",4022,"镇宁自治县江龙镇农业服务中心","全额事业","01","专业技术人员","从事农业服务中心相关工作","综合管理类（A类）","——","402201",1,"本科及以上","学士及以上",null,"学科门类：农学","学科门类：农学",null,null,"0851-36225153"]
[435,"镇宁自治县","镇宁自治县江龙镇人民政府",4023,"镇宁自治县江龙镇林业和环境保护工作站","全额事业","01","专业技术人员","从事林业和环境保护工作站相关工作","综合管理类（A类）","——","402301",1,"本科及以上","学士及以上",null,"一级学科：林学类","一级学科：林学",null,null,"0851-36225153"]
[436,"镇宁自治县","镇宁自治县江龙镇人民政府",4024,"镇宁自治县江龙镇村镇建设管理站","全额事业","01","专业技术人员","从事村镇建设管理相关工作","综合管理类（A类）","——","402401",1,"本科及以上","学士及以上",null,"一级学科：管理科学与工程类、建筑类、土木类","一级学科：管理科学与工程、建筑学、土木工程",null,null,"0851-36225153"]
[437,"镇宁自治县","镇宁自治县江龙镇人民政府",4024,"镇宁自治县江龙镇村镇建设管理站","全额事业","02","专业技术人员","从事村镇建设管理相关工作","综合管理类（A类）","——","402402",1,"本科及以上","学士及以上",null,"一级学科：建筑类、土木类","一级学科：建筑学、土木工程",null,null,"0851-36225153"]
[438,"镇宁自治县","镇宁自治县江龙镇人民政府",4025,"镇宁自治县江龙镇财政分局","全额事业","01","管理人员","从事财政类相关工作","综合管理类（A类）","——","402501",1,"本科及以上","学士及以上",null,"一级学科：财政学类、经济学类、金融学类","学科门类：经济学",null,null,"0851-36225153"]
[439,"镇宁自治县","镇宁自治县本寨镇人民政府",4026,"镇宁自治县本寨镇农业服务中心","全额事业","01","专业技术人员","从事农业服务中心相关工作","综合管理类（A类）","——","402601",1,"本科及以上","学士及以上",null,"学科门类：农学\n一级学科：农业工程类、农业经济管理类","学科门类：农学\n一级学科：农业工程、农林经济管理",null,null,"0851-36225153"]
[440,"镇宁自治县","镇宁自治县本寨镇人民政府",4027,"镇宁自治县本寨镇村镇建设管理站","全额事业","01","专业技术人员","从事村镇建设管理相关工作","综合管理类（A类）","——","402701",1,"本科及以上","学士及以上",null,"一级学科：农业工程类、林业工程类、环境科学与工程类、农业经济管理类、地理科学类、土木类、建筑类","一级学科：农业资源利用、林学、城乡规划学、环境科学与工程、林业工程、农业工程、土木工程、地理学",null,null,"0851-36225153"]
[441,"镇宁自治县","镇宁自治县本寨镇人民政府",4028,"镇宁自治县本寨镇退役军人服务站","全额事业","01","管理人员","从事退役军人服务中心相关工作","综合管理类（A类）","——","402801",1,"大专及以上",null,"一级学科：安全类","一级学科：安全科学与工程类\n二级学科：应急管理","一级学科：安全科学与工程、管理科学与工程",null,null,"0851-36225153"]
[442,"镇宁自治县","镇宁自治县革利乡人民政府",4029,"镇宁自治县革利乡农业服务中心","全额事业","01","专业技术人员","从事农业服务中心相关工作","综合管理类（A类）","——","402901",1,"本科及以上","学士及以上",null,"学科门类：农学","学科门类：农学",null,null,"0851-36225153"]
[443,"镇宁自治县","镇宁自治县革利乡人民政府",4030,"镇宁自治县革利乡村镇建设管理站","全额事业","01","专业技术人员","从事村镇建设管理相关工作","综合管理类（A类）","——","403001",1,"本科及以上","学士及以上",null,"一级学科：管理科学与工程类、建筑类、土木类","一级学科：管理科学与工程、建筑学、土木工程",null,null,"0851-36225153"]
[444,"镇宁自治县","镇宁自治县革利乡人民政府",4031,"镇宁自治县革利乡科技宣教文化信息服务中心","全额事业","01","管理人员","从事科技宣教文化信息服务中心相关工作","综合管理类（A类）","——","403101",1,"本科及以上","学士及以上",null,"一级学科：食品科学与工程类","一级学科：食品科学与工程",null,null,"0851-36225153"]
[445,"镇宁自治县","镇宁自治县革利乡人民政府",4032,"镇宁自治县革利乡退役军人服务站","全额事业","01","管理人员","从事村退役军人服务站相关工作","综合管理类（A类）","——","403201",1,"本科及以上","学士及以上",null,"一级学科：地质学类","一级学科：地质学",null,null,"0851-36225153"]
[446,"镇宁自治县","镇宁自治县六马镇人民政府",4033,"镇宁自治县六马镇农业服务中心","全额事业","01","专业技术人员","从事农业服务中心相关工作","综合管理类（A类）","——","403301",2,"本科及以上","学士及以上",null,"一级学科：植物生产类","一级学科：作物学、植物保护",null,null,"0851-36225153"]
[447,"镇宁自治县","镇宁自治县六马镇人民政府",4034,"镇宁自治县六马镇政务服务中心","全额事业","01","管理人员","从事政务服务相关工作","综合管理类（A类）","——","403401",1,"大专及以上",{"$nulls":4},"定向镇宁自治县（不含黄果树旅游区）“基层服务项目人员”",null,"0851-36225153"]
[448,"镇宁自治县","镇宁自治县六马镇人民政府",4035,"镇宁自治县六马镇水利和移民工作站","全额事业","01","专业技术人员","从事水利和移民相关工作","综合管理类（A类）","——","403501",2,"本科及以上","学士及以上",null,"一级学科：水利类","一级学科：水利工程",null,null,"0851-36225153"]
[449,"镇宁自治县","镇宁自治县六马镇人民政府",4036,"镇宁自治县六马镇科技宣教文化信息服务中心","全额事业","01","专业技术人员","从事科技宣教文化信息服务相关工作","综合管理类（A类）","——","403601",1,"本科及以上","学士及以上",null,"一级学科：新闻传播学类","一级学科：新闻传播学",null,null,"0851-36225153"]
[450,"镇宁自治县","镇宁自治县六马镇人民政府",4037,"镇宁自治县六马镇村镇建设管理站","全额事业","01","专业技术人员","从事村镇建设管理相关工作","综合管理类（A类）","——","403701",1,"本科及以上","学士及以上",null,"一级学科：土木类、环境科学与工程类、管理科学与工程类、建筑类","一级学科：土木工程、管理科学与工程、环境科学与工程、建筑学",null,null,"0851-36225153"]
[451,"镇宁自治县","镇宁自治县六马镇人民政府",4037,"镇宁自治县六马镇村镇建设管理站","全额事业","02","专业技术人员","从事村镇建设管理相关工作","综合管理类（A类）","——","403702",1,"本科及以上","学士及以上",null,"一级学科：管理科学与工程类、建筑类、土木类","一级学科：管理科学与工程、建筑学、土木工程",null,"限男性","0851-36225153"]
[452,"镇宁自治县","镇宁自治县六马镇人民政府",4037,"镇宁自治县六马镇村镇建设管理站","全额事业","03","专业技术人员","从事村镇建设管理相关工作","综合管理类（A类）","——","403703",1,"本科及以上","学士及以上",null,"一级学科：管理科学与工程类、建筑类、土木类","一级学科：管理科学与工程、建筑学、土木工程",null,"限女性","0851-36225153"]
[453,"镇宁自治县","镇宁自治县六马镇人民政府",4038,"镇宁自治县六马镇财政分局","全额事业","01","管理人员","从事财政类相关工作","综合管理类（A类）","——",{"$f":"D457&G457","v":"403801"},1,"本科及以上","学士及以上",null,"一级学科：财政学类、经济学类、金融学类","学科门类：经济学",null,null,"0851-36225153"]
[454,"镇宁自治县","镇宁自治县简嘎乡人民政府",4039,"镇宁自治县简嘎乡财政分局","全额事业","01","管理人员","从事财务类相关工作","综合管理类（A类）","——","403901",1,"本科及以上","学士及以上",null,"学科门类：经济学\n一级学科：工商管理类","学科门类：经济学\n一级学科：工商管理",null,null,"0851-36225153"]
[455,"镇宁自治县","镇宁自治县简嘎乡人民政府",4040,"镇宁自治县简嘎乡村镇建设管理站","全额事业","01","专业技术人员","从事村镇建设管理相关工作","综合管理类（A类）","——","404001",1,"本科及以上","学士及以上",null,"一级学科：管理科学与工程类、建筑类、土木类","一级学科：管理科学与工程、建筑学、土木工程",null,null,"0851-36225153"]
[456,"镇宁自治县","镇宁自治县简嘎乡人民政府",4040,"镇宁自治县简嘎乡村镇建设管理站","全额事业","02","管理人员","从事村镇建设管理相关工作","综合管理类（A类）","——","404002",1,"本科及以上","学士及以上",null,"一级学科：管理科学与工程类、建筑类、土木类","一级学科：管理科学与工程、建筑学、土木工程",null,null,"0851-36225153"]
[457,"镇宁自治县","镇宁自治县简嘎乡人民政府",4041,"镇宁自治县简嘎乡退役军人事务站","全额事业","01","管理人员","从事退役军人相关工作","综合管理类（A类）","——","404101",1,"中专（技校、职高、高中）及以上",{"$nulls":4},"定向镇宁自治县（不含黄果树旅游区）村干部","该岗位在本单位最低服务年限为5年（含试用期）","0851-36225153"]
[458,"镇宁自治县","镇宁自治县简嘎乡人民政府",4042,"镇宁自治县简嘎乡乡村振兴服务中心","全额事业","01","管理人员","从事乡村振兴相关工作","综合管理类（A类）","——","404201",2,"本科及以上","学士及以上",null,"学科门类：管理学","学科门类：管理学",null,null,"0851-36225153"]
[459,"镇宁自治县","镇宁自治县简嘎乡人民政府",4043,"镇宁自治县简嘎乡科技宣教文化信息服务中心","全额事业","01","管理人员","从事科技宣教文化信息工作","综合管理类（A类）","——","404301",1,"本科及以上","学士及以上",null,"一级学科：旅游管理类","一级学科：工商管理",null,null,"0851-36225153"]
[460,"镇宁自治县","镇宁自治县林业局",4044,"镇宁自治县林政资源管理站","全额事业","01","管理人员","从事森林资源管理相关工作","综合管理类（A类）","——","404401",1,"本科及以上","学士及以上",null,"一级学科：林学类","一级学科：林学",null,null,"0851-36225153"]
[461,"镇宁自治县","镇宁自治县林业局",4045,"镇宁自治县营林站","全额事业","01","专业技术人员","从事营造林相关工作","综合管理类（A类）","——","404501",1,"本科及以上","学士及以上",null,"一级学科：林学类","一级学科：林学",null,null,"0851-36225153"]
[462,"镇宁自治县","镇宁布依族苗族自治县交通运输局",4046,"镇宁自治县交通运输综合行政执法大队","全额事业","01","管理人员","从事水上运政执法相关工作","综合管理类（A类）","——","404601",1,"本科及以上","学士及以上",null,"二级学科：海事管理、交通运输、交通工程","一级学科：交通运输工程",null,null,"0851-36225153"]
[463,"镇宁自治县","镇宁布依族苗族自治县交通运输局",4046,"镇宁自治县交通运输综合行政执法大队","全额事业","02","管理人员","从事财务类相关工作","综合管理类（A类）","——","404602",1,"本科及以上",null,null,"二级学科：会计学、审计学、财务管理、财政学","一级学科：工商管理",null,"具备初级会计专业技术资格证及以上","0851-36225153"]
[464,"镇宁自治县","镇宁自治县财政局",4047,"镇宁自治县财政综合管理办公室","全额事业","01","专业技术人员","从事财务类相关工作","综合管理类（A类）","——","404701",1,"本科及以上","学士及以上",null,"二级学科：会计学、审计学、财务管理、财政学","一级学科：工商管理",null,null,"0851-36225153"]
[465,"镇宁自治县","镇宁自治县农业农村局",4048,"镇宁自治县农业综合行政执法大队","全额事业","01","管理人员","从事农业综合行政执法大队相关工作","综合管理类（A类）","——","404801",1,"本科及以上","学士及以上",null,"学科门类：法学","学科门类：法学",null,null,"0851-36225153"]
[466,"镇宁自治县","镇宁自治县农业农村局",4048,"镇宁自治县农业综合行政执法大队","全额事业","02","管理人员","从事农业综合行政执法大队相关工作","综合管理类（A类）","——","404802",1,"本科及以上","学士及以上",null,"学科门类：法学","学科门类：法学","定向2024年度毕业生",null,"0851-36225153"]
[467,"镇宁自治县","镇宁自治县农业农村局",4049,"镇宁自治县农业技术推广站","全额事业","01","管理人员","从事农业技术推广站相关工作","综合管理类（A类）","——","404901",1,"本科及以上","学士及以上",null,"学科门类：农学","学科门类：农学",null,null,"0851-36225153"]
[468,"镇宁自治县","镇宁自治县住房和城乡建设局",4050,"镇宁自治县棚户区改造办公室","全额事业","01","专业技术人员","从事棚户区改造相关工作","综合管理类（A类）","——","405001",1,"本科及以上",null,null,"一级学科：土木类","一级学科：土木工程",null,null,"0851-36225153"]
[469,"镇宁自治县","镇宁自治县住房和城乡建设局",4050,"镇宁自治县棚户区改造办公室","全额事业","02","专业技术人员","从事财务类相关工作","综合管理类（A类）","——","405002",1,"本科及以上",null,null,"二级学科：会计学、审计学、财务管理、财政学","一级学科：工商管理",null,null,"0851-36225153"]
[470,"镇宁自治县","镇宁自治县住房和城乡建设局",4051,"镇宁自治县综合行政执法二大队","全额事业","01","管理人员","从事燃气、水务、人防、粮食、工信、民政等综合行政执法工作。","综合管理类（A类）","——","405101",1,"本科及以上",null,null,"学科门类：法学","学科门类：法学","定向2024年度毕业生",null,"0851-36225153"]
[471,"镇宁自治县","镇宁自治县工业和信息化局",4052,"镇宁自治县煤矿驻矿中心","全额事业","01","专业技术人员","从事煤矿安全技术管理相关工作","综合管理类（A类）","——","405201",1,"本科及以上","学士及以上",null,"一级学科：矿业类","一级学科：矿业工程",null,null,"0851-36225153"]
[472,"镇宁自治县","镇宁自治县统计局",4053,"镇宁自治县普查中心","全额事业","01","管理人员","从事经济社会统计服务相关工作","综合管理类（A类）","——","405301",1,"本科及以上",null,null,"一级学科：经济学类、统计学类、计算机类",{"$nulls":3},"0851-36225153"]
[473,"镇宁自治县","镇宁自治县退役军人事务局",4054,"镇宁自治县退役军人服务中心","全额事业","01","管理人员","从事退役军人服务中心相关工作","综合管理类（A类）","——","405401",1,"大专及以上",{"$nulls":4},"定向招聘安顺市已由政府安排工作退役士兵（退出消防员）",null,"0851-36225153"]
[474,"镇宁自治县","镇宁自治县自然资源局",4055,"镇宁自治县江龙镇国土资源管理所","全额事业","01","管理人员","从事资源管理相关工作","综合管理类（A类）","——","405501",1,"本科及以上",null,null,"一级学科：农业工程类、自然保护与环境生态类、土木类","一级学科：农业工程、农业资源利用、土木工程",null,"限安顺市户籍(生源)","0851-36225153"]
[475,"镇宁自治县","镇宁自治县医疗保障局",4056,"镇宁自治县医疗保障服务中心","全额事业","01","管理人员","从事医疗保障服务相关工作","综合管理类（A类）","——","405601",1,"本科及以上","学士及以上",null,"学科门类：医学、法学\n一级学科：计算机类","学科门类：医学、法学\n一级学科：计算机科学与技术","定向2024年度毕业生",null,"0851-36225153"]
[476,"镇宁自治县","镇宁自治县卫生健康局",4057,"镇宁自治县基本公共卫生服务中心","全额事业","01","专业技术人员","从事基本公共卫生服务相关工作","综合管理类（A类）","——","405701",1,"本科及以上","学士及以上",null,"学科门类：医学","学科门类：医学","定向2024年度毕业生",null,"0851-36225153"]
[477,"镇宁自治县","镇宁自治县水务局",4058,"镇宁自治县桂家湖水库管理所","全额事业","01","专业技术人员","从事水利工程建设管理相关工作","综合管理类（A类）","——","405801",1,"大专及以上",null,"一级学科：土建施工类、水利工程与管理类、水利水电设备类、水土保持与水环境类、水文与水资源类","一级学科：水利类、土木类、安全科学与工程类、环境科学与工程类、农业工程类、能源动力类、地质类、工业工程类","一级学科：土木工程、水利工程、地质学、环境科学与工程、\n二级学科：环境与资源保护法学专业",null,null,"0851-36225153"]
[478,"镇宁自治县","镇宁自治县水务局",4059,"镇宁自治县白马湖水库管理所","全额事业","01","专业技术人员","从事水利工程建设管理相关工作","综合管理类（A类）","——","405901",1,"大专及以上",null,"一级学科：土建施工类、水利工程与管理类、水利水电设备类、水土保持与水环境类、水文与水资源类","一级学科：水利类、土木类、安全科学与工程类、环境科学与工程类、农业工程类、能源动力类、地质类、工业工程类","一级学科：土木工程、水利工程、地质学、环境科学与工程、\n二级学科：环境与资源保护法学专业",null,null,"0851-36225153"]
[479,"镇宁自治县","镇宁自治县市场监督管理局",4060,"镇宁自治县质量技术监督检测所","全额事业","01","专业技术人员","从事质量技术监督相关工作","综合管理类（A类）","——","406001",1,"本科及以上","学士及以上",null,"一级学科：食品科学与工程类","一级学科：食品科学与工程",null,null,"0851-36225153"]
[480,"镇宁自治县","镇宁自治县卫生健康局",4061,"镇宁自治县疾病预防控制中心","全额事业","01","专业技术人员","从事财务类相关工作","综合管理类（A类）","——","406101",1,"本科及以上","学士及以上",null,"二级学科：会计学、审计学、财务管理、财政学","一级学科：工商管理",null,null,"0851-36225153"]
[481,"镇宁自治县","镇宁自治县卫生健康局",4061,"镇宁自治县疾病预防控制中心","全额事业","02","专业技术人员","从事卫生检验相关理化和微生物检验工作或疾病预防控制相关工作","医疗卫生类（E类）","公共卫生管理岗位","406102",1,"本科及以上","学士及以上",null,"二级学科：预防医学","一级学科：公共卫生与预防医学",null,null,"0851-36225153"]
[482,"镇宁自治县","镇宁自治县卫生健康局",4062,"镇宁自治县妇幼保健计划生育服务中心","全额事业","01","专业技术人员","从事口腔科相关工作","医疗卫生类（E类）","西医临床岗位","406201",1,"本科及以上","学士及以上",null,"二级学科：口腔医学","一级学科：临床医学、口腔医学",null,null,"0851-36225153"]
[483,"镇宁自治县","镇宁自治县卫生健康局",4063,"镇宁自治县人民医院","差额事业","01","专业技术人员","从事外科诊疗相关工作","医疗卫生类（E类）","西医临床岗位","406301",1,"本科及以上","学士及以上",null,"二级学科：临床医学","二级学科：外科学",null,"1.具备执业医师资格证及以上；\n2.具备外科专业规培证书(2016年前毕业生除外)","0851-36225153"]
[484,"镇宁自治县","镇宁自治县卫生健康局",4063,"镇宁自治县人民医院","差额事业","02","专业技术人员","从事口腔科诊疗相关工作","医疗卫生类（E类）","西医临床岗位","406302",1,"本科及以上","学士及以上",null,"二级学科：口腔医学","二级学科：口腔临床医学",null,"1.具备执业医师资格证及以上；\n2.具备口腔全科规培证书(2016年前毕业生除外)","0851-36225153"]
[485,"镇宁自治县","镇宁自治县卫生健康局",4063,"镇宁自治县人民医院","差额事业","03","专业技术人员","从事麻醉科相关工作","医疗卫生类（E类）","西医临床岗位","406303",1,"本科及以上","学士及以上",null,"二级学科：麻醉学\n","二级学科：麻醉学",null,"1.具备执业医师资格证及以上；\n2.具备麻醉科规培证书(2016年前毕业生除外)\n","0851-36225153"]
[486,"镇宁自治县","镇宁自治县卫生健康局",4063,"镇宁自治县人民医院","差额事业","04","专业技术人员","从事妇产科诊疗相关工作","医疗卫生类（E类）","西医临床岗位","406304",1,"本科及以上","学士及以上",null,"二级学科：临床医学","二级学科：妇产科学",null,"1.具备执业医师资格证书\n2.该岗位招聘人员需派驻基层服务。取得住院医师规范化培训合格证书后须到镇宁自治县乡镇卫生院服务3年","0851-36225153"]
[487,"镇宁自治县","镇宁自治县卫生健康局",4063,"镇宁自治县人民医院","差额事业","05","专业技术人员","从事急诊科诊疗相关工作","医疗卫生类（E类）","西医临床岗位","406305",1,"本科及以上","学士及以上",null,"二级学科：临床医学","二级学科：急诊医学",null,"1.具备执业医师资格证及以上；\n2.具备急诊科规培证书(2016年前毕业生除外)","0851-36225153"]
[488,"镇宁自治县","镇宁自治县卫生健康局",4063,"镇宁自治县人民医院","差额事业","06","专业技术人员","从事中西医结合儿科诊疗相关工作","医疗卫生类（E类）","中医临床岗位","406306",1,"本科及以上","学士及以上",null,"二级学科：中西医临床医学","二级学科：中西医结合临床",null,"1.具备执业医师资格证及以上；\n2.具备中西医结合专业规培证(2016年前毕业生除外)","0851-36225153"]
[489,"镇宁自治县","镇宁自治县卫生健康局",4064,"镇宁自治县简嘎乡卫生院","全额事业","01","管理人员","从事财务类相关工作","综合管理类（A类）","——","406401",1,"大专及以上",null,"二级学科：会计、会计电算化、会计与统计核算、会计与审计","二级学科：会计学、审计学、财务管理、财政学","一级学科：工商管理",null,null,"0851-36225153"]
[490,"镇宁自治县","镇宁自治县卫生健康局",4065,"镇宁自治县双龙山街道卫生院","全额事业","01","管理人员","从事财务类相关工作","综合管理类（A类）","——","406501",1,"大专及以上",null,"二级学科：会计、会计电算化、会计与统计核算、会计与审计","二级学科：会计学、审计学、财务管理、财政学","一级学科：工商管理",null,null,"0851-36225153"]
[491,"镇宁自治县","镇宁自治县卫生健康局",4066,"镇宁自治县中医院","差额事业","01","专业技术人员","从事临床相关工作","医疗卫生类（E类）","西医临床岗位","406601",1,"本科及以上","学士及以上",null,"二级学科：麻醉学","二级学科：麻醉学",null,"1.具备医师资格证及以上;\n2.具备住院医师规范化培训合格证（规培方向为麻醉专业，2016年前毕业生除外）","0851-36225153"]
[492,"镇宁自治县","镇宁自治县卫生健康局",4067,"镇宁自治县募役镇卫生院","全额事业","01","专业技术人员","从事募役镇卫生院临床诊疗服务相关工作","医疗卫生类（E类）","西医临床岗位","406701",1,"大专及以上",null,"二级学科：临床医学","二级学科：临床医学","二级学科：内科学",null,"具备执业（助理）医师资格证及以上","0851-36225153"]
[493,"镇宁自治县","镇宁自治县卫生健康局",4068,"镇宁自治县丁旗街道中心卫生院","全额事业","01","专业技术人员","从事临床诊疗相关工作","医疗卫生类（E类）","医学技术岗位","406801",1,"本科及以上","学士及以上",null,"二级学科：医学影像学","二级学科：影像医学与核医学",null,"1.具备影像技师资格证及以上;\n2.具备执业医师资格证及以上","0851-36225153"]
[494,"镇宁自治县","镇宁自治县卫生健康局",4069,"镇宁自治县本寨镇卫生院","全额事业","01","专业技术人员","从事医药相关工作","医疗卫生类（E类）","药剂岗位","406901",1,"大专及以上",null,"二级学科：药学","二级学科：药学","二级学科：药剂学",null,"具备药士资格证及以上","0851-36225153"]
[495,"镇宁自治县","镇宁自治县教育和科技局",4070,"镇宁自治县江龙镇第一幼儿园","全额事业","01","专业技术人员","从事学前教育教学相关工作","中小学教师类（D类）","小学教师岗位","407001",1,"大专及以上",null,"二级学科：学前教育","二级学科：学前教育","二级学科：学前教育学",null,"1.具备幼儿园教师资格证书；\n2.该岗位在本单位最低服务年限为5年（含试用期）","0851-36225153"]
[496,"镇宁自治县","镇宁自治县教育和科技局",4071,"镇宁自治县六马镇打帮幼儿园","全额事业","01","专业技术人员","从事学前教育教学相关工作","中小学教师类（D类）","小学教师岗位","407101",1,"大专及以上",null,"二级学科：学前教育","二级学科：学前教育","二级学科：学前教育学",null,"1.具备幼儿园教师资格证书；\n2.该岗位在本单位最低服务年限为5年（含试用期）","0851-36225153"]
[497,"镇宁自治县","镇宁自治县教育和科技局",4072,"镇宁自治县本寨镇幼儿园","全额事业","01","专业技术人员","从事学前教育教学相关工作","中小学教师类（D类）","小学教师岗位","407201",1,"大专及以上",null,"二级学科：学前教育","二级学科：学前教育","二级学科：学前教育学",null,"1.具备幼儿园教师资格证书；\n2.该岗位在本单位最低服务年限为5年（含试用期）","0851-36225153"]
[498,"镇宁自治县","镇宁自治县教育和科技局",4073,"镇宁自治县江龙镇中心学校","全额事业","01","专业技术人员","从事小学数学教育教学相关工作","中小学教师类（D类）","小学教师岗位","407301",1,"本科及以上","学士及以上",null,"一级学科：数学类","一级学科：数学",null,"1.具备小学及以上数学教师资格证书；\n2.该岗位在本单位最低服务年限为5年（含试用期）","0851-36225153"]
[499,"镇宁自治县","镇宁自治县教育和科技局",4074,"镇宁自治县募役镇中心学校","全额事业","01","专业技术人员","从事小学数学教育教学相关工作","中小学教师类（D类）","小学教师岗位","407401",1,"本科及以上","学士及以上",null,"一级学科：数学类","一级学科：数学",null,"1.具备小学及以上数学教师资格证书;\n2.该岗位在本单位最低服务年限为5年（含试用期）","0851-36225153"]
[500,"镇宁自治县","镇宁县教育和科技局",4075,"镇宁自治县六马中学","全额事业","01","专业技术人员","从事初中英语教育教学相关工作","中小学教师类（D类）","中学教师岗位","407501",1,"本科及以上","学士及以上",null,"二级学科：英语、翻译、商务英语","二级学科：英语语言文学、英语口译",null,"1.具备初中及以上英语教师资格证书;\n2.该岗位在本单位最低服务年限为5年（含试用期）","0851-36225153"]
[501,"镇宁自治县","镇宁县教育和科技局",4076,"镇宁自治县扁担山镇中心民族学校","全额事业","01","专业技术人员","从事小学数学教育教学相关工作","中小学教师类（D类）","小学教师岗位","407601",1,"本科及以上","学士及以上",null,"一级学科：数学类","一级学科：数学",null,"1.具备小学及以上数学教师资格证书;\n2.该岗位在本单位最低服务年限为5年（含试用期）","0851-36225153"]
[502,"镇宁自治县","镇宁县教育和科技局",4077,"镇宁自治县良田镇中心学校","全额事业","01","专业技术人员","从事小学数学教育教学相关工作","中小学教师类（D类）","小学教师岗位","407701",1,"本科及以上","学士及以上",null,"一级学科：数学类","一级学科：数学",null,"1.具备小学及以上数学教师资格证书；\n2.该岗位在本单位最低服务年限为5年（含试用期）","0851-36225153"]
[503,"镇宁自治县","镇宁自治县教育和科技局",4078,"镇宁自治县丁旗街道中心学校","全额事业","01","专业技术人员","从事小学数学教育教学相关工作","中小学教师类（D类）","小学教师岗位","407801",1,"本科及以上","学士及以上",null,"一级学科：数学类","一级学科：数学",null,"1.具备小学及以上数学教师资格证书；\n2.该岗位在本单位最低服务年限为5年（含试用期）","0851-36225153"]
[504,"镇宁自治县","镇宁自治县教育和科技局",4079,"镇宁自治县沙子乡乐纪小学","全额事业","01","专业技术人员","从事小学英语教育教学相关工作","中小学教师类（D类）","小学教师岗位","407901",1,"本科及以上","学士及以上",null,"二级学科：英语、翻译、商务英语","二级学科：英语语言文学、英语口译",null,"1.具备小学及以上英语教师资格证书；\n2.该岗位在本单位最低服务年限为5年（含试用期）","0851-36225153"]
[505,"关岭自治县","关岭自治县教育和科技局",5001,"关岭自治县民族高级中学","全额事业","01","专业技术人员","从事物理教育教学工作","中小学教师类（D类）","中学教师岗位","500101",1,"本科及以上","学士及以上",null,"二级学科：物理学、应用物理学","一级学科：物理学\n二级学科：学科教学（物理）",null,"1.具有初中及以上物理教师资格证；\n2.本单位最低服务年限5年","0851-37220375"]
[506,"关岭自治县","关岭自治县教育和科技局",5001,"关岭自治县民族高级中学","全额事业","02","专业技术人员","从事心理健康教育教学工作","中小学教师类（D类）","中学教师岗位","500102",1,"本科及以上","学士及以上",null,"二级学科：心理学、应用心理学","一级学科：心理学",null,"1.具有初中及以上心理健康教育教师资格证；\n2.本单位最低服务年限5年","0851-37220375"]
[507,"关岭自治县","关岭自治县教育和科技局",5002,"关岭自治县思源实验学校","全额事业","01","专业技术人员","从事初中语文教育教学工作","中小学教师类（D类）","中学教师岗位","500201",1,"本科及以上","学士及以上",null,"二级学科：汉语言文学、汉语言、汉语国际教育、中国少数民族语言文学、古典文献学","一级学科：中国语言文学二级学科：学科教学（语文）","本县户籍（生源）或\n2024年度毕业生","1.具有初中及以上语文教师资格证；\n2.本单位最低服务年限5年。","0851-37220375"]
[508,"关岭自治县","关岭自治县教育和科技局",5002,"关岭自治县思源实验学校","全额事业","02","专业技术人员","从事初中音乐教育教学工作","中小学教师类（D类）","中学教师岗位","500202",1,"本科及以上","学士及以上",null,"二级学科：音乐表演、音乐学、舞蹈表演、舞蹈学、舞蹈编导","二级学科：音乐学、舞蹈学、学科教学（音乐）","定向2024年度毕业生","1.具有初中及以上音乐教师资格证；\n2.本单位最低服务年限5年","0851-37220375"]
[509,"关岭自治县","关岭自治县教育和科技局",5002,"关岭自治县思源实验学校","全额事业","03","专业技术人员","从事初中美术教育教学工作","中小学教师类（D类）","中学教师岗位","500203",1,"本科及以上","学士及以上",null,"二级学科：美术学","二级学科：美术学、学科教学（美术）",null,"1.具有初中及以上美术教师资格证；\n2.本县户籍（生源）；\n3.本单位最低服务年限5年","0851-37220375"]
[510,"关岭自治县","关岭自治县教育和科技局",5002,"关岭自治县思源实验学校","全额事业","04","专业技术人员","从事初中体育教育教学工作","中小学教师类（D类）","中学教师岗位","500204",1,"本科及以上","学士及以上",null,"二级学科：体育教育、运动训练、武术与民族传统体育、运动人体科学","一级学科：体育学\n二级学科：学科教学（体育）",null,"1.具有初中及以上体育教师资格证；\n2.本县户籍（生源）；\n3.本单位最低服务年限5年","0851-37220375"]
[511,"关岭自治县","关岭自治县教育和科技局",5002,"关岭自治县思源实验学校","全额事业","05","专业技术人员","从事初中信息技术教育教学工作","中小学教师类（D类）","中学教师岗位","500205",1,"本科及以上","学士及以上",null,"二级学科：计算机科学与技术、软件工程、网络工程、信息安全、物联网工程、数字媒体技术、智能科学与技术、空间信息与数字技术、电子与计算机工程","一级学科：计算机科学与技术",null,"1.具有初中及以上信息技术教师资格证；\n2.本县户籍（生源）；\n3.本单位最低服务年限5年","0851-37220375"]
[512,"关岭自治县","关岭自治县教育和科技局",5002,"关岭自治县思源实验学校","全额事业","06","专业技术人员","从事初中心理健康教育教学工作","中小学教师类（D类）","中学教师岗位","500206",1,"本科及以上","学士及以上",null,"二级学科：心理学、应用心理学","一级学科：心理学",null,"1.具有初中及以上心理健康教育教师资格证；\n2.本县户籍（生源）；\n3.本单位最低服务年限5年","0851-37220375"]
[513,"关岭自治县","关岭自治县教育和科技局",5003,"关岭自治县民族寄宿制中学","全额事业","01","专业技术人员","从事初中语文教育教学工作","中小学教师类（D类）","中学教师岗位","500301",1,"本科及以上","学士及以上",null,"二级学科：汉语言文学、汉语言、汉语国际教育、中国少数民族语言文学、古典文献学","一级学科：中国语言文学\n二级学科：学科教学（语文）",null,"1.具有初中及以上语文教师资格证；\n2.本单位最低服务年限5年","0851-37220375"]
[514,"关岭自治县","关岭自治县教育和科技局",5003,"关岭自治县民族寄宿制中学","全额事业","02","专业技术人员","从事初中数学教育教学工作","中小学教师类（D类）","中学教师岗位","500302",1,"本科及以上","学士及以上",null,"二级学科：数学与应用数学、信息与计算科学、数理基础科学、数据计算及应用","一级学科：数学\n二级学科：学科教学（数学）",null,"1.具有初中及以上数学教师资格证；\n2.本单位最低服务年限5年","0851-37220375"]
[515,"关岭自治县","关岭自治县教育和科技局",5003,"关岭自治县民族寄宿制中学","全额事业","03","专业技术人员","从事初中英语教育教学工作","中小学教师类（D类）","中学教师岗位","500303",1,"本科及以上","学士及以上",null,"二级学科：英语、翻译","二级学科：英语语言文学、学科教学（英语）",null,"1.具有初中及以上英语教师资格证；\n2.本县户籍（生源）；\n3.本单位最低服务年限5年","0851-37220375"]
[516,"关岭自治县","关岭自治县教育和科技局",5003,"关岭自治县民族寄宿制中学","全额事业","04","专业技术人员","从事初中物理学科教育教学工作","中小学教师类（D类）","中学教师岗位","500304",1,"本科及以上","学士及以上",null,"二级学科：物理学、应用物理学","一级学科：物理学\n二级学科：学科教学（物理）",null,"1.具有初中及以上物理教师资格证；\n2.本单位最低服务年限5年","0851-37220375"]
[517,"关岭自治县","关岭自治县教育和科技局",5003,"关岭自治县民族寄宿制中学","全额事业","05","专业技术人员","从事初中信息技术教育教学工作","中小学教师类（D类）","中学教师岗位",{"$f":"D521&G521","v":"500305"},1,"本科及以上","学士及以上",null,"二级学科：计算机科学与技术、软件工程、网络工程、信息安全、物联网工程、数字媒体技术、智能科学与技术、空间信息与数字技术、电子与计算机工程","一级学科：计算机科学与技术",null,"1.具有初中及以上信息技术教师资格证；\n2.本县户籍（生源）；\n3.本单位最低服务年限5年","0851-37220375"]
[518,"关岭自治县","关岭自治县教育和科技局",5003,"关岭自治县民族寄宿制中学","全额事业","06","专业技术人员","从事初中体育与健康教育教学工作","中小学教师类（D类）","中学教师岗位","500306",1,"本科及以上","学士及以上",null,"二级学科：体育教育、运动训练、武术与民族传统体育、运动人体科学","一级学科：体育学\n二级学科：学科教学（体育）",null,"1.具有初中及以上体育与健康教育教师资格证；\n2.本单位最低服务年限5年","0851-37220375"]
[519,"关岭自治县","关岭自治县教育和科技局",5003,"关岭自治县民族寄宿制中学","全额事业","07","专业技术人员","从事初中音乐教育教学工作","中小学教师类（D类）","中学教师岗位","500307",1,"本科及以上","学士及以上",null,"二级学科：音乐表演、音乐学、舞蹈表演、舞蹈学、舞蹈编导","二级学科：音乐学、舞蹈学、学科教学（音乐）",null,"1.具有初中及以上音乐教师资格证；\n2.本单位最低服务年限5年","0851-37220375"]
[520,"关岭自治县","关岭自治县教育和科技局",5003,"关岭自治县民族寄宿制中学","全额事业","08","专业技术人员","从事初中美术教育教学工作","中小学教师类（D类）","中学教师岗位","500308",1,"本科及以上","学士及以上",null,"二级学科：美术学","二级学科：美术学、学科教学（美术）",null,"1.具有初中及以上美术教师资格证；\n2.本单位最低服务年限5年","0851-37220375"]
[521,"关岭自治县","关岭自治县教育和科技局",5004,"关岭自治县综合性高级中学","全额事业","01","专业技术人员","从事高中生物教育教学工作","中小学教师类（D类）","中学教师岗位","500401",1,"本科及以上","学士及以上",null,"二级学科：生物科学、生物技术、生物信息学、生态学","一级学科：生物学\n二级学科：学科教学（生物）",null,"1.具有高中生物教师资格证；\n2.本单位最低服务年限5年","0851-37220375"]
[522,"关岭自治县","关岭自治县教育和科技局",5004,"关岭自治县综合性高级中学","全额事业","02","专业技术人员","从事高中美术（书法方向）教育教学工作","中小学教师类（D类）","中学教师岗位","500402",1,"本科及以上","学士及以上",null,"二级学科：书法学","一级学科：美术与书法",null,"1.具有高中美术教师资格证；\n2.本单位最低服务年限5年","0851-37220375"]
[523,"关岭自治县","关岭自治县教育和科技局",5005,"关岭自治县民族中等职业学校（贵州省电视大学安顺市分校关岭布依族苗族自治县工作站）","全额事业","01","专业技术人员","从事信息技术教育教学工作","中小学教师类（D类）","中学教师岗位","500501",1,"本科及以上","学士及以上",null,"二级学科：计算机科学与技术、软件工程、网络工程、信息安全、物联网工程、数字媒体技术、智能科学与技术、空间信息与数字技术、电子与计算机工程","一级学科：计算机科学与技术",null,"1.具有高中（或中职）信息技术教师资格证；\n2.本单位最低服务年限5年","0851-37220375"]
[524,"关岭自治县","关岭自治县教育和科技局",5005,"关岭自治县民族中等职业学校（贵州省电视大学安顺市分校关岭布依族苗族自治县工作站）","全额事业","02","专业技术人员","从事体育教育教学工作","中小学教师类（D类）","中学教师岗位","500502",1,"本科及以上","学士及以上",null,"二级学科：体育教育、运动训练、武术与民族传统体育、运动人体科学","一级学科：体育学\n二级学科：学科教学（体育）","定向2024年度毕业生","1.具有高中（或中职）体育教师资格证；\n2.本单位最低服务年限5年","0851-37220375"]
[525,"关岭自治县","中共关岭自治县委党校（教育培训中心、行政学校）",5006,"中共关岭自治县委党校（教育培训中心、行政学校）","全额事业","01","专业技术人员","从事科研、教学工作","综合管理类（A类）","——","500601",1,"本科及以上","学士及以上",null,"一级学科：马克思主义理论类、政治学类、心理学类","一级学科：马克思主义理论、政治学、心理学",null,"1.安顺市户籍（生源）；\n2.限男性；\n3.本单位最低服务年限5年","0851-37220375"]
[526,"关岭自治县","中共关岭自治县委党校（教育培训中心、行政学校）",5006,"中共关岭自治县委党校（教育培训中心、行政学校）","全额事业","02","专业技术人员","从事科研、教学工作","综合管理类（A类）","——","500602",1,"本科及以上","学士及以上",null,"一级学科：马克思主义理论类、政治学类、心理学类","一级学科：马克思主义理论、政治学、心理学",null,"\n1.安顺市户籍（生源）\n2.限女性；\n3.本单位最低服务年限5年\n","0851-37220375"]
[527,"关岭自治县","关岭自治县卫生健康局",5007,"关岭自治县疾病预防控制中心","全额事业","01","专业技术人员","从事疾病预防控制工作","医疗卫生类（E类）","公共卫生管理岗位","500701",4,"本科及以上","学士及以上",null,"二级学科：预防医学","二级学科：流行病与卫生统计学",null,"本单位最低服务年限5年","0851-37220375"]
[528,"关岭自治县","关岭自治县卫生健康局",5008,"关岭自治县中医医院","全额事业","01","专业技术人员","从事临床诊疗工作","医疗卫生类（E类）","中医临床岗位","500801",1,"本科及以上","学士及以上",null,"二级学科：中医学","二级学科：中医内科学、中医儿科学",null,"1.具有执业医师资格证；\n2.本单位最低服务年限5年","0851-37220375"]
[529,"关岭自治县","关岭自治县卫生健康局",5008,"关岭自治县中医医院","全额事业","02","专业技术人员","从事临床诊疗工作","医疗卫生类（E类）","中医临床岗位","500802",1,"本科及以上","学士及以上",null,"二级学科：针灸推拿学、中医骨伤科学","二级学科：中医外科学、中医骨伤科学",null,"1.具有执业医师资格证；\n2.本单位最低服务年限5年","0851-37220375"]
[530,"关岭自治县","关岭自治县卫生健康局",5008,"关岭自治县中医医院","全额事业","03","专业技术人员","从事临床诊疗工作","医疗卫生类（E类）","中医临床岗位","500803",1,"本科及以上","学士及以上",null,"二级学科：中西医临床医学","一级学科：中医妇科学、中医五官科学",null,"1.具有执业医师资格证；\n2.该岗位招聘人员需派驻基层服务。取得住院医师规范化培训合格证书后须到关岭自治县乡镇卫生院服务3年;\n3.本单位最低服务年限5年","0851-37220375"]
[531,"关岭自治县","关岭自治县卫生健康局",5008,"关岭自治县中医医院","全额事业","04","管理人员","从事医院办公室工作","综合管理类（A类）","——",{"$f":"D535&G535","v":"500804"},1,"本科及以上","学士及以上",null,"一级学科：中国语言文学类","一级学科：中国语言文学\n二级学科：社会医学与卫生事业管理",null,"1.本县户籍（生源）；\n2.本单位最低服务年限5年","0851-37220375"]
[532,"关岭自治县","关岭自治县卫生健康局",5009,"关岭自治县中医药发展中心","全额事业","01","专业技术人员","从事中医药发展工作","综合管理类（A类）","——","500901",1,"本科及以上","学士及以上",null,"一级学科：中医学类","一级学科：中医学、中药学",null,"本单位最低服务年限5年","0851-37220375"]
[533,"关岭自治县","关岭自治县自然资源局",5010,"关岭自治县自然资源勘测所","全额事业","01","管理人员","从事并协助上级主管部门做好地籍调查和勘测等相关工作","综合管理类（A类）","——","501001",1,"本科及以上","学士及以上",null,"二级学科：土地资源管理、城乡规划、测绘工程","一级学科：公共管理、测绘科学与技术、地质资源与地质工程","定向2024年度毕业生",null,"0851-37220375"]
[534,"关岭自治县","关岭自治县自然资源局",5011,"关岭自治县土地开发中心","全额事业","01","管理人员","从事全县国土空间综合整治、土地开发、复垦、整理、整治、耕地占补平衡等相关工作。","综合管理类（A类）","——","501101",1,"本科及以上","学士及以上",null,"二级学科：土地资源管理、城乡规划、测绘工程","一级学科：公共管理、测绘科学与技术、地质资源与地质工程",null,null,"0851-37220375"]
[535,"关岭自治县","关岭自治县自然资源局",5012,"关岭自治县土地储备中心","全额事业","01","专业技术人员","从事全县储备土地的信息发布、登记、招商洽谈和投放市场的前期准备等服务工作。","综合管理类（A类）","——","501201",1,"本科及以上","学士及以上",null,"二级学科：土地资源管理、城乡规划、测绘工程","一级学科：公共管理、测绘科学与技术、地质资源与地质工程","定向2024年度毕业生",null,"0851-37220375"]
[536,"关岭自治县","关岭自治县自然资源局",5013,"关岭自治县不动产登记中心","全额事业","01","管理人员","从事全县土地登记、房屋登记、林地登记、草原登记等不动产登记相关工作。","综合管理类（A类）","——","501301",1,"本科及以上","学士及以上",null,"二级学科：土地资源管理、城乡规划、测绘工程","一级学科：公共管理、测绘科学与技术、地质资源与地质工程",null,null,"0851-37220375"]
[537,"关岭自治县","关岭自治县自然资源局",5014,"关岭自治县新铺镇自然资源所","全额事业","01","专业技术人员","从事乡镇（街道）自然资源管理相关工作。","综合管理类（A类）","——","501401",1,"本科及以上","学士及以上",null,"二级学科：土地资源管理、城乡规划、测绘工程","一级学科：公共管理、测绘科学与技术、地质资源与地质工程","定向2024年度毕业生",null,"0851-37220375"]
[538,"关岭自治县","关岭自治县水务局",5015,"关岭自治县防汛抗旱排涝服务队","全额事业","01","专业技术人员","从事全县范围内的汛旱情监测、防汛抗旱应急减灾等服务工作。","综合管理类（A类）","——","501501",1,"本科及以上","学士及以上",null,"一级学科：水利类","一级学科：水利工程",null,null,"0851-37220375"]
[539,"关岭自治县","关岭自治县水务局",5016,"关岭自治县母猪笼水库管理所","全额事业","01","专业技术人员","从事水库的运行管理工作。","综合管理类（A类）","——","501601",1,"本科及以上","学士及以上",null,"一级学科：水利类","一级学科：水利工程","定向2024年度毕业生",null,"0851-37220375"]
[540,"关岭自治县","关岭自治县水务局",5017,"关岭自治县鸡窝田渠道管理所","全额事业","01","管理人员","从事渠道的运行管理工作。","综合管理类（A类）","——","501701",1,"本科及以上","学士及以上",null,"\n一级学科：法学类、中国语言文学类","\n一级学科：中国语言文学",null,null,"0851-37220375"]
[541,"关岭自治县","关岭自治县发展和改革局",5018,"关岭自治县价格认证中心","全额事业","01","管理人员","从事项目谋划申报、管理等工作","综合管理类（A类）","——","501801",1,"本科及以上","学士及以上",null,"一级学科：建筑类","一级学科：建筑学",null,null,"0851-37220375"]
[542,"关岭自治县","关岭自治县发展和改革局",5018,"关岭自治县价格认证中心","全额事业","02","管理人员","从事项目谋划申报、管理、会计出纳等工作","综合管理类（A类）","——","501802",1,"本科及以上","学士及以上",null,"一级学科：经济学类","学科门类：经济学",null,"1.本县户籍（生源）；\n2.本单位最低服务年限5年","0851-37220375"]
[543,"关岭自治县","关岭自治县统计局",5019,"关岭自治县乡镇统计管理办公室","全额事业","01","专业技术人员","从事财务管理、数据统计等相关工作","综合管理类（A类）","——","501901",1,"本科及以上","学士及以上",null,"一级学科：财政学类、统计学类","学科门类：管理学",null,"1.本县户籍（生源）；\n2.本单位最低服务年限5年","0851-37220375"]
[544,"关岭自治县","关岭自治县住房和城乡建设局",5020,"关岭自治县市政建设服务站","全额事业","01","管理人员","从事负责公共基础设\n施、市政设施的监督管理工作","综合管理类（A类）","——","502001",1,"本科及以上","学士及以上",{"$nulls":3},"本县户籍（生源）或\n2024年度毕业生","本县户籍（生源）在本单位最低服务年限5年","0851-37220375"]
[545,"关岭自治县","关岭自治县住房和城乡建设局",5021,"关岭自治县建筑工程质量工作站","全额事业","01","专业技术人员","从事建设工程质量监督管理、建设工程消防设计审查验收备案等工作","综合管理类（A类）","——","502101",1,"本科及以上","学士及以上",null,"一级学科：土木类","一级学科：土木工程",null,"1.本县户籍（生源）；\n2.本单位最低服务年限5年","0851-37220375"]
[546,"关岭自治县","关岭自治县工业和信息化局",5022,"关岭自治县煤矿安全生产监控中心（煤矿驻矿安全中心）","全额事业","01","专业技术人员","从事煤矿安全监管工作，需下井","综合管理类（A类）","——","502201",2,"大专及以上",null,"二级学科：矿山机电、矿山机电与智能装备、煤矿开采技术、矿井通风与安全","二级学科：采矿工程、矿物加工工程、智能采矿工程","一级学科：矿业工程",null,"建议男性报考：因需要从事煤矿井下工作","0851-37220375"]
[547,"关岭自治县","关岭自治县工业和信息化局",5022,"关岭自治县煤矿安全生产监控中心（煤矿驻矿安全中心）","全额事业","02","专业技术人员","从事煤矿安全监管工作，需下井","综合管理类（A类）","——","502202",2,"本科及以上",null,null,"一级学科：地质类、测绘类","一级学科：测绘科学与技术、地质资源与地质工程",null,"建议男性报考：因需要从事煤矿井下工作","0851-37220375"]
[548,"关岭自治县","关岭自治县农业农村局",5023,"关岭自治县农业技术推广站","全额事业","01","专业技术人员","从事农业新技术、新品种的试验和示范推广工作等相关工作。","综合管理类（A类）","——","502301",1,"本科及以上","学士及以上",null,"\n一级学科：植物生产类","\n一级学科：园艺学",null,null,"0851-37220375"]
[549,"关岭自治县","关岭自治县农业农村局",5024,"关岭自治县果树蔬菜工作站","全额事业","01","专业技术人员","从事果树蔬菜新品种和新技术引进、试验、示范和推广等相关工作。","综合管理类（A类）","——","502401",1,"本科及以上","学士及以上",null,"\n一级学科：植物生产类","学科门类：农学","本县户籍（生源）或\n2024年度毕业生","本县户籍（生源）在本单位最低服务年限5年","0851-37220375"]
[550,"关岭自治县","关岭自治县农业农村局",5025,"关岭自治县农村经济经营服务站","全额事业","01","专业技术人员","负责农村经济统计调查，土地承包管理，指导农业产业化经营指导等相关工作。","综合管理类（A类）","——","502501",1,"本科及以上","学士及以上",null,"\n学科门类：农学","学科门类：农学",null,"1.本县户籍（生源）；\n2.本单位最低服务年限5年","0851-37220375"]
[551,"关岭自治县","关岭自治县信访局",5026,"关岭自治县群众工作服务中心(信访投诉受理中心<信访信息中心>)","全额事业","01","管理人员","从事信访工作","综合管理类（A类）","——","502601",1,"本科及以上","学士及以上",{"$nulls":4},"1.2年以上基层工作经验；\n2.本县户籍（生源）；\n3.本单位最低服务年限5年","0851-37220375"]
[552,"关岭自治县","关岭自治县生态移民局",5027,"关岭自治县生态移民服务中心","全额事业","01","专业技术人员","从事生态移民服务工作","综合管理类（A类）","——","502701",1,"本科及以上","学士及以上",{"$nulls":3},"本县户籍（生源）或\n2024年度毕业生","本县户籍（生源）在本单位最低服务年限5年","0851-37220375"]
[553,"关岭自治县","关岭自治县关索街道办事处",5028,"关岭自治县关索街道退役军人服务站","全额事业","01","管理人员","主要从事退役军人相关工作","综合管理类（A类）","——","502801",1,"本科及以上","学士及以上",{"$nulls":3},"本县户籍（生源）或\n2024年度毕业生","本县户籍（生源）在本单位最低服务年限5年","0851-37220375"]
[554,"关岭自治县","中共关岭自治县产业园区工作委员会、关岭自治县产业园区管理委员会",5029,"关岭自治县产业园区管理服务中心","全额事业","01","管理人员","从事园区中药材管理、服务药企等工作。","综合管理类（A类）","——","502901",1,"本科及以上","学士及以上",null,"一级学科：中药学类","一级学科：中药学",null,null,"0851-37220375"]
[555,"关岭自治县","关岭自治县龙潭街道办事处",5030,"关岭自治县龙潭街道农业服务中心（乡村振兴服务中心）","全额事业","01","专业技术人员","负责农业技术推广工作、农用物资管理，配合开展各类生态环境保护工作等","综合管理类（A类）","——","503001",1,"本科及以上","学士及以上",null,"\n学科门类：农学","\n学科门类：农学","定向2024年度毕业生",null,"0851-37220375"]
[556,"关岭自治县","关岭自治县顶云街道办事处",5031,"关岭自治县顶云街道公共事务服务中心","全额事业","01","专业技术人员","承担社会保障、医疗保障等社会事务服务工作","综合管理类（A类）","——","503101",1,"本科及以上","学士及以上",null,"一级学科：公共管理类","一级学科：公共管理",null,"1.本县户籍（生源）；\n2.本单位最低服务年限5年","0851-37220375"]
[557,"关岭自治县","关岭自治县顶云街道办事处",5032,"关岭自治县顶云街道农业服务中心（乡村振兴服务中心）","全额事业","01","管理人员","承担茶树种植、管护等工作","综合管理类（A类）","——","503201",1,"大专及以上",null,"\n一级学科：农业技术类","\n一级学科：植物生产类","\n一级学科：园艺学",null,"1.本县户籍（生源）；\n2.本单位最低服务年限5年","0851-37220375"]
[558,"关岭自治县","关岭自治县百合街道办事处",5033,"关岭自治县百合街道党务政务综合服务中心（百合街道党群服务中心）","全额事业","01","管理人员","从事党务政务服务相关工作","综合管理类（A类）","——","503301",1,"本科及以上","学士及以上",null,"一级学科：公共管理类","一级学科：公共管理",null,"1.本县户籍（生源）；\n2.本单位最低服务年限5年","0851-37220375"]
[559,"关岭自治县","关岭自治县断桥镇人民政府",5034,"关岭自治县财政局断桥镇分局","全额事业","01","管理人员","从事财政分局日常工作","综合管理类（A类）","——","503401",1,"本科及以上","学士及以上",null,"一级学科：财政学类、工商管理类、统计学类","一级学科：工商管理、\n应用经济学",null,"1.本县户籍（生源）；\n2.本单位最低服务年限5年","0851-37220375"]
[560,"关岭自治县","关岭自治县花江镇人民政府",5035,"关岭自治县花江镇农业服务中心（农畜产品质量安全监管站、农业技术综合服务中心、畜牧兽医站）","全额事业","01","专业技术人员","从事农业服务中心工作","综合管理类（A类）","——","503501",1,"大专及以上",null,"\n一级学科：农业技术类、畜牧兽医类","学科门类：农学","学科门类：农学",null,"1.本县户籍（生源）；\n2.本单位最低服务年限5年","0851-37220375"]
[561,"关岭自治县","关岭自治县花江镇人民政府",5036,"关岭自治县花江镇人力资源和社会保障服务中心（社会福利管理中心、敬老院）","全额事业","01","管理人员","从事人社服务中心工作","综合管理类（A类）","——","503601",1,"本科及以上",null,null,"一级学科：公共管理类","一级学科：公共管理",null,"1.本县户籍（生源）；\n2.本单位最低服务年限5年","0851-37220375"]
[562,"关岭自治县","关岭自治县花江镇人民政府",5037,"关岭自治县花江镇村镇建设管理站","全额事业","01","专业技术人员","从事村建管理站相关工作","综合管理类（A类）","——","503701",1,"大专及以上",null,"一级学科：建筑设计类","一级学科：建筑类","一级学科：建筑学",null,"1.本县户籍（生源）；\n2.本单位最低服务年限5年","0851-37220375"]
[563,"关岭自治县","关岭自治县花江镇人民政府",5038,"关岭自治县财政局花江镇分局","全额事业","01","专业技术人员","从事会计相关工作","综合管理类（A类）","——","503801",1,"大专及以上",null,"\n一级学科：财务会计类","一级学科：财政学类、工商管理类、统计学类","一级学科：工商管理、\n应用经济学",null,"1.本县户籍（生源）；\n2.本单位最低服务年限5年","0851-37220375"]
[564,"关岭自治县","关岭自治县花江镇人民政府",5039,"关岭自治县花江镇政务服务中心（园区政务服务中心）","全额事业","01","管理人员","从事社区政务服务工作","综合管理类（A类）","——","503901",1,"本科及以上",{"$nulls":4},"本县户籍（生源）或\n2024年度毕业生","本县户籍（生源）在本单位最低服务年限5年","0851-37220375"]
[565,"关岭自治县","关岭自治县普利乡人民政府",5040,"关岭自治县普利乡农业服务中心","全额事业","01","管理人员","从事农业服务相关工作。","综合管理类（A类）","——","504001",1,"中专（技校、职高、高中）及以上",{"$nulls":4},"定向关岭自治县（白水镇除外）村干部","本单位最低服务年限5年","0851-37220375"]
[566,"关岭自治县","关岭自治县普利乡人民政府",5041,"关岭自治县普利乡乡村振兴服务中心","全额事业","01","专业技术人员","从事乡村振兴服务相关工作。","综合管理类（A类）","——","504101",1,"本科及以上",null,null,"学科门类：管理学、经济学","学科门类：管理学、经济学","本县户籍（生源）或\n2024年度毕业生","本县户籍（生源）在本单位最低服务年限5年","0851-37220375"]
[567,"关岭自治县","关岭自治县普利乡人民政府",5042,"关岭自治县普利乡林业和环境保护工作站","全额事业","01","专业技术人员","从事林业技术服务推广、退耕还林还草、森林资源保护等工作。","综合管理类（A类）","——","504201",1,"本科及以上","学士及以上",null,"一级学科：林业工程类、环境科学与工程类","一级学科：林业工程、环境科学与工程","本县户籍（生源）或\n2024年度毕业生","本县户籍（生源）在本单位最低服务年限5年","0851-37220375"]
[568,"关岭自治县","关岭自治县普利乡人民政府",5043,"关岭自治县普利乡安全生产监督管理站","全额事业","01","管理人员","从事安全生产监督管理相关工作。","综合管理类（A类）","——","504301",1,"大专及以上",{"$nulls":4},"本县户籍（生源）或\n2024年度毕业生","本县户籍（生源）在本单位最低服务年限5年","0851-37220375"]
[569,"关岭自治县","关岭自治县普利乡人民政府",5044,"关岭自治县普利乡水利和移民工作站","全额事业","01","管理人员","从事水利和移民相关工作。","综合管理类（A类）","——","504401",1,"本科及以上",{"$nulls":4},"本县户籍（生源）或\n2024年度毕业生","本县户籍（生源）在本单位最低服务年限5年","0851-37220375"]
[570,"关岭自治县","关岭自治县岗乌镇人民政府",5045,"关岭自治县岗乌镇水利和移民工作站","全额事业","01","管理人员","从事水利和移民相关工作","综合管理类（A类）","——","504501",1,"本科及以上",null,null,"一级学科：水利类、农业工程类、建筑类","一级学科：水利工程、\n农业工程、建筑学",null,"1.本县户籍（生源）；\n2.本单位最低服务年限5年","0851-37220375"]
[571,"关岭自治县","关岭自治县岗乌镇人民政府",5046,"关岭自治县岗乌镇乡村振兴服务中心","全额事业","01","专业技术人员","从事乡村振兴服务中心工作","综合管理类（A类）","——","504601",1,"本科及以上",null,null,"学科门类：农学\n一级学科：法学类、计算机类","学科门类：法学、工学、农学","本县户籍（生源）或\n2024年度毕业生","1.限男性;\n2.本县户籍（生源）在本单位最低服务年限5年","0851-37220375"]
[572,"关岭自治县","关岭自治县岗乌镇人民政府",5046,"关岭自治县岗乌镇乡村振兴服务中心","全额事业","02","专业技术人员","从事乡村振兴服务中心工作","综合管理类（A类）","——","504602",1,"本科及以上",null,null,"一级学科：法学类、计算机类；学科门类：农学","学科门类：法学、工学、农学","本县户籍（生源）或\n2024年度毕业生","1.限女性;\n2.本县户籍（生源）在本单位最低服务年限5年","0851-37220375"]
[573,"关岭自治县","关岭自治县岗乌镇人民政府",5047,"关岭自治县岗乌镇退役军人服务站（综治中心)","全额事业","01","管理人员","从事退役军人及综治相关工作","综合管理类（A类）","——","504701",1,"大专及以上",{"$nulls":4},"本县户籍（生源）或\n2024年度毕业生","本县户籍（生源）在本单位最低服务年限5年","0851-37220375"]
[574,"关岭自治县","关岭自治县永宁镇人民政府",5048,"关岭自治县永宁镇林业和环境保护工作站","全额事业","01","专业技术人员","从事林业技术服务推广、退耕还林还草、森林资源保护等工作","综合管理类（A类）","——","504801",1,"本科及以上","学士及以上",null,"一级学科：林业工程类、环境科学与工程类","一级学科：林业工程、环境科学与工程",null,"1.本县户籍（生源）；\n2.本单位最低服务年限5年","0851-37220375"]
[575,"关岭自治县","关岭自治县永宁镇人民政府",5049,"关岭自治县财政局永宁镇分局","全额事业","01","管理人员","从事管理镇所属机关、事业单位的财务，实行统一集中支付等方面的工作","综合管理类（A类）","——","504901",1,"本科及以上","学士及以上",null,"一级学科：财政学类、工商管理类、统计学类","一级学科：工商管理、\n应用经济学","本县户籍（生源）或\n2024年度毕业生","\n本县户籍（生源）在本单位最低服务年限5年","0851-37220375"]
[576,"关岭自治县","关岭自治县永宁镇人民政府",5049,"关岭自治县财政局永宁镇分局","全额事业","02","专业技术人员","从事编制镇年度收支预、决算等财务相关工作","综合管理类（A类）","——","504902",1,"本科及以上","学士及以上",null,"一级学科：财政学类、工商管理类、统计学类","一级学科：工商管理、\n应用经济学",null,"1.本县户籍（生源）；\n2.本单位最低服务年限5年","0851-37220375"]
[577,"关岭自治县","关岭自治县永宁镇人民政府",5050,"关岭自治县永宁镇乡村振兴服务中心","全额事业","01","专业技术人员","从事乡村振兴服务相关工作","综合管理类（A类）","——","505001",1,"本科及以上","学士及以上",null,"一级学科：经济学类、公共管理类","学科门类：管理学、经济学",null,"1.本县户籍（生源）；\n2.本单位最低服务年限5年","0851-37220375"]
[578,"关岭自治县","关岭自治县沙营镇人民政府",5051,"关岭自治县沙营镇农业服务中心（农业技术综合服务中心、畜牧兽医站）","全额事业","01","管理人员","从事承担农业技术推广、农机推广、畜牧兽医、农用物资、扶贫开发、农产品质量检测、镇企业管理等服务工作","综合管理类（A类）","——","505101",1,"本科及以上",null,null,"\n一级学科：植物生产类、动物医学类","学科门类：农学",null,"1.本县户籍（生源）；\n2.本单位最低服务年限5年","0851-37220375"]
[579,"关岭自治县","关岭自治县沙营镇人民政府",5052,"关岭自治县沙营镇村镇建设管理站","全额事业","01","专业技术人员","从事村镇规划建设等协调和服务工作","综合管理类（A类）","——","505201",1,"本科及以上",{"$nulls":4},"定向关岭自治县“基层服务项目人员”；退役大学生士兵或驻安部队现役军人符合条件的六类随军家属",null,"0851-37220375"]
[580,"关岭自治县","关岭自治县沙营镇人民政府",5053,"关岭自治县沙营镇水利和移民工作站","全额事业","01","管理人员","从事水利设施的建设、管理及辖区内移民工作","综合管理类（A类）","——","505301",1,"大专及以上",{"$nulls":5},"1.2年以上基层工作经验；\n2.本县户籍（生源）;\n3.本单位最低服务年限5年","0851-37220375"]
[581,"关岭自治县","关岭自治县沙营镇人民政府",5054,"关岭自治县沙营镇林业和环境保护工作站","全额事业","01","专业技术人员","从事林业技术推广、负责辖区内环境保护等工作","综合管理类（A类）","——","505401",1,"本科及以上",{"$nulls":5},"1.限男性；\n2.限本县户籍（生源）;\n3.本单位最低服务年限5年","0851-37220375"]
[582,"关岭自治县","关岭自治县沙营镇人民政府",5054,"关岭自治县沙营镇林业和环境保护工作站","全额事业","02","专业技术人员","从事林业技术推广、负责辖区内环境保护等工作","综合管理类（A类）","——","505402",1,"本科及以上",{"$nulls":5},"1.限女性；\n2.本县户籍（生源）;\n3.本单位最低服务年限5年","0851-37220375"]
[583,"关岭自治县","关岭自治县坡贡镇人民政府",5055,"关岭自治县坡贡镇农业服务中心","全额事业","01","专业技术人员","从事农业工作","综合管理类（A类）","——","505501",1,"大专及以上",null,"\n一级学科：农业技术类、畜牧兽医类","学科门类：农学","学科门类：农学",null,null,"0851-37220375"]
[584,"关岭自治县","关岭自治县坡贡镇人民政府",5056,"关岭自治县坡贡镇林业和环境保护工作站","全额事业","01","专业技术人员","从事林业环境保护相关工作","综合管理类（A类）","——","505601",1,"本科及以上","学士及以上",null,"一级学科：林业工程类、环境科学与工程类、林学类","一级学科：林业工程、环境科学与工程、林学",null,null,"0851-37220375"]
[585,"关岭自治县","关岭自治县坡贡镇人民政府",5057,"关岭自治县财政局坡贡镇分局","全额事业","01","专业技术人员","从事财务相关工作","综合管理类（A类）","——","505701",1,"本科及以上","学士及以上",null,"一级学科：财政学类、工商管理类、统计学类","一级学科：工商管理、\n应用经济学",null,"1.本县户籍（生源）；\n2.本单位最低服务年限5年","0851-37220375"]
[586,"关岭自治县","关岭自治县坡贡镇人民政府",5058,"关岭自治县坡贡镇安全生产监督管理站","全额事业","01","管理人员","从事安全生产相关工作","综合管理类（A类）","——",{"$f":"D590&G590","v":"505801"},1,"中专（技校、职高、高中）及以上",{"$nulls":4},"定向关岭自治县（白水镇除外）村干部","本单位最低服务年限5年","0851-37220375"]
[587,"关岭自治县","关岭自治县坡贡镇人民政府",5059,"关岭自治县坡贡镇乡村振兴服务中心","全额事业","01","专业技术人员","从事宜居乡村建设、巩固拓展脱贫攻坚成果同乡村振兴有效衔接等工作","综合管理类（A类）","——","505901",1,"本科及以上",null,null,"\n一级学科：农业经济管理类、公共管理类","学科门类：管理学",null,"1.本县户籍（生源）；\n2.本单位最低服务年限5年","0851-37220375"]
[588,"关岭自治县","关岭自治县新铺镇人民政府",5060,"关岭自治县新铺镇人力资源和社会保障服务中心（社会福利管理中心、敬老院）","全额事业","01","管理人员","从事劳动和社会保障等相关工作","综合管理类（A类）","——","506001",1,"大专及以上",{"$nulls":4},"本县户籍（生源）或\n2024年度毕业生","本县户籍（生源）在本单位最低服务年限5年","0851-37220375"]
[589,"关岭自治县","关岭自治县新铺镇人民政府",5061,"关岭自治县新铺镇乡村振兴服务中心","全额事业","01","管理人员","从事乡村振兴服务等相关工作","综合管理类（A类）","——","506101",1,"大专及以上",{"$nulls":4},"定向关岭自治县“基层服务项目人员”；退役大学生士兵或驻安部队现役军人符合条件的六类随军家属",null,"0851-37220375"]
[590,"关岭自治县","关岭自治县新铺镇人民政府",5062,"关岭自治县新铺镇林业和环境保护工作站","全额事业","01","专业技术人员","从事林业和环境保护等相关工作","综合管理类（A类）","——","506201",1,"大专及以上",null,"一级学科：林业技术类、农林管理类","一级学科：林业工程类、农业经济管理类","学科门类：管理学\n一级学科：林业工程",null,"1.本县户籍（生源）；\n2.本单位最低服务年限5年","0851-37220375"]
[591,"关岭自治县","关岭自治县上关镇人民政府",5063,"关岭自治县上关镇村镇建设管理站","全额事业","01","专业技术人员","从事村镇建设管理工作及项目管理工作","综合管理类（A类）","——","506301",1,"本科及以上","学士及以上",null,"一级学科：土木类、水利类、建筑类","学科门类：工学",null,"1.本县户籍（生源）；\n2.本单位最低服务年限5年","0851-37220375"]
[592,"紫云自治县","中共紫云苗族布依族自治县委",6001,"中共紫云苗族布依族自治县委党校","全额事业","01","专业技术人员","从事教学科研工作","综合管理类（A类）","——","600101",1,"研究生及以上","硕士及以上",null,null,"一级学科：社会学",null,null,"0851-35239308"]
[593,"紫云自治县","安顺市紫云自治县农业农村局",6002,"安顺市紫云自治县土肥站","全额事业","01","专业技术人员","从事土壤与肥料工作","综合管理类（A类）","——","600201",1,"本科及以上","学士及以上",null,"一级学科：植物生产类","一级学科:园艺学",null,"中共党员（含预备党员）","0851-35239308"]
[594,"紫云自治县","安顺市紫云自治县农业农村局",6003,"安顺市紫云自治县畜牧服务中心","全额事业","01","专业技术人员","负责畜牧服务中心财务日常工作","综合管理类（A类）","——","600301",1,"本科及以上","学士及以上",null,"二级学科：会计学、财务管理、财务会计","二级学科：会计学",null,"具有初级及以上会计专业技术资格","0851-35239308"]
[595,"紫云自治县","安顺市紫云自治县农业农村局",6004,"安顺市紫云自治县动物疫病预防控制中心","全额事业","01","专业技术人员","从事动物疫病防控、检疫工作","综合管理类（A类）","——","600401",1,"本科及以上","学士及以上",null,"一级学科：动物生产类、动物医学类","一级学科：畜牧学、兽医学",null,null,"0851-35239308"]
[596,"紫云自治县","安顺市紫云自治县自然资源局",6005,"安顺市紫云自治县坝羊镇国土资源管理所","全额事业","01","管理人员","从事自然资源保护和管理工作","综合管理类（A类）","——","600501",1,"本科及以上","学士及以上",null,"二级学科：土地资源管理、城市管理、人文地理与城乡规划、自然地理与资源环境、地理信息科学","一级学科：公共管理、地理学、城乡规划学",null,null,"0851-35239308"]
[597,"紫云自治县","安顺市紫云自治县自然资源局",6006,"安顺市紫云自治县白石岩乡国土资源管理所","全额事业","01","专业技术人员","从事自然资源保护和管理工作","综合管理类（A类）","——","600601",1,"本科及以上","学士及以上",null,"二级学科：土地资源管理、城市管理、人文地理与城乡规划、自然地理与资源环境、地理信息科学","一级学科：公共管理、地理学、城乡规划学",null,"限紫云县户籍（生源）","0851-35239308"]
[598,"紫云自治县","安顺市紫云自治县发展和改革局",6007,"安顺市紫云自治县粮油和物资储备服务中心","全额事业","01","管理人员","从事粮油和物资储备服务相关工作","综合管理类（A类）","——","600701",1,"本科及以上","学士及以上",null,"一级学科：经济学类",null,null,"限紫云县户籍（生源）","0851-35239308"]
[599,"紫云自治县","安顺市紫云自治县文体广电旅游局",6008,"安顺市紫云自治县亚鲁王文化研究中心","全额事业","01","专业技术人员","从事亚鲁王文化及《亚鲁王》苗族英雄史诗等非物质文化遗产的挖掘、传承、翻译、宣传、申报等工作，组织实施优秀民族文化和地域文化的传承普及工作;","综合管理类（A类）","——","600801",1,"本科及以上","学士及以上",null,"二级学科：音乐表演、舞蹈表演、舞蹈编导","一级学科：音乐与舞蹈学",null,"限紫云县户籍（生源）","0851-35239308","该岗位需到少数民族地区从事苗语沟通及苗族文献翻译整理等工作，建议苗族或苗语人员报考。"]
[600,"紫云自治县","安顺市紫云自治县卫生健康局",6009,"安顺市紫云自治县人民医院","差额事业","01","专业技术人员","从事临床诊疗工作","医疗卫生类（E类）","西医临床岗位","600901",1,"本科及以上","学士及以上",null,"二级学科：临床医学","一级学科：临床医学",null,"1.具有执业医师及以上专业技术资格证书；\n2.该岗位招聘人员需派驻基层服务。取得住院医师规范化培训合格证书后须到紫云自治县乡镇卫生院服务3年。","0851-35239308"]
[601,"紫云自治县","安顺市紫云自治县卫生健康局",6010,"安顺市紫云自治县板当镇卫生院","全额事业","01","专业技术人员","从事临床工作","医疗卫生类（E类）","西医临床岗位","601001",1,"本科及以上","学士及以上",null,"二级学科：临床医学","一级学科：临床医学",null,"需持有执业助理医师及以上资格证","0851-35239308"]
[602,"紫云自治县","安顺市紫云自治县卫生健康局",6011,"安顺市紫云自治县宗地镇卫生院","全额事业","01","专业技术人员","从事临床工作","医疗卫生类（E类）","西医临床岗位","601101",1,"大专及以上",null,"二级学科：临床医学","二级学科：临床医学","一级学科：临床医学",null,"1.限紫云县户籍(生源）\n2.具有执业助理医师及以上资格证，","0851-35239308"]
[603,"紫云自治县","安顺市紫云自治县卫生健康局",6011,"安顺市紫云自治县宗地镇卫生院","全额事业","02","专业技术人员","从事医学检验技术，负责院内各种检验项目的开展，包括血常规、生化、尿液等检验项目,为医生提供诊断和治疗依据","医疗卫生类（E类）","医学技术岗位","601102",1,"大专及以上",null,"二级学科：医学检验技术","二级学科：医学检验技术",null,null,"1.具有检验士及以上资格证；\n2.具有2年以上基层工作经历。","0851-35239308"]
[604,"紫云自治县","安顺市紫云自治县卫生健康局",6011,"安顺市紫云自治县宗地镇卫生院","全额事业","03","专业技术人员","从事医学影像技术，对医学学影像，设备的操作、图像的获取和处理、影像质量的控制、医疗影像的诊断和报告撰写等","医疗卫生类（E类）","医学技术岗位","601103",1,"大专及以上",null,"二级学科：医学影像技术","二级学科：医学影像技术",null,null,"要求有执业助理医师及以上资格证（执业范围为医学影像和放射治疗专业）","0851-35239308"]
[605,"紫云自治县","安顺市紫云自治县卫生健康局",6011,"安顺市紫云自治县宗地镇卫生院","全额事业","04","专业技术人员","从事公共卫生管理，负责慢性病防治、卫生监督、爱国卫生、健康教育、卫生应急等公共卫生工作的规划、实施、总结。","医疗卫生类（E类）","公共卫生管理岗位","601104",1,"大专及以上",null,"二级学科：公共卫生管理","二级学科：公共卫生管理",null,null,"1.具有病案信息技术士及以上资格证，\n2.具有2年以上基层工作经历。","0851-35239308"]
[606,"紫云自治县","安顺市紫云自治县卫生健康局",6011,"安顺市紫云自治县宗地镇卫生院","全额事业","05","专业技术人员","从事中医临床医生工作，做好中医文化宣传及中医科诊疗工作。","医疗卫生类（E类）","中医临床岗位","601105",1,"大专及以上",null,"二级学科：中医学","二级学科：中医学、针灸推拿学","一级学科：中医学",null,"1.限紫云县户籍（生源）；\n2.具有执业助理医师及以上资格证","0851-35239308"]
[607,"紫云自治县","安顺市紫云自治县卫生健康局",6012,"安顺市紫云自治县四大寨乡卫生院","全额事业","01","专业技术人员","从事临床相关工作","医疗卫生类（E类）","医学技术岗位",{"$f":"D611&G611","v":"601201"},1,"本科及以上","学士及以上",null,"二级学科：临床医学","一级学科：临床医学",null,"限紫云县户籍（生源）","0851-35239308"]
[608,"紫云自治县","安顺市紫云自治县卫生健康局",6012,"安顺市紫云自治县四大寨乡卫生院","全额事业","02","专业技术人员","从事临床相关工作","医疗卫生类（E类）","医学技术岗位","601202",1,"大专及以上",null,"二级学科：临床医学","二级学科：临床医学","二级学科：临床医学",null,"限紫云县户籍（生源）","0851-35239308"]
[609,"紫云自治县","安顺市紫云自治县卫生健康局",6012,"安顺市紫云自治县四大寨乡卫生院","全额事业","03","专业技术人员","从事护理工作","医疗卫生类（E类）","医学技术岗位","601203",1,"大专及以上",null,"二级学科：护理","二级学科：护理学","二级学科：护理学",null,"1.限紫云县户籍（生源）；\n2.具有护士及以上资格证。","0851-35239308"]
[610,"紫云自治县","安顺市紫云自治县司法局",6013,"贵州省紫云县公证处","全额事业","01","管理人员","从事公证员工作","综合管理类（A类）","——","601301",1,"本科及以上","学士及以上",null,"一级学科：法学类","一级学科：法学",null,"限紫云县户籍（生源）","0851-35239308"]
[611,"紫云自治县","安顺市紫云自治县林业局",6014,"安顺市紫云自治县国有浪风关林场","全额事业","01","专业技术人员","从事会计相关工作","综合管理类（A类）","——","601401",1,"本科及以上","学士及以上",null,"二级学科：会计学、会计电算化、财务管理",null,null,"限紫云县户籍（生源）","0851-35239308"]
[612,"紫云自治县","安顺市紫云自治县格凸河镇人民政府",6015,"安顺市紫云自治县格凸河镇科技宣教文化信息服务中心","全额事业","01","管理人员","办公室日常工作","综合管理类（A类）","——","601501",1,"本科及以上","学士及以上",{"$nulls":5},"0851-35239308"]
[613,"紫云自治县","安顺市紫云自治县格凸河镇人民政府",6016,"安顺市紫云自治县格凸河镇退役军人服务站","全额事业","01","管理人员","办公室日常工作","综合管理类（A类）","——","601601",1,"大专及以上",{"$nulls":5},"限紫云县户籍（生源）","0851-35239308"]
[614,"紫云自治县","安顺市紫云自治县猫营镇人民政府",6017,"安顺市紫云自治县猫营镇农业服务中心","全额事业","01","专业技术人员","从事农业服务工作","综合管理类（A类）","——","601701",1,"本科及以上","学士及以上",null,"学科门类：农学","学科门类：农学",null,"限紫云县户籍（生源）","0851-35239308"]
[615,"紫云自治县","安顺市紫云自治县猫营镇人民政府",6018,"安顺市紫云自治县猫营镇村镇建设管理站","全额事业","01","管理人员","从事办公室相关工作","综合管理类（A类）","——","601801",1,"本科及以上","学士及以上",null,"一级学科：建筑类","一级学科：建筑学",null,"限紫云县户籍（生源）","0851-35239308"]
[616,"紫云自治县","安顺市紫云自治县猫营镇人民政府",6019,"安顺市紫云自治县猫营镇财政所（财政分局）","全额事业","01","管理人员","从事办公室相关工作","综合管理类（A类）","——","601901",1,"本科及以上","学士及以上",null,"二级学科：会计学、财务会计、财务管理","二级学科：会计学",null,"限紫云县户籍（生源）","0851-35239308"]
[617,"紫云自治县","安顺市紫云自治县猫营镇人民政府",6020,"安顺市紫云自治县猫营镇政务服务中心","全额事业","01","管理人员","从事办公室相关工作","综合管理类（A类）","——","602001",1,"中专（技校、职高、高中）及以上",{"$nulls":4},"定向紫云自治县村干部","本单位最低服务年限5年","0851-35239308"]
[618,"紫云自治县","安顺市紫云自治县猫营镇人民政府",6021,"安顺市紫云自治县猫营镇乡村振兴工作站","全额事业","01","专业技术人员","从事办公室相关工作","综合管理类（A类）","——","602101",1,"本科及以上","学士及以上",{"$nulls":3},"定向2024年度毕业生","1.限紫云县户籍（生源）\n2.持有普通话二级甲等及以上证书","0851-35239308"]
[619,"紫云自治县","安顺市紫云自治县板当镇人民政府",6022,"安顺市紫云自治县板当镇圆梦服务中心","全额事业","01","管理人员","从事乡村振兴、项目工程管理等相关工作","综合管理类（A类）","——","602201",1,"本科及以上","学士及以上",null,"一级学科：管理科学与工程类",null,null,"限紫云县户籍（生源）","0851-35239308"]
[620,"紫云自治县","安顺市紫云自治县板当镇人民政府",6023,"安顺市紫云自治县板当镇科教宣传文化服务中心","全额事业","01","管理人员","从事乡村振兴文化振兴、宣传等相关工作","综合管理类（A类）","——","602301",1,"本科及以上","学士及以上",null,"一级学科：戏剧与影视学类",null,"定向2024年度毕业生","1.限紫云县户籍（生源）\n2.持有普通话二级甲等及以上证书","0851-35239308"]
[621,"紫云自治县","安顺市紫云自治县火花镇人民政府",6024,"安顺市紫云自治县火花镇农业服务中心","全额事业","01","专业技术人员","负责农业技术推广、农产品质量检测、农业相关项目统计等工作","综合管理类（A类）","——","602401",2,"本科及以上","学士及以上",null,"一级学科：统计学类",null,"定向2024年度毕业生",null,"0851-35239308"]
[622,"紫云自治县","安顺市紫云自治县火花镇人民政府",6025,"安顺市紫云自治县火花镇财政所（财政分局）","全额事业","01","管理人员","负责本级财政收入、支出的管理；编制财政预、决算方案；负责国有资产管理、乡财县管乡用日常管理和农民各种补贴的发放等工作；负责网上名称管理工作。","综合管理类（A类）","——","602501",1,"本科及以上","学士及以上",null,"二级学科：会计学、审计学、财务管理、会计与审计","二级学科：会计学",null,null,"0851-35239308"]
[623,"紫云自治县","安顺市紫云自治县火花镇人民政府",6026,"安顺市紫云自治县火花镇政务服务中心","全额事业","01","管理人员","负责相关行政许可职能和提供行政服务，负责政策咨询、统一受理、集中审批办证等政务服务工作；负责网上名称管理工作。","综合管理类（A类）","——","602601",1,"本科及以上","学士及以上",{"$nulls":5},"0851-35239308"]
[624,"紫云自治县","安顺市紫云自治县火花镇人民政府",6027,"安顺市紫云自治县火花镇达帮政务服务中心","全额事业","01","管理人员","负责区划调整后原达帮乡辖区相关行政许可职能和提供行政服务，负责政策咨询、统一受理、集中审批办证等政务服务工作；负责网上名称管理工作。","综合管理类（A类）","——","602701",1,"本科及以上","学士及以上",null,"一级学科：管理科学与工程类",null,null,"限紫云县户籍（生源）","0851-35239308"]
[625,"紫云自治县","安顺市紫云自治县宗地镇人民政府",6028,"安顺市紫云自治县财政局宗地镇分局","全额事业","01","管理人员","负责本级财政收入、支出的管理；编制财政预、决算方案；负责国有资产管理、乡财县管乡用日常管理和农民各种补贴的发放等工作","综合管理类（A类）","——","602801",1,"本科及以上","学士及以上",null,"二级学科：会计学、财务管理、审计学、财务会计","二级学科：会计学",null,"限紫云县户籍（生源）","0851-35239308"]
[626,"紫云自治县","安顺市紫云自治县宗地镇人民政府",6029,"安顺市紫云自治县宗地镇农业服务中心","全额事业","01","专业技术人员","负责农业相关项目统计工作","综合管理类（A类）","——","602901",1,"本科及以上","学士及以上",null,"一级学科：统计学类","二级学科：统计学",null,"限紫云县户籍（生源）","0851-35239308"]
[627,"紫云自治县","安顺市紫云自治县宗地镇人民政府",6030,"安顺市紫云自治县宗地镇林业和环境保护工作站","全额事业","01","管理人员","负责林业技术推广、试验、示范，退耕还林，林政管理，森林资源保护，林木多种经营技术服务和环境保护等工作","综合管理类（A类）","——","603001",1,"大专及以上",null,"学科门类：农林牧渔大类","学科门类：农学","学科门类：农学",null,"限紫云县户籍（生源）","0851-35239308"]
[628,"紫云自治县","安顺市紫云自治县宗地镇人民政府",6030,"安顺市紫云自治县宗地镇林业和环境保护工作站","全额事业","02","专业技术人员","负责林业技术推广、试验、示范，退耕还林，林政管理，森林资源保护，林木多种经营技术服务和环境保护等工作","综合管理类（A类）","——","603002",1,"大专及以上",null,"一级学科：农林管理类","学科门类：农学","学科门类：农学",null,"限紫云县户籍（生源）","0851-35239308"]
[629,"紫云自治县","安顺市紫云自治县宗地镇人民政府",6031,"安顺市紫云自治县宗地镇乡村振兴工作站","全额事业","01","专业技术人员","负责乡村振兴开发管理服务工作","综合管理类（A类）","——","603101",1,"本科及以上","学士及以上",null,"一级学科：管理科学与工程类\n二级学科：项目管理",null,null,"限紫云县户籍（生源）","0851-35239308"]
[630,"紫云自治县","安顺市紫云自治县宗地镇人民政府",6032,"安顺市紫云自治县宗地镇村镇建设管理站","全额事业","01","管理人员","负责国土资源管理、村庄和集镇建设管理等服务性工作；负责土地登记、房屋登记、林地登记、草原登记等不动产登记相关工作","综合管理类（A类）","——","603201",1,"本科及以上","学士及以上",null,"一级学科：建筑类；\n二级学科：人文地理与城乡规划","一级学科：建筑学、城乡规划学",null,"限紫云县户籍（生源）","0851-35239308"]
[631,"紫云自治县","安顺市紫云自治县坝羊镇人民政府",6033,"安顺市紫云自治县坝羊镇人力资源与社会保障服务中心","全额事业","01","管理人员","从事乡镇人力资源与社会保障服务中心工作","综合管理类（A类）","——","603301",1,"本科及以上","学士及以上",null,"二级学科：人力资源管理、劳动与社会保障、公共关系学",null,null,"限紫云县户籍（生源）","0851-35239308"]
[632,"紫云自治县","安顺市紫云自治县坝羊镇人民政府",6034,"安顺市紫云自治县坝羊镇财政所","全额事业","01","管理人员","从事乡镇财政工作","综合管理类（A类）","——","603401",1,"本科及以上","学士及以上",null,"二级学科：会计学、财务管理、财务会计","二级级学科：会计学",null,null,"0851-35239308"]
[633,"紫云自治县","安顺市紫云自治县坝羊镇人民政府",6035,"安顺市紫云自治县坝羊镇政务服务中心","全额事业","01","管理人员","从事乡镇政务服务工作","综合管理类（A类）","——","603501",1,"本科及以上","学士及以上",null,"一级学科：工商管理类",{"$nulls":3},"0851-35239308"]
[634,"紫云自治县","安顺市紫云自治县坝羊镇人民政府",6035,"安顺市紫云自治县坝羊镇政务服务中心","全额事业","02","管理人员","从事乡镇政务服务工作","综合管理类（A类）","——","603502",1,"本科及以上","学士及以上",{"$nulls":3},"定向紫云自治县“基层服务项目人员”",null,"0851-35239308"]
[635,"紫云自治县","安顺市紫云自治县坝羊镇人民政府",6036,"安顺市紫云自治县坝羊镇水利和移民工作站","全额事业","01","专业技术人员","从事乡镇水利工作","综合管理类（A类）","——","603601",1,"本科及以上","学士及以上",null,"一级学科：土木类",{"$nulls":3},"0851-35239308"]
[636,"紫云自治县","安顺市紫云自治县大营镇人民政府",6037,"安顺市紫云自治县大营镇人力资源和社会保障服务中心","全额事业","01","管理人员","从事人力资源社会保障的辅助性工作","综合管理类（A类）","——","603701",1,"大专及以上",null,"二级学科：人力资源管理、劳动与社会保障、行政管理","二级学科：人力资源管理、劳动与社会保障、行政管理",null,null,"限紫云县户籍（生源）","0851-35239308"]
[637,"紫云自治县","安顺市紫云自治县大营镇人民政府",6038,"安顺市紫云自治县大营镇林业和环境保护工作站","全额事业","01","专业技术人员","从事林业技术推广、试验、示范、退耕还林工作","综合管理类（A类）","——","603801",1,"大专及以上",null,"二级学科：林业技术、园林技术、森林资源保护","一级学科：林学类、自然保护与环境生态类",null,null,"限紫云县户籍（生源）","0851-35239308"]
[638,"紫云自治县","安顺市紫云自治县大营镇人民政府",6039,"安顺市紫云自治县大营镇财政分局","全额事业","01","管理人员","从事本级财政收入、支出的管理等工作","综合管理类（A类）","——","603901",1,"大专及以上",null,"二级学科：财务管理、财务信息管理、会计、会计与统计核算、会计与审计","二级学科：会计学、财务管理、审计学、财务会计",null,null,"限紫云县户籍（生源）","0851-35239308"]
[639,"紫云自治县","安顺市紫云自治县大营镇人民政府",6039,"安顺市紫云自治县大营镇财政分局","全额事业","02","管理人员","从事本级财政收入、支出的管理等工作","综合管理类（A类）","——","603902",1,"大专及以上",{"$nulls":4},"定向紫云自治县“基层服务项目人员”；退役大学生士兵或驻安部队现役军人符合条件的六类随军家属",null,"0851-35239308"]
[640,"紫云自治县","安顺市紫云自治县大营镇人民政府",6040,"安顺市紫云自治县大营镇农业服务中心","全额事业","01","专业技术人员","负责农业技术推广、农机推广、畜牧兽医、农用物资、农产品质量检测、乡镇企业管理等服务性工作；负责网上名称管理工作","综合管理类（A类）","——","604001",1,"大专及以上",null,"一级学科：农林管理类","一级学科：植物生产类",null,null,"限紫云县户籍（生源）","0851-35239308"]
[641,"紫云自治县","安顺市紫云自治县白石岩乡人民政府",6041,"安顺市紫云自治县白石岩乡农业服务中心","全额事业","01","管理人员","负责农业技术推广、农机推广、畜牧兽医、农用物资、农产品质量检测、乡镇企业管理等服务性工作；负责网上名称管理工作。","综合管理类（A类）","——","604101",1,"大专及以上",{"$nulls":6},"0851-35239308"]
[642,"紫云自治县","安顺市紫云自治县白石岩乡人民政府",6042,"安顺市紫云自治县白石岩乡政务服务中心","全额事业","01","管理人员","负责相关行政许可职能和提供行政服务，负责政策咨询、统一受理、集中审批办证等政务服务工作；负责网上名称管理工作。","综合管理类（A类）","——","604201",1,"大专及以上",{"$nulls":5},"中共党员（含预备党员）","0851-35239308"]
[643,"紫云自治县","安顺市紫云自治县白石岩乡人民政府",6043,"安顺市紫云自治县白石岩乡财政所（财政分局）","全额事业","01","管理人员","负责本级财政收入、支出的管理；编制财政预、决算方案；负责国有资产管理、乡财县管乡用日常管理和农民各种补贴的发放等工作；负责网上名称管理工作。","综合管理类（A类）","——","604301",1,"大专及以上",null,"二级学科：财务管理、财务信息管理、会计","二级学科：会计学、财务管理、财务会计、审计学",null,null,"限紫云县户籍（生源）","0851-35239308"]
[644,"紫云自治县","安顺市紫云自治县四大寨乡人民政府",6044,"安顺市紫云自治县四大寨乡人力资源和社会保障服务中心","全额事业","01","管理人员","从事人力资源和社会保障服务等工作","综合管理类（A类）","——","604401",1,"本科及以上","学士及以上",{"$nulls":3},"定向紫云自治县“基层服务项目人员”；退役大学生士兵或驻安部队现役军人符合条件的六类随军家属",null,"0851-35239308"]
[645,"紫云自治县","安顺市紫云自治县四大寨乡人民政府",6045,"安顺市紫云自治县四大寨乡政务服务中心","全额事业","01","管理人员","从事政务服务等工作","综合管理类（A类）","——","604501",1,"本科及以上","学士及以上",{"$nulls":4},"限紫云县户籍（生源）","0851-35239308"]
[646,"紫云自治县","安顺市紫云自治县教育和科技局",6046,"安顺市紫云自治县民族中等职业学校","全额事业","01","专业技术人员","从事中职学校计算机教学工作。","中小学教师类（D类）","中学教师岗位","604601",1,"本科及以上","学士及以上",null,"一级学科：计算机类","一级学科：计算机科学与技术",null,"需持有高中或中职信息技术教师资格证","0851-35239308"]
[647,"紫云自治县","安顺市紫云自治县教育和科技局",6046,"安顺市紫云自治县民族中等职业学校","全额事业","02","专业技术人员","从事中职学校机电技术教学工作。","中小学教师类（D类）","中学教师岗位","604602",1,"本科及以上","学士及以上",null,"二级学科：电气工程及其自动化、电气工程与智能控制、电机电器智能化、机电技术教育","二级学科：电机与电器、电力电子与电力传动",null,null,"0851-35239308"]
[648,"紫云自治县","安顺市紫云自治县教育和科技局",6046,"安顺市紫云自治县民族中等职业学校","全额事业","03","专业技术人员","从事中职学校建筑装饰与设计教学工作。","中小学教师类（D类）","中学教师岗位","604603",1,"本科及以上","学士及以上",null,"一级学科：建筑类、设计学类","二级学科：建筑设计及其理论、建筑技术科学",null,null,"0851-35239308"]
[649,"紫云自治县","安顺市紫云自治县教育和科技局",6046,"安顺市紫云自治县民族中等职业学校","全额事业","04","专业技术人员","从事中职学校汽车修理教学工作。","中小学教师类（D类）","中学教师岗位","604604",1,"本科及以上","学士及以上",null,"二级学科：车辆工程、\n汽车维修工程教育","二级学科：车辆工程",null,null,"0851-35239308"]
[650,"紫云自治县","安顺市紫云自治县教育和科技局",6046,"安顺市紫云自治县民族中等职业学校","全额事业","05","专业技术人员","从事中职学校电子商务教学工作。","中小学教师类（D类）","中学教师岗位",{"$f":"D654&G654","v":"604605"},1,"本科及以上","学士及以上",null,"一级学科：电子商务类","二级学科：国民经济学、区域经济学、产业经济学、劳动经济学",null,null,"0851-35239308"]
[651,"紫云自治县","安顺市紫云自治县教育和科技局",6046,"安顺市紫云自治县民族中等职业学校","全额事业","06","专业技术人员","从事中职学校英语教学工作。","中小学教师类（D类）","中学教师岗位","604606",1,"本科及以上","学士及以上",null,"二级学科：英语、\n商务英语","二级学科：学科教学（英语）、英语语言文学",null,"具有高中或中职英语教师资格证","0851-35239308"]
[652,"紫云自治县","安顺市紫云自治县教育和科技局",6046,"安顺市紫云自治县民族中等职业学校","全额事业","07","专业技术人员","从事中职学校心理教学工作。","中小学教师类（D类）","中学教师岗位","604607",1,"本科及以上","学士及以上",null,"一级学科：心理学类","一级学科：心理学",null,"具有高中或中职心理健康教师资格证","0851-35239308"]
[653,"紫云自治县","安顺市紫云自治县教育和科技局",6047,"安顺市紫云自治县第一中学","全额事业","01","专业技术人员","从事初中语文教学工作","中小学教师类（D类）","中学教师岗位","604701",1,"本科及以上","学士及以上",null,"一级学科：中国语言文学类","一级学科：中国语言文学二级学科：学科教学（语文）",null,"具有初中及以上语文教师资格证","0851-35239308"]
[654,"紫云自治县","安顺市紫云自治县教育和科技局",6047,"安顺市紫云自治县第一中学","全额事业","02","专业技术人员","从事初中数学教学工作","中小学教师类（D类）","中学教师岗位","604702",1,"本科及以上","学士及以上",null,"一级学科：数学类","一级学科：数学\n二级学科：学科教学（数学）",null,"具有初中及以上数学教师资格证","0851-35239308"]
[655,"紫云自治县","安顺市紫云自治县教育和科技局",6047,"安顺市紫云自治县第一中学","全额事业","03","专业技术人员","从事初中英语教学工作","中小学教师类（D类）","中学教师岗位","604703",1,"本科及以上","学士及以上",null,"二级学科：英语、商务英语","二级学科：学科教学（英语）、英语语言文学",null,"具有初中及以上英语教师资格证","0851-35239308"]
[656,"紫云自治县","安顺市紫云自治县教育和科技局",6047,"安顺市紫云自治县第一中学","全额事业","04","专业技术人员","从事初中道德与法治教学工作","中小学教师类（D类）","中学教师岗位","604704",1,"本科及以上","学士及以上",null,"一级学科：马克思主义理论类","一级学科：政治学\n二级学科：学科教学（思政）",null,"1.中共党员（含预备党员）\n2.具有初中及以上道德与法治教师资格证","0851-35239308"]
[657,"紫云自治县","安顺市紫云自治县教育和科技局",6047,"安顺市紫云自治县第一中学","全额事业","05","专业技术人员","从事初中历史教学工作","中小学教师类（D类）","中学教师岗位","604705",1,"本科及以上","学士及以上",null,"一级学科：历史学类","一级学科：中国史、世界史\n二级学科：学科教师（历史）",null,"具有初中及以上历史教师资格证","0851-35239308"]
[658,"紫云自治县","安顺市紫云自治县教育和科技局",6047,"安顺市紫云自治县第一中学","全额事业","06","专业技术人员","从事初中物理教学工作","中小学教师类（D类）","中学教师岗位","604706",1,"本科及以上","学士及以上",null,"一级学科：物理学类","一级学科：物理学\n二级学科：学科教学（物理）",null,"具有初中及以上物理教师资格证","0851-35239308"]
[659,"紫云自治县","安顺市紫云自治县教育和科技局",6047,"安顺市紫云自治县第一中学","全额事业","07","专业技术人员","从事初中化学教学工作","中小学教师类（D类）","中学教师岗位","604707",1,"本科及以上","学士及以上",null,"一级学科：化学类","一级学科：化学\n二级学科：学科教学（化学）",null,"具有初中及以上化学教师资格证","0851-35239308"]
[660,"紫云自治县","安顺市紫云自治县教育和科技局",6047,"安顺市紫云自治县第一中学","全额事业","08","专业技术人员","从事初中生物教学工作","中小学教师类（D类）","中学教师岗位","604708",1,"本科及以上","学士及以上",null,"一级学科：生物科学类","一级学科：生物学\n二级学科：学科教学（生物）",null,"具有初中及以上生物教师资格证","0851-35239308"]
[661,"紫云自治县","安顺市紫云自治县教育和科技局",6047,"安顺市紫云自治县第一中学","全额事业","09","专业技术人员","从事初中地理教学工作","中小学教师类（D类）","中学教师岗位","604709",1,"本科及以上","学士及以上",null,"一级学科：地理科学类","一级学科：地理学\n二级学科：学科教学（地理）",null,"具有初中及以上地理教师资格证","0851-35239308"]
[662,"紫云自治县","安顺市紫云自治县教育和科技局",6047,"安顺市紫云自治县第一中学","全额事业","10","专业技术人员","从事初中音乐教学工作","中小学教师类（D类）","中学教师岗位","604710",1,"本科及以上","学士及以上",null,"一级学科：音乐与舞蹈学类","一级学科：音乐与舞蹈学二级学科：学科教学（音乐）",null,"具有初中及以上音乐教师资格证","0851-35239308"]
[663,"紫云自治县","安顺市紫云自治县教育和科技局",6047,"安顺市紫云自治县第一中学","全额事业","11","专业技术人员","从事初中美术教学工作","中小学教师类（D类）","中学教师岗位","604711",1,"本科及以上","学士及以上",null,"一级学科：美术学类","一级学科：美术学\n二级学科：学科教学（美术）",null,"具有初中及以上美术教师资格证","0851-35239308"]
[664,"紫云自治县","安顺市紫云自治县教育和科技局",6048,"安顺市紫云自治县第二中学","全额事业","01","专业技术人员","从事初中语文教学工作","中小学教师类（D类）","中学教师岗位","604801",1,"本科及以上","学士及以上",null,"一级学科：中国语言文学类","一级学科：中国语言文学二级学科：学科教学（语文）",null,"具有初中及以上语文教师资格证","0851-35239308"]
[665,"紫云自治县","安顺市紫云自治县教育和科技局",6048,"安顺市紫云自治县第二中学","全额事业","02","专业技术人员","从事初中数学教学工作","中小学教师类（D类）","中学教师岗位","604802",1,"本科及以上","学士及以上",null,"一级学科：数学类","一级学科：数学\n二级学科：学科教学（数学）",null,"具有初中及以上数学教师资格证","0851-35239308"]
[666,"紫云自治县","安顺市紫云自治县教育和科技局",6048,"安顺市紫云自治县第二中学","全额事业","03","专业技术人员","从事初中英语教学工作","中小学教师类（D类）","中学教师岗位","604803",1,"本科及以上","学士及以上",null,"二级学科：英语、商务英语","二级学科：英语语言文学、学科教学（英语）",null,"具有初中及以上英语教师资格证","0851-35239308"]
[667,"紫云自治县","安顺市紫云自治县教育和科技局",6048,"安顺市紫云自治县第二中学","全额事业","04","专业技术人员","从事初中物理教学工作","中小学教师类（D类）","中学教师岗位","604804",1,"本科及以上","学士及以上",null,"一级学科：物理学类","一级学科：物理学\n二级学科：学科教学（物理）",null,"具有初中及以上物理教师资格证","0851-35239308"]
[668,"紫云自治县","安顺市紫云自治县教育和科技局",6048,"安顺市紫云自治县第二中学","全额事业","05","专业技术人员","从事初中化学教学工作","中小学教师类（D类）","中学教师岗位","604805",1,"本科及以上","学士及以上",null,"一级学科：化学类","一级学科;化学\n二级学科：学科教学（化学）",null,"具有初中及以上化学教师资格证","0851-35239308"]
[669,"紫云自治县","安顺市紫云自治县教育和科技局",6048,"安顺市紫云自治县第二中学","全额事业","06","专业技术人员","从事初中地理教学工作","中小学教师类（D类）","中学教师岗位","604806",1,"本科及以上","学士及以上",null,"一级学科：地理科学类","一级学科:地理学\n二级学科：学科教学（地理）",null,"具有初中及以上地理教师资格证","0851-35239308"]
[670,"紫云自治县","安顺市紫云自治县教育和科技局",6048,"安顺市紫云自治县第二中学","全额事业","07","专业技术人员","从事初中生物教学工作","中小学教师类（D类）","中学教师岗位","604807",1,"本科及以上","学士及以上",null,"一级学科：生物科学类","一级学科:生物学\n二级学科：学科教学（生物）",null,"具有初中及以上生物教师资格证","0851-35239308"]
[671,"紫云自治县","安顺市紫云自治县教育和科技局",6048,"安顺市紫云自治县第二中学","全额事业","08","专业技术人员","从事初中历史教学工作","中小学教师类（D类）","中学教师岗位","604808",1,"本科及以上","学士及以上",null,"一级学科：历史学类","一级学科:中国史、世界史\n二级学科：学科教师（历史）",null,"具有初中及以上历史教师资格证","0851-35239308"]
[672,"紫云自治县","安顺市紫云自治县教育和科技局",6048,"安顺市紫云自治县第二中学","全额事业","09","专业技术人员","从事初中体育教学工作","中小学教师类（D类）","中学教师岗位","604809",1,"本科及以上","学士及以上",null,"一级学科：体育学类","一级学科:体育学\n二级学科：学科教学（体育）",null,"具有初中及以上体育教师资格证","0851-35239308"]
[673,"紫云自治县","安顺市紫云自治县教育和科技局",6048,"安顺市紫云自治县第二中学","全额事业","10","专业技术人员","从事初中音乐教学工作","中小学教师类（D类）","中学教师岗位","604810",1,"本科及以上","学士及以上",null,"一级学科：音乐与舞蹈学类","一级学科:音乐与舞蹈学二级学科：学科教学（音乐）",null,"具有初中及以上音乐教师资格证","0851-35239308"]
[674,"紫云自治县","安顺市紫云自治县教育和科技局",6048,"安顺市紫云自治县第二中学","全额事业","11","专业技术人员","从事初中信息技术教学工作","中小学教师类（D类）","中学教师岗位","604811",1,"本科及以上","学士及以上",null,"一级学科：计算机类","一级学科：计算机科学与技术",null,"具有初中及以上信息技术教师资格证","0851-35239308"]
[675,"紫云自治县","安顺市紫云自治县教育和科技局",6048,"安顺市紫云自治县第二中学","全额事业","12","专业技术人员","从事初中道德与法治教学工作","中小学教师类（D类）","中学教师岗位","604812",1,"本科及以上","学士及以上",null,"一级学科：马克思主义理论类","一级学科：政治学\n二级学科：学科教学（思政）",null,"1.中共党员（含预备党员）\n2.具有初中及以上道德与法治教师资格证","0851-35239308"]
[676,"紫云自治县","安顺市紫云自治县教育和科技局",6048,"安顺市紫云自治县第二中学","全额事业","13","专业技术人员","从事初中舞蹈教学工作","中小学教师类（D类）","中学教师岗位","604813",1,"本科及以上","学士及以上",null,"二级学科：舞蹈表演、舞蹈学、舞蹈编导","二级学科：舞蹈学",null,"具有初中及以上教师资格证","0851-35239308"]
[677,"紫云自治县","安顺市紫云自治县教育和科技局",6049,"安顺市紫云自治县第三中学","全额事业","01","专业技术人员","从事初中英语教学工作","中小学教师类（D类）","中学教师岗位","604901",2,"本科及以上","学士及以上",null,"二级学科：英语、商务英语","二级学科：英语语言文学、学科教学（英语）",null,"具有初中及以上英语教师资格证","0851-35239308"]
[678,"紫云自治县","安顺市紫云自治县教育和科技局",6049,"安顺市紫云自治县第三中学","全额事业","02","专业技术人员","从事初中物理教学工作","中小学教师类（D类）","中学教师岗位","604902",1,"本科及以上","学士及以上",null,"一级学科：物理学类","一级学科：物理学\n二级学科：学科教学（物理）",null,"具有初中及以上物理教师资格证","0851-35239308"]
[679,"紫云自治县","安顺市紫云自治县教育和科技局",6049,"安顺市紫云自治县第三中学","全额事业","03","专业技术人员","从事初中数学教学工作","中小学教师类（D类）","中学教师岗位","604903",1,"本科及以上","学士及以上",null,"一级学科：数学类","一级学科：数学\n二级学科：学科教学（数学）",null,"具有初中及以上数学教师资格证","0851-35239308"]
[680,"紫云自治县","安顺市紫云自治县教育和科技局",6049,"安顺市紫云自治县第三中学","全额事业","04","专业技术人员","从事初中地理教学工作","中小学教师类（D类）","中学教师岗位","604904",1,"本科及以上","学士及以上",null,"一级学科：地理科学类","一级学科：地理学\n二级学科：学科教学（地理）",null,"具有初中及以上地理教师资格证","0851-35239308"]
[681,"紫云自治县","安顺市紫云自治县教育和科技局",6049,"安顺市紫云自治县第三中学","全额事业","05","专业技术人员","从事初中语文教学工作","中小学教师类（D类）","中学教师岗位","604905",1,"本科及以上","学士及以上",null,"一级学科：中国语言文学类","一级学科：中国语言文学二级学科：学科教学（语文）",null,"具有初中及以上语文教师资格证","0851-35239308"]
[682,"紫云自治县","安顺市紫云自治县教育和科技局",6050,"安顺市紫云自治县第一小学","全额事业","01","专业技术人员","从事小学语文教学工作","中小学教师类（D类）","小学教师岗位","605001",1,"本科及以上","学士及以上",null,"一级学科：中国语言文学类二级学科：小学教育","一级学科：中国语言文学二级学科：学科教学（语文）",null,"具有小学及以上语文教师资格证","0851-35239308"]
[683,"紫云自治县","安顺市紫云自治县教育和科技局",6050,"安顺市紫云自治县第一小学","全额事业","02","专业技术人员","从事小学数学教学工作","中小学教师类（D类）","小学教师岗位","605002",1,"本科及以上","学士及以上",null,"一级学科：数学类\n二级学科：小学教育","一级学科：数学\n二级学科：学科教学（数学）",null,"具有小学及以上数学教师资格证","0851-35239308"]
[684,"紫云自治县","安顺市紫云自治县教育和科技局",6050,"安顺市紫云自治县第一小学","全额事业","03","专业技术人员","从事小学科学教学工作","中小学教师类（D类）","小学教师岗位","605003",1,"本科及以上","学士及以上",null,"一级学科：物理学类、化学类、生物科学类\n二级学科：科学教育","一级学科：物理学、化学、生物学\n二级学科：课程与教学论",null,"具有小学科学教师资格证或初中及以上物理、生物、化学教师资格证","0851-35239308"]
[685,"紫云自治县","安顺市紫云自治县教育和科技局",6051,"安顺市紫云自治县第二小学","全额事业","01","专业技术人员","从事小学数学教学工作","中小学教师类（D类）","小学教师岗位","605101",1,"本科及以上","学士及以上",null,"一级学科：数学类\n二级学科：小学教育","一级学科：数学\n二级学科：学科教学（数学）",null,"具有小学及以上数学教师资格证","0851-35239308"]
[686,"紫云自治县","安顺市紫云自治县教育和科技局",6051,"安顺市紫云自治县第二小学","全额事业","02","专业技术人员","从事小学语文教学工作","中小学教师类（D类）","小学教师岗位","605102",1,"本科及以上","学士及以上",null,"一级学科：中国语言文学类\n二级学科：小学教育","一级学科：中国语言文学\n二级学科：学科教学（语文）",null,"具有小学及以上语文教师资格证","0851-35239308"]
[687,"紫云自治县","安顺市紫云自治县教育和科技局",6052,"安顺市紫云自治县第三小学","全额事业","01","专业技术人员","从事小学科学教学工作","中小学教师类（D类）","小学教师岗位","605201",1,"本科及以上","学士及以上",null,"一级学科：物理学类、化学类、生物科学类\n二级学科：科学教育","一级学科：物理学、化学、生物学\n二级学科：课程与教学论",null,"具有小学科学教师资格证或初中及以上物理、生物、化学教师资格证","0851-35239308"]
[688,"紫云自治县","安顺市紫云自治县教育和科技局",6052,"安顺市紫云自治县第三小学","全额事业","02","专业技术人员","从事小学英语教学工作","中小学教师类（D类）","小学教师岗位","605202",1,"本科及以上","学士及以上",null,"二级学科：英语、商务英语","二级学科：英语语言文学、学科教学（英语）",null,"具有小学及以上英语教师资格证","0851-35239308"]
[689,"紫云自治县","安顺市紫云自治县教育和科技局",6053,"安顺市紫云自治县第四小学","全额事业","01","专业技术人员","从事小学数学教学工作","中小学教师类（D类）","小学教师岗位","605301",1,"本科及以上","学士及以上",null,"一级学科：数学类\n二级学科：小学教育","一级学科：数学\n二级学科：学科教学（数学）",null,"具有小学及以上数学教师资格证","0851-35239308"]
[690,"紫云自治县","安顺市紫云自治县教育和科技局",6053,"安顺市紫云自治县第四小学","全额事业","02","专业技术人员","从事小学英语教学工作","中小学教师类（D类）","小学教师岗位","605302",1,"本科及以上","学士及以上",null,"二级学科：英语、商务英语","二级学科：英语语言文学、学科教学（英语）",null,"具有小学及以上英语教师资格证","0851-35239308"]
[691,"紫云自治县","安顺市紫云自治县教育和科技局",6053,"安顺市紫云自治县第四小学","全额事业","03","专业技术人员","从事小学语文教学工作","中小学教师类（D类）","小学教师岗位","605303",1,"本科及以上","学士及以上",null,"一级学科：中国语言文学类二级学科：小学教育","一级学科：中国语言文学二级学科：学科教学（语文）",null,"具有小学及以上语文教师资格证","0851-35239308"]
[692,"紫云自治县","安顺市紫云自治县教育和科技局",6054,"安顺市紫云自治县第五小学","全额事业","01","专业技术人员","从事小学数学教学工作","中小学教师类（D类）","小学教师岗位","605401",1,"本科及以上","学士及以上",null,"一级学科：数学类\n二级学科：小学教育","一级学科：数学\n二级学科：学科教学（数学）",null,"具有小学及以上数学教师资格证","0851-35239308"]
[693,"紫云自治县","安顺市紫云自治县教育和科技局",6054,"安顺市紫云自治县第五小学","全额事业","02","专业技术人员","从事小学音乐教学工作","中小学教师类（D类）","小学教师岗位","605402",1,"本科及以上","学士及以上",null,"一级学科：音乐与舞蹈学类","一级学科：音乐与舞蹈学二级学科：学科教学（音乐）",null,"具有小学及以上音乐教师资格证","0851-35239308"]
[694,"紫云自治县","安顺市紫云自治县教育和科技局",6055,"安顺市紫云自治县第六小学","全额事业","01","专业技术人员","从事小学数学教学工作","中小学教师类（D类）","小学教师岗位","605501",1,"本科及以上","学士及以上",null,"一级学科：数学类\n二级学科：小学教育","一级学科：数学\n二级学科：学科教学（数学）",null,"具有小学及以上数学教师资格证","0851-35239308"]
[695,"紫云自治县","安顺市紫云自治县教育和科技局",6055,"安顺市紫云自治县第六小学","全额事业","02","专业技术人员","从事小学英语教学工作","中小学教师类（D类）","小学教师岗位","605502",1,"本科及以上","学士及以上",null,"二级学科：英语、商务英语","二级学科：英语语言文学、学科教学（英语）",null,"具有小学及以上英语教师资格证","0851-35239308"]
[696,"紫云自治县","安顺市紫云自治县教育和科技局",6055,"安顺市紫云自治县第六小学","全额事业","03","专业技术人员","从事小学语文教学工作","中小学教师类（D类）","小学教师岗位","605503",1,"本科及以上","学士及以上",null,"一级学科：中国语言文学类二级学科：小学教育","一级学科：中国语言文学二级学科：学科教学（语文）",null,"具有小学及以上语文教师资格证","0851-35239308"]
[697,"紫云自治县","安顺市紫云自治县教育和科技局",6056,"安顺市紫云自治县第一幼儿园","全额事业","01","专业技术人员","从事幼儿园学前教育教学工作","中小学教师类（D类）","小学教师岗位","605601",1,"大专及以上",null,"二级学科：学前教育","二级学科：学前教育","二级学科：学前教育学",null,"1.限紫云县户籍（生源）;\n2具有学前教育学科教师资格证。","0851-35239308"]
[698,"紫云自治县","安顺市紫云自治县教育和科技局",6057,"安顺市紫云自治县第二幼儿园","全额事业","01","专业技术人员","从事幼儿园学前教育教学工作","中小学教师类（D类）","小学教师岗位","605701",1,"大专及以上",null,"二级学科：学前教育","二级学科：学前教育","二级学科：学前教育学",null,"1.限紫云县户籍（生源）；\n2.具有学前教育学科教师资格证","0851-35239308"]
[699,"紫云自治县","安顺市紫云自治县教育和科技局",6058,"安顺市紫云自治县第四幼儿园","全额事业","01","专业技术人员","从事幼儿园学前教育教学工作","中小学教师类（D类）","小学教师岗位","605801",1,"大专及以上",null,"二级学科：学前教育","二级学科：学前教育","二级学科：学前教育学",null,"1.限紫云县户籍（生源）；\n2.具有学前教育学科教师资格证","0851-35239308"]
[700,"安顺经济技术开发区","安顺经济技术开发区西航办事处",7001,"西航办事处财政所","全额事业","01","管理人员","从事财务工作","综合管理类（A类）","——","700101",3,"本科及以上","学士及以上",null,"一级学科：财政学类、经济与贸易类\n二级学科：会计学、财务管理",null,null,"具有初级及以上会计专业技术资格证书","0851—33416900"]
[701,"安顺经济技术开发区","安顺经济技术开发区宋旗镇",7002,"宋旗镇村镇建设管理站","全额事业","01","专业技术人员","从事财务工作","综合管理类（A类）","——","700201",1,"本科及以上","学士及以上",null,"一级学科：财政学类、经济与贸易类；\n二级学科：会计学、财务管理",null,null,"具有初级及以上会计专业技术资格证书","0851—33416900"]
[702,"安顺经济技术开发区","安顺经济技术开发区幺铺镇",7003,"幺铺镇村镇建设管理站","全额事业","01","专业技术人员","从事村镇建设管理相关工作","综合管理类（A类）","——","700301",1,"本科及以上","学士及以上",{"$nulls":3},"定向安顺市“基层项目服务人员”","本单位最低服务年限5年","0851—33416900"]
[703,"安顺经济技术开发区","安顺经济技术开发区教育局",7004,"安顺市实验学校经济技术开发区分校","全额事业","01","专业技术人员","从事小学语文教学工作","中小学教师类（D类）","小学教师岗位","700401",2,"本科及以上","学士及以上",null,"二级学科：汉语言文学、小学教育","一级学科：中国语言文学\n二级学科：小学教育、学科教学（语文）",null,"1.具有小学及以上语文学科教师资格证；\n2.具有二级甲等及以上普通话等级证书。\n","0851—33416900"]
[704,"安顺经济技术开发区","安顺经济技术开发区教育局",7004,"安顺市实验学校经济技术开发区分校","全额事业","02","专业技术人员","从事小学数学教学工作","中小学教师类（D类）","小学教师岗位","700402",2,"本科及以上","学士及以上",null,"二级学科：数学与应用数学、小学教育","一级学科：数学\n二级学科：小学教育、学科教学（数学）",null,"1.具有小学及以上数学学科教师资格证；\n2.具有二级乙等及以上普通话等级证书。","0851—33416900"]
[705,"安顺经济技术开发区","安顺经济技术开发区教育局",7004,"安顺市实验学校经济技术开发区分校","全额事业","03","专业技术人员","从事小学英语教学工作","中小学教师类（D类）","小学教师岗位","700403",1,"本科及以上","学士及以上",null,"二级学科：英语","二级学科：英语语言文学、学科教学（英语）",null,"1.具有小学及以上英语学科教师资格证；\n2.取得英语专业四级或英语专业八级证书；\n3.具有二级乙等及以上普通话等级证书。","0851—33416900"]
[706,"安顺经济技术开发区","安顺经济技术开发区教育局",7005,"安顺经济技术开发区双阳小学","全额事业","01","专业技术人员","从事小学英语教学工作","中小学教师类（D类）","小学教师岗位","700501",1,"本科及以上","学士及以上",null,"二级学科：英语","二级学科：英语语言文学、学科教学（英语）",null,"1.具有小学及以上英语学科教师资格证；\n2.取得英语专业四级或英语专业八级证书；\n3.具有二级乙等及以上普通话等级证书。","0851—33416900"]
[707,"安顺经济技术开发区","安顺经济技术开发区教育局",7005,"安顺经济技术开发区双阳小学","全额事业","02","专业技术人员","从事小学语文教学工作","中小学教师类（D类）","小学教师岗位","700502",2,"本科及以上","学士及以上",null,"二级学科：汉语言文学、小学教育","一级学科：中国语言文学\n二级学科：小学教育、学科教学（语文）","定向2024年度毕业生","1.具有小学及以上语文学科教师资格证；\n2.具有二级甲等及以上普通话等级证书。","0851—33416900"]
[708,"安顺经济技术开发区","安顺经济技术开发区教育局",7005,"安顺经济技术开发区双阳小学","全额事业","03","专业技术人员","从事小学语文教学工作","中小学教师类（D类）","小学教师岗位","700503",2,"本科及以上","学士及以上",null,"二级学科：汉语言文学、小学教育","一级学科：中国语言文学\n二级学科：小学教育、学科教学（语文）",null,"1.具有小学及以上语文学科教师资格证；\n2.具有二级甲等及以上普通话等级证书。","0851—33416900"]
[709,"安顺经济技术开发区","安顺经济技术开发区教育局",7005,"安顺经济技术开发区双阳小学","全额事业","04","专业技术人员","从事小学数学教学工作","中小学教师类（D类）","小学教师岗位","700504",1,"本科及以上","学士及以上",null,"二级学科：数学与应用数学、小学教育","一级学科：数学\n二级学科：小学教育、学科教学（数学）",null,"1.具有小学及以上数学学科教师资格证；\n2.具有二级乙等及以上普通话等级证书。","0851—33416900"]
[710,"安顺经济技术开发区","安顺经济技术开发区教育局",7006,"安顺经济技术开发区实验小学","全额事业","01","专业技术人员","从事小学语文教学工作","中小学教师类（D类）","小学教师岗位","700601",1,"本科及以上","学士及以上",null,"二级学科：汉语言文学、小学教育","一级学科：中国语言文学\n二级学科：小学教育、学科教学（语文）",null,"1.具有小学及以上语文学科教师资格证；\n2.具有二级甲等及以上普通话等级证书。","0851—33416900"]
[711,"安顺经济技术开发区","安顺经济技术开发区教育局",7006,"安顺经济技术开发区实验小学","全额事业","02","专业技术人员","从事小学数学教学工作","中小学教师类（D类）","小学教师岗位","700602",1,"本科及以上","学士及以上",null,"二级学科：数学与应用数学、小学教育","一级学科：数学\n二级学科：小学教育、学科教学（数学）",null,"1.具有小学及以上数学学科教师资格证；\n2.具有二级乙等及以上普通话等级证书。","0851—33416900"]
[712,"安顺经济技术开发区","安顺经济技术开发区教育局",7007,"安顺经济技术开发区高级中学","全额事业","01","专业技术人员","从事高中语文教学工作","中小学教师类（D类）","中学教师岗位","700701",2,"本科及以上","学士及以上",null,"二级学科：汉语言文学","一级学科：中国语言文学\n二级学科：学科教学（语文）",null,"1.具有高中及以上语文学科教师资格证；\n2.具有二级甲等及以上普通话等级证书。","0851—33416900"]
[713,"安顺经济技术开发区","安顺经济技术开发区教育局",7007,"安顺经济技术开发区高级中学","全额事业","02","专业技术人员","从事高中数学教学工作","中小学教师类（D类）","中学教师岗位","700702",1,"本科及以上","学士及以上",null,"二级学科：数学与应用数学","一级学科：数学\n二级学科：学科教学（数学）",null,"1.具有高中及以上数学学科教师资格证；\n2.具有二级乙等及以上普通话等级证书。","0851—33416900"]
[714,"安顺经济技术开发区","安顺经济技术开发区教育局",7007,"安顺经济技术开发区高级中学","全额事业","03","专业技术人员","从事高中英语教学工作","中小学教师类（D类）","中学教师岗位",{"$f":"D718&G718","v":"700703"},1,"本科及以上","学士及以上",null,"二级学科：英语","\n二级学科：英语语言文学、学科教学（英语）","定向2024年度毕业生","1.具有高中及以上英语学科教师资格证；\n2.取得英语专业四级或英语专业八级证书；\n3.具有二级乙等及以上普通话等级证书。\n","0851—33416900"]
[715,"安顺经济技术开发区","安顺经济技术开发区教育局",7007,"安顺经济技术开发区高级中学","全额事业","04","专业技术人员","从事高中历史教学工作","中小学教师类（D类）","中学教师岗位","700704",1,"本科及以上","学士及以上",null,"二级学科：历史学","学科门类：历史学\n二级学科：学科教学（历史）",null,"1.具有高中及以上历史学科教师资格证；\n2.具有二级乙等及以上普通话等级证书。","0851—33416900"]
[716,"安顺经济技术开发区","安顺经济技术开发区教育局",7007,"安顺经济技术开发区高级中学","全额事业","05","专业技术人员","从事高中地理教学工作","中小学教师类（D类）","中学教师岗位","700705",1,"本科及以上","学士及以上",null,"二级学科：地理科学","一级学科：地理学\n二级学科：学科教学（地理）","定向2024年度毕业生","1.具有高中及以上地理学科教师资格证；\n2.具有二级乙等及以上普通话等级证书。","0851—33416900"]
[717,"安顺经济技术开发区","安顺经济技术开发区教育局",7008,"安顺城市服务职业学校","全额事业","01","专业技术人员","从事中职语文教学工作","中小学教师类（D类）","中学教师岗位","700801",1,"本科及以上","学士及以上",null,"二级学科：汉语言文学","一级学科：中国语言文学\n二级学科：学科教学（语文）",null,"1.具有中职或高中及以上语文学科教师资格证；\n2.具有二级甲等及以上普通话等级证书。","0851—33416900"]
[718,"安顺经济技术开发区","安顺经济技术开发区教育局",7008,"安顺城市服务职业学校","全额事业","02","专业技术人员","从事中职数学教学工作","中小学教师类（D类）","中学教师岗位","700802",2,"本科及以上","学士及以上",null,"二级学科：数学与应用数学","一级学科：数学\n二级学科：学科教学（数学）",null,"1.具有中职或高中及以上数学学科教师资格证；\n2.具有二级乙等及以上普通话等级证书。","0851—33416900"]
[719,"安顺经济技术开发区","安顺经济技术开发区教育局",7008,"安顺城市服务职业学校","全额事业","03","专业技术人员","从事中职英语教学工作","中小学教师类（D类）","中学教师岗位","700803",1,"本科及以上","学士及以上",null,"二级学科：英语","二级学科：英语语言文学、学科教学（英语）","定向2024年度毕业生","1.具有中职或高中及以上英语学科教师资格证；\n2.取得英语专业四级证书或英语专业八级证书；\n3.具有二级乙等及以上普通话等级证书。","0851—33416900"]
[720,"安顺经济技术开发区","安顺经济技术开发区教育局",7008,"安顺城市服务职业学校","全额事业","04","专业技术人员","从事中职计算机教学工作","中小学教师类（D类）","中学教师岗位","700804",1,"本科及以上","学士及以上",null,"二级学科：计算机科学与技术、软件工程、网络工程、信息安全、物联网工程、数字媒体技术、智能科学与技术、空间信息与数字技术、电子与计算机工程","一级学科：计算机科学与技术",null,"1.具有中职或高中及以上信息技术学科或计算机应用学科教师资格证；\n2.具有二级乙等及以上普通话等级证书。","0851—33416900"]
[721,"安顺经济技术开发区","安顺经济技术开发区教育局",7008,"安顺城市服务职业学校","全额事业","05","专业技术人员","从事中职思想政治教学工作","中小学教师类（D类）","中学教师岗位","700805",1,"本科及以上","学士及以上",null,"二级学科：思想政治教育","一级学科：马克思主义理论\n二级学科：学科教学（思政）",null,"1.具有中职或高中及以上思想政治教育学科教师资格证；\n2.具有二级乙等及以上普通话等级证书。","0851—33416900"]
[722,"黄果树旅游区","黄果树旅游区管理委员会",8001,"龙宫风景名胜区管理处","全额事业","01","管理人员","从事办公室工作，负责办公室文书类工作","综合管理类（A类）","——","800101",1,"本科及以上","学士及以上",null,"一级学科：中国语言文学类","一级学科：中国语言文学",null,null,"0851--33596020"]
[723,"黄果树旅游区","黄果树旅游区管理委员会",8001,"龙宫风景名胜区管理处","全额事业","02","管理人员","从事管理工作，负责办公室相关事务管理工作","综合管理类（A类）","——","800102",1,"本科及以上","学士及以上",null,"一级学科：工商管理类","一级学科：工商管理","定向2024年度毕业生",null,"0851--33596020"]
[724,"黄果树旅游区","黄果树旅游区管理委员会",8001,"龙宫风景名胜区管理处","全额事业","03","管理人员","从事管理工作，负责办公室相关事务管理工作","综合管理类（A类）","——","800103",1,"本科及以上","学士及以上",null,"一级学科：工商管理类","一级学科：工商管理",null,null,"0851--33596020"]
[725,"黄果树旅游区","黄果树旅游区管理委员会",8001,"龙宫风景名胜区管理处","全额事业","04","管理人员","从事办公室相关事务及旅游宣传工作","综合管理类（A类）","——","800104",1,"本科及以上","学士及以上",null,"一级学科：旅游管理类","一级学科：工商管理",null,null,"0851--33596020"]
[726,"黄果树旅游区","黄果树旅游区管理委员会",8001,"龙宫风景名胜区管理处","全额事业","05","管理人员","从事办公室工作，负责办公室相关事务及旅游宣传工作。","综合管理类（A类）","——","800105",1,"本科及以上","学士及以上",{"$nulls":3},"定向2024年度毕业生",null,"0851--33596020"]
[727,"黄果树旅游区","黄果树旅游区管理委员会",8001,"龙宫风景名胜区管理处","全额事业","06","管理人员","从事办公室工作，负责办公室相关事务及旅游宣传工作","综合管理类（A类）","——","800106",1,"本科及以上","学士及以上",{"$nulls":5},"0851--33596020"]
[728,"黄果树旅游区","黄果树旅游区管理委员会",8001,"龙宫风景名胜区管理处","全额事业","07","管理人员","从事纪检监察工作","综合管理类（A类）","——","800107",1,"本科及以上","学士及以上",null,"一级学科：法学类","一级学科：法学",null,"1.限男性；\n2.限中共党员（预备党员）；","0851--33596020"]
[729,"黄果树旅游区","黄果树旅游区管理委员会",8001,"龙宫风景名胜区管理处","全额事业","08","管理人员","从事纪检监察工作","综合管理类（A类）","——","800108",1,"本科及以上","学士及以上",null,"一级学科：法学类","一级学科：法学",null,"1.限女性；\n2.限中共党员（预备党员）；","0851--33596020"]
[730,"黄果树旅游区","黄果树旅游区工作委员会政治部",8002,"黄果树旅游区人才服务中心","全额事业","01","管理人员","从事办公室日常工作","综合管理类（A类）","——","800201",1,"本科及以上","学士及以上",null,"一级学科：中国语言文学类","一级学科：中国语言文学",null,"1.限男性；\n2.限中共党员（预备党员）；","0851--33596020"]
[731,"黄果树旅游区","黄果树旅游区工作委员会政治部",8002,"黄果树旅游区人才服务中心","全额事业","02","管理人员","从事办公室日常工作","综合管理类（A类）","——","800202",1,"本科及以上","学士及以上",null,"一级学科：中国语言文学类","一级学科：中国语言文学",null,"1.限女性；\n2.限中共党员（预备党员）；","0851--33596020"]
[732,"黄果树旅游区","黄果树旅游区财政局",8003,"黄果树旅游区会计核算中心（国库收付中心）","全额事业","01","管理人员","从事金融、财会等有关具体业务工作","综合管理类（A类）","——","800301",1,"本科及以上","学士及以上",null,"一级学科：金融学类、工商管理类","一级学科：应用经济学、工商管理",null,null,"0851--33596020"]
[733,"黄果树旅游区","黄果树旅游区规划建设管理局",8004,"黄果树旅游区市政管理中心","全额事业","01","专业技术人员","从事城镇市政设施建设、日常管理、维护、巡查等工作","综合管理类（A类）","——","800401",1,"本科及以上",null,null,"二级学科：土木工程、道路桥梁与渡河工程、城市地下空间工程","一级学科：土木工程",null,"限安顺市户籍（生源）；","0851--33596020"]
[734,"黄果树旅游区","黄果树旅游区规划建设管理局",8004,"黄果树旅游区市政管理中心","全额事业","02","专业技术人员","从事建筑行业节能、智能化管理与运用等工作","综合管理类（A类）","——","800402",1,"本科及以上","学士及以上",null,"二级学科：建筑环境与能源应用工程、给排水科学与工程、建筑电气与智能化","一级学科：土木工程",null,"限安顺市户籍（生源）；","0851--33596020"]
[735,"黄果树旅游区","黄果树旅游区社会事务管理局",8005,"黄果树旅游区社会保险事业局","全额事业","01","专业技术人员","从事财务及相关工作","综合管理类（A类）","——","800501",1,"本科及以上","学士及以上",null,"一级学科：工商管理类","一级学科：工商管理",null,"取得初级会计证或以上资格证书；","0851--33596020"]
[736,"黄果树旅游区","黄果树旅游区社会事务管理局",8006,"黄果树旅游区教育经费管理中心（学生资助管理中心、学生营养改善计划办公室）","全额事业","01","管理人员","从事财务及相关工作。","综合管理类（A类）","——","800601",1,"本科及以上","学士及以上",null,"一级学科：工商管理类","一级学科：工商管理",null,"取得初级会计证或以上资格证书；","0851--33596020"]
[737,"黄果树旅游区","黄果树旅游区社会事务管理局",8007,"黄果树旅游区疾病预防控制中心","全额事业","01","专业技术人员","从事疾病预防及相关工作","医疗卫生类（E类）","公共卫生管理岗位","800701",1,"本科及以上","学士及以上",null,"一级学科：公共卫生与预防医学类","一级学科：公共卫生与预防医学",null,null,"0851--33596020"]
[738,"黄果树旅游区","黄果树旅游区社会事务管理局",8008,"白水镇卫生院(妇幼保健计划生育服务站)","全额事业","01","专业技术人员","从事临床及相关工作。","医疗卫生类（E类）","西医临床岗位","800801",2,"本科及以上","学士及以上",null,"一级学科：临床医学类","一级学科：临床医学",null,null,"0851--33596020"]
[739,"黄果树旅游区","黄果树旅游区管理委员会",8009,"黄果树旅游区政务服务中心（黄果树旅游区投资促进局）","全额事业","01","专业技术人员","从事政务服务中心工作","综合管理类（A类）","——","800901",1,"本科及以上","学士及以上",null,"一级学科：计算机类",null,"定向2024年度毕业生",null,"0851--33596020"]
[740,"黄果树旅游区","黄果树旅游区黄果树镇人民政府",8010,"黄果树镇人力资源和社会保障服务中心","全额事业","01","管理人员","从事医保审核及相关工作","医疗卫生类（E类）","公共卫生管理岗位","801001",1,"大专及以上",null,"学科门类：医学","学科门类：医学","学科门类：医学",null,null,"0851--33596020"]
[741,"黄果树旅游区","黄果树旅游区龙宫镇人民政府",8011,"龙宫镇农业服务中心（农业技术综合服务中心、畜牧兽医站）","全额事业","01","专业技术人员","从事农作物技术服务推广、植物病虫害防治等工作","综合管理类（A类）","——","801101",1,"本科及以上","学士及以上",null,"一级学科：植物生产类","一级学科：植物保护","定向安顺市“基层服务项目人员”","本单位最低服务年限5年","0851--33596020"]
[742,"黄果树旅游区","黄果树旅游区龙宫镇人民政府",8012,"龙宫镇人力资源和社会保障服务中心（社会福利管理中心、敬老院）","全额事业","01","专业技术人员","从事人社中心办公室日常工作","综合管理类（A类）","——","801201",1,"本科及以上","学士及以上",null,"一级学科：经济学类","一级学科：应用经济学",null,"限男性","0851--33596020"]
[743,"黄果树旅游区","黄果树旅游区龙宫镇人民政府",8012,"龙宫镇人力资源和社会保障服务中心（社会福利管理中心、敬老院）","全额事业","02","专业技术人员","从事人社中心办公室日常工作","综合管理类（A类）","——","801202",1,"本科及以上","学士及以上",null,"一级学科：经济学类","一级学科：应用经济学",null,"限女性","0851--33596020"]
[744,"黄果树旅游区","黄果树旅游区龙宫镇人民政府",8012,"龙宫镇人力资源和社会保障服务中心（社会福利管理中心、敬老院）","全额事业","03","专业技术人员","从事人社中心办公室日常工作","综合管理类（A类）","——","801203",1,"本科及以上","学士及以上",null,"一级学科：财政学类","一级学科：应用经济学",null,null,"0851--33596020"]
[745,"黄果树旅游区","黄果树旅游区龙宫镇人民政府",8013,"龙宫镇林业和环境保护工作站","全额事业","01","专业技术人员","从事林业站办公室相关工作","综合管理类（A类）","——","801301",1,"本科及以上","学士及以上",null,"一级学科：林业工程类","一级学科：林业工程",null,null,"0851--33596020"]